Workbook

Sheet Total Rev Rec
A1: Customer Number | B1: Project Number | C1: Project Name | D1: Department | E1: Project Amount | F1: Forecast Total Cost | G1: Net Recognized Revenue | H1: Actual Total Cost | I1: Actual BIEE Amount 2455 | J1: Actual EIEB Amount 1205 | K1: Actual Billings | L1: Net Margin | N1: Net Margin | O1: Cash Received to Date | P1: Current Month Revenue | Q1: Current Month Cost | R1: Cost % Completed | S1: Rev % Recognized | T1: Calc BIEE | U1: Calc EIEB | V1: Difference Rev Recog | W1: Difference BIEE | X1: Difference EIEB | Y1: Prior Month Net Recognized Revenue | Z1: Prior Month Total Cost
A2: DERWICK001 | B2: 410-3280 | C2: Curupao (2 7F 2 LM6000) (CVG-C | D2: 100001 | E2: 180000000 | F2: 162000000 | G2: 2880000 | H2: 2590972.83 | I2: 0 | J2: 2880000 | K2: 0 | L2: =G2-H2 -> 289027.17 | M2: =VLOOKUP(B2,[1]Projects!$B:$L,11,0) -> I | N2: =G2-H2 -> 289027.17 | O2: 0 | P2: =+G2-Y2 -> 1512000 | Q2: =+H2-Z2 -> 1363557.65 | R2: =H2/F2 -> 0.01599365944 | S2: =G2/E2 -> 0.016 | T2: =IF(K2>G2,K2-G2,0) -> 0 | U2: =IF(G2>K2,G2-K2,0) -> 2880000 | V2: =+R2-S2 -> -6.340555556e-06 | W2: =I2-T2 -> 0 | X2: =J2-U2 -> 0 | Y2: 1368000 | Z2: 1227415.18
A3: DERWICK001 | B3: 410-3203 | C3: CVG Sidor Facility Plant B | D3: 100001 | E3: 79400000 | F3: 71460000 | G3: 12362580 | H3: 11122935.1 | I3: 27337420 | J3: 0 | K3: 39700000 | L3: =G3-H3 -> 1239644.9 | M3: =VLOOKUP(B3,[1]Projects!$B:$L,11,0) -> I | N3: =G3-H3 -> 1239644.9 | O3: 23820000 | P3: =+G3-Y3 -> 5327740 | Q3: =+H3-Z3 -> 4793940.36 | R3: =H3/F3 -> 0.1556526043 | S3: =G3/E3 -> 0.1557 | T3: =IF(K3>G3,K3-G3,0) -> 27337420 | U3: =IF(G3>K3,G3-K3,0) -> 0 | V3: =+R3-S3 -> -4.739574587e-05 | W3: =I3-T3 -> 0 | X3: =J3-U3 -> 0 | Y3: 7034840 | Z3: 6328994.74
A4: DERWICK001 | B4: 410-3202 | C4: CVG Sidor Facility Plant A | D4: 100001 | E4: 60177913 | F4: 53923500 | G4: 17385399.07 | H4: 15580072.43 | I4: 33805263.93 | J4: 0 | K4: 51190663 | L4: =G4-H4 -> 1805326.64 | M4: =VLOOKUP(B4,[1]Projects!$B:$L,11,0) -> I | N4: 1805326.64 | O4: 17974500 | P4: =+G4-Y4 -> 5000968.57 | Q4: =+H4-Z4 -> 4433886.75 | R4: =H4/F4 -> 0.2889291761 | S4: =G4/E4 -> 0.2889000001 | T4: =IF(K4>G4,K4-G4,0) -> 33805263.93 | U4: =IF(G4>K4,G4-K4,0) -> 0 | V4: =+R4-S4 -> 2.917607624e-05 | W4: =I4-T4 -> 0 | X4: =J4-U4 -> 0 | Y4: 12384430.5 | Z4: 11146185.68
A5: CORPO001 | B5: 10-T9002 | C5: Termozulia IV | D5: 107002 | E5: 51800000 | F5: 46620000 | G5: 16565640 | H5: 14910369.39 | I5: =K5-G5 -> 22284360 | J5: 0 | K5: 38850000 | L5: =G5-H5 -> 1655270.61 | M5: =VLOOKUP(B5,[1]Projects!$B:$L,11,0) -> I | N5: 1655270.61 | O5: 35172000 | P5: 3227140 | Q5: 2905017.73 | R5: =H5/F5 -> 0.3198277432 | S5: =G5/E5 -> 0.3198 | T5: =K5-G5 -> 22284360 | U5: 0 | V5: 0 | W5: 0 | X5: 0 | Y5: 2030560 | Z5: 1826884.67
A6: DERWICK001 | B6: 10-T1004 | C6: Jusepin-EPC (4) RR Trent 60 | D6: 100001 | E6: 44347000 | F6: 39912300 | G6: 1223977.2 | H6: 1100006.62 | I6: 0 | J6: 1223977.2 | K6: =22173500-22173500 -> 0 | L6: =G6-H6 -> 123970.58 | M6: =VLOOKUP(B6,[1]Projects!$B:$L,11,0) -> I | N6: 123970.58 | O6: 0 | P6: =+G6-Y6 -> 368803.23 | Q6: =+H6-Z6 -> 330783.25 | R6: =H6/F6 -> 0.0275605921 | S6: =G6/E6 -> 0.0276 | T6: =IF(K6>G6,K6-G6,0) -> 0 | U6: =IF(G6>K6,G6-K6,0) -> 1223977.2 | V6: =+R6-S6 -> -3.940790182e-05 | W6: =I6-T6 -> 0 | X6: =J6-U6 -> 0 | Y6: 855173.97 | Z6: 769223.37
A7: GENATL001 | B7: EQU08-1222 | C7: Equip Sales Agreement - CC | D7: 104002 | E7: 37200000 | F7: 30000000 | G7: 37200000 | H7: 30000000 | I7: 0 | J7: 0 | K7: 37200000 | L7: =+G7-H7 -> 7200000 | M7: =VLOOKUP(B7,[1]Projects!$B:$L,11,0) -> I | N7: 7200000 | O7: 37107637.91 | P7: =+G7-Y7 -> 0 | Q7: =+H7-Z7 -> 0 | R7: =+H7/F7 -> 1 | S7: =+G7/E7 -> 1 | T7: =IF(K7>G7,K7-G7,0) -> 0 | U7: =IF(G7>K7,G7-K7,0) -> 0 | V7: =+R7-S7 -> 0 | W7: =+I7-T7 -> 0 | X7: =+J7-U7 -> 0 | Y7: 37200000 | Z7: 30000000
A8: EDC001 | B8: 10-T1009 | C8: Guarenas I | D8: 100001 | E8: 36340516.65 | F8: 32706465 | G8: 6065232.23 | H8: 5459128.85 | I8: 8470974.42 | J8: 0 | K8: 14536206.65 | L8: =G8-H8 -> 606103.38 | M8: =VLOOKUP(B8,[1]Projects!$B:$L,11,0) -> I | N8: 606103.38 | O8: 0 | P8: =+G8-Y8 -> 3274280.55 | Q8: =+H8-Z8 -> 2948215.38 | R8: =H8/F8 -> 0.1669128367 | S8: =G8/E8 -> 0.1669 | T8: =IF(K8>G8,K8-G8,0) -> 8470974.42 | U8: =IF(G8>K8,G8-K8,0) -> 0 | V8: =+R8-S8 -> 1.283662103e-05 | W8: =I8-T8 -> 0 | X8: =J8-U8 -> 0 | Y8: 2790951.68 | Z8: 2510913.47
A9: DERWICK001 | B9: 10-T9036 | C9: LaRaisa II (2 LM6000) | D9: 100001 | E9: 33609000 | F9: 27000000 | G9: 414000 | H9: 373585.49 | I9: 0 | J9: 414000 | K9: =16804500-16804500 -> 0 | L9: =G9-H9 -> 40414.51 | M9: =VLOOKUP(B9,[1]Projects!$B:$L,11,0) -> I | N9: 40414.51 | O9: 0 | P9: =+G9-Y9 -> 225000 | Q9: =+H9-Z9 -> 203076.23 | R9: =H9/F9 -> 0.01383649963 | S9: =G9/E9 -> 0.01231812907 | T9: =IF(K9>G9,K9-G9,0) -> 0 | U9: =IF(G9>K9,G9-K9,0) -> 414000 | V9: =+R9-S9 -> 0.001518370557 | W9: =I9-T9 -> 0 | X9: =J9-U9 -> 0 | Y9: 189000 | Z9: 170509.26
A10: EDC001 | B10: 10-T9018 | C10: La Raisa (3) FT8 | D10: 100001 | E10: 33491875 | F10: 30142687.5 | G10: 12358501.88 | H10: 11123846.37 | I10: 21133373.12 | J10: 0 | K10: 33491875 | L10: =+G10-H10 -> 1234655.51 | M10: =VLOOKUP(B10,[1]Projects!$B:$L,11,0) -> I | N10: 1234655.51 | O10: 18781824.6 | P10: =+G10-Y10 -> 2836761.82 | Q10: =+H10-Z10 -> 2555483.59 | R10: =+H10/F10 -> 0.3690396342 | S10: =+G10/E10 -> 0.3690000001 | T10: =IF(K10>G10,K10-G10,0) -> 21133373.12 | U10: =IF(G10>K10,G10-K10,0) -> 0 | V10: =+R10-S10 -> 3.963409036e-05 | W10: =+I10-T10 -> 0 | X10: =+J10-U10 -> 0 | Y10: 9521740.06 | Z10: 8568362.78
A11: DERWICK001 | B11: 10-T1003 | C11: Barinas (La Fria) (2FT-4TP) | D11: 100001 | E11: 30000000 | F11: 27000000 | G11: 1254.1 | H11: 1140.09 | I11: 0 | J11: 1254.1 | K11: 0 | L11: =+G11-H11 -> 114.01 | M11: =VLOOKUP(B11,[1]Projects!$B:$L,11,0) -> I | N11: 114.01 | O11: 0 | P11: =+G11-Y11 -> 1254.1 | Q11: =+H11-Z11 -> 1140.09 | R11: =H11/F11 -> 4.222555556e-05 | S11: =G11/E11 -> 4.180333333e-05 | T11: =IF(K11>G11,K11-G11,0) -> 0 | U11: =IF(G11>K11,G11-K11,0) -> 1254.1 | V11: =+R11-S11 -> 4.222222222e-07 | W11: =I11-T11 -> 0 | X11: =J11-U11 -> 0 | Y11: 0 | Z11: 0
A12: EDC001 | B12: 10-T9003B | C12: Planta Picure/Tacoa B (2) LM6000s | D12: 100001 | E12: 20774500 | F12: 18697050 | G12: 10586685.2 | H12: 9527993.13 | I12: 10187814.8 | J12: 0 | K12: 20774500 | L12: =+G12-H12 -> 1058692.07 | M12: =VLOOKUP(B12,[1]Projects!$B:$L,11,0) -> I | N12: 1058692.07 | O12: 19949000 | P12: =+G12-Y12 -> 1988119.65 | Q12: =+H12-Z12 -> 1788914.14 | R12: =+H12/F12 -> 0.5095987404 | S12: =+G12/E12 -> 0.5096 | T12: =IF(K12>G12,K12-G12,0) -> 10187814.8 | U12: =IF(G12>K12,G12-K12,0) -> 0 | V12: =+R12-S12 -> -1.259556989e-06 | W12: =+I12-T12 -> 0 | X12: =+J12-U12 -> 0 | Y12: 8598565.55 | Z12: 7739078.99
A13: PACIFICRIM002 | B13: FS07-0344CABR-1 | C13: Cabrutica Installation | D13: 804002 | E13: 17000000 | F13: 15300000 | G13: 2834802.62 | H13: 1981774.53 | I13: 7340197.38 | J13: 0 | K13: 10175000 | L13: =+G13-H13 -> 853028.09 | M13: =VLOOKUP(B13,[1]Projects!$B:$L,11,0) -> I | N13: 853028.09 | O13: 6475000 | P13: =+G13-Y13 -> -100000 | Q13: =+H13-Z13 -> 197690.12 | R13: =+H13/F13 -> 0.1295277471 | S13: =+G13/E13 -> 0.1667530953 | T13: =IF(K13>G13,K13-G13,0) -> 7340197.38 | U13: =IF(G13>K13,G13-K13,0) -> 0 | V13: =+R13-S13 -> -0.03722534824 | W13: =+I13-T13 -> 0 | X13: =+J13-U13 -> 0 | Y13: 2934802.62 | Z13: 1784084.41
A14: EDC001 | B14: 10-T9003A | C14: Planta Picure/Tacoa A (2) LM2500s | D14: 100001 | E14: 14914408.5 | F14: 13422967.65 | G14: 10801014.64 | H14: 9720835.84 | I14: 4113393.86 | J14: 0 | K14: 14914408.5 | L14: =+G14-H14 -> 1080178.8 | M14: =VLOOKUP(B14,[1]Projects!$B:$L,11,0) -> I | N14: 1080178.8 | O14: 12536000 | P14: =+G14-Y14 -> 2392271.13 | Q14: =+H14-Z14 -> 2153265.41 | R14: =+H14/F14 -> 0.7241942388 | S14: =+G14/E14 -> 0.7242000003 | T14: =IF(K14>G14,K14-G14,0) -> 4113393.86 | U14: =IF(G14>K14,G14-K14,0) -> 0 | V14: =+R14-S14 -> -5.761468106e-06 | W14: =+I14-T14 -> 0 | X14: =+J14-U14 -> 0 | Y14: 8408743.51 | Z14: 7567570.43
A15: DERWICK001 | B15: 409-2956-1 | C15: Margarita Island Dual Fuel | D15: 104002 | E15: 11263966 | F15: 10137569.4 | G15: 251186.44 | H15: 225738.73 | I15: 0 | J15: 251186.44 | K15: 0 | L15: =+G15-H15 -> 25447.71 | M15: =VLOOKUP(B15,[1]Projects!$B:$L,11,0) -> I | N15: 25447.71 | O15: 0 | P15: =+G15-Y15 -> 157695.52 | Q15: =+H15-Z15 -> 141374.1 | R15: =+H15/F15 -> 0.02226753979 | S15: =+G15/E15 -> 0.02229999984 | T15: =IF(K15>G15,K15-G15,0) -> 0 | U15: =IF(G15>K15,G15-K15,0) -> 251186.44 | V15: =+R15-S15 -> -3.246004905e-05 | W15: =+I15-T15 -> 0 | X15: =+J15-U15 -> 0 | Y15: 93490.92 | Z15: 84364.63
A16: DERWICK001 | B16: 10-T1006 | C16: Las Morochas (1) GE LM2500 | D16: 100001 | E16: 7975000 | F16: 7177500 | G16: 855717.5 | H16: 770389.54 | I16: 0 | J16: 855717.5 | K16: =4785000-3987500-797500 -> 0 | L16: =G16-H16 -> 85327.96 | M16: =VLOOKUP(B16,[1]Projects!$B:$L,11,0) -> I | N16: 85327.96 | O16: 0 | P16: =+G16-Y16 -> 540705 | Q16: =+H16-Z16 -> 486941.63 | R16: =H16/F16 -> 0.1073339659 | S16: =G16/E16 -> 0.1073 | T16: =IF(K16>G16,K16-G16,0) -> 0 | U16: =IF(G16>K16,G16-K16,0) -> 855717.5 | V16: =+R16-S16 -> 3.396586555e-05 | W16: =I16-T16 -> 0 | X16: =J16-U16 -> 0 | Y16: 315012.5 | Z16: 283447.91
A17: DERWICK001 | B17: 710-3347 | C17: CVG 2 Shipping | D17: 107002 | E17: 6693000 | F17: 6084545.46 | G17: 2182587.3 | H17: 1984217.18 | I17: 0 | J17: 2182587.3 | K17: 0 | L17: =G17-H17 -> 198370.12 | M17: =VLOOKUP(B17,[1]Projects!$B:$L,11,0) -> I | N17: 198370.12 | O17: 0 | P17: 16742.5 | Q17: 15397.35 | R17: =H17/F17 -> 0.326107709 | S17: =G17/E17 -> 0.3261 | T17: 0 | U17: 2182587.3 | V17: 0 | W17: 0 | X17: 0 | Y17: 2165854.8 | Z17: 1968819.83
A18: DERWICK001 | B18: 710-3150 | C18: CVG Shipping | D18: 107002 | E18: 5724950 | F18: 5204500.52 | G18: 4806668.02 | H18: 4369682.52 | I18: =K18-G18 -> 918281.98 | J18: 0 | K18: 5724950 | L18: =G18-H18 -> 436985.5 | M18: =VLOOKUP(B18,[1]Projects!$B:$L,11,0) -> I | N18: 436985.5 | O18: 5724950 | P18: 572.49 | Q18: 520.44 | R18: =H18/F18 -> 0.8395969033 | S18: =G18/E18 -> 0.8396 | T18: =K18-G18 -> 918281.98 | U18: 0 | V18: 0 | W18: 0 | X18: 0 | Y18: 59539.48 | Z18: 54103.35
A19: NATCONTR001 | B19: FS08-1678 REV 1 | C19: Nat Ctr Aviation - Wichita | D19: 104013 | E19: 5220525 | F19: 4926101.08 | G19: 5180332.26 | H19: 4926101.08 | I19: 0 | J19: 390920.07 | K19: 4789412.19 | L19: =+G19-H19 -> 254231.18 | M19: =VLOOKUP(B19,[1]Projects!$B:$L,11,0) -> D | N19: 254231.18 | O19: 3718649.48 | P19: =+G19-Y19 -> 392804.16 | Q19: =+H19-Z19 -> 392804.16 | R19: =+H19/F19 -> 1 | S19: =+G19/E19 -> 0.9923010157 | T19: =IF(K19>G19,K19-G19,0) -> 0 | U19: =IF(G19>K19,G19-K19,0) -> 390920.07 | V19: =+R19-S19 -> 0.007698984298 | W19: =+I19-T19 -> 0 | X19: =+J19-U19 -> 6.4028427e-10 | Y19: 4787528.1 | Z19: 4533296.92
A20: CORPO001 | B20: 10-T9002-Bs | C20: Termozulia IV-In Country | D20: 107002 | E20: 4600000 | F20: 4883422.78 | G20: 4600000 | H20: 7540413.13 | I20: 0 | J20: 0 | K20: 4600000 | L20: =G20-H20 -> -2940413.13 | M20: =VLOOKUP(B20,[1]Projects!$B:$L,11,0) -> I-Foreign | N20: -2940413.13 | O20: 2300000 | P20: 0 | Q20: 579553.91 | R20: 1 | S20: =G20/E20 -> 1 | T20: =K20-G20 -> 0 | U20: 0 | V20: 0 | W20: 0 | X20: 0 | Y20: 0 | Z20: 1571134.67
A21: GENATL001 | B21: ENG08-1127 REV1 | C21: Engineering Services | D21: 104002 | E21: 3100000 | F21: 2630000 | G21: 2945000 | H21: 2498500 | I21: 155000 | J21: 0 | K21: 3100000 | L21: =+G21-H21 -> 446500 | M21: =VLOOKUP(B21,[1]Projects!$B:$L,11,0) -> D | N21: 446500 | O21: 2945000 | P21: =+G21-Y21 -> 0 | Q21: =+H21-Z21 -> 0 | R21: =+H21/F21 -> 0.95 | S21: =+G21/E21 -> 0.95 | T21: =IF(K21>G21,K21-G21,0) -> 155000 | U21: =IF(G21>K21,G21-K21,0) -> 0 | V21: =+R21-S21 -> 0 | W21: =+I21-T21 -> 0 | X21: =+J21-U21 -> 0 | Y21: 2945000 | Z21: 2498500
A22: PACIFICRIM001 | B22: FS07-0344JOS-1 | C22: Josefa Extra Costs | D22: 104002 | E22: 3000000 | F22: 3000000 | G22: 1701500 | H22: 1206655.33 | I22: 1298500 | J22: 0 | K22: 3000000 | L22: =+G22-H22 -> 494844.67 | M22: =VLOOKUP(B22,[1]Projects!$B:$L,11,0) -> I | N22: 494844.67 | O22: 3000000 | P22: =+G22-Y22 -> -100000 | Q22: =+H22-Z22 -> 5259.95 | R22: =+H22/F22 -> 0.4022184433 | S22: =+G22/E22 -> 0.5671666667 | T22: =IF(K22>G22,K22-G22,0) -> 1298500 | U22: =IF(G22>K22,G22-K22,0) -> 0 | V22: =+R22-S22 -> -0.1649482233 | W22: =+I22-T22 -> 0 | X22: =+J22-U22 -> 0 | Y22: 1801500 | Z22: 1201395.38
A23: NPPD001 | B23: 409-2885 | C23: Fire Protection Upgrade | D23: 104014 | E23: 2735978 | F23: 2089047.71 | G23: 1342544.4 | H23: 1025166.98 | I23: 0 | J23: 330104.59 | K23: 1012439.81 | L23: =+G23-H23 -> 317377.42 | M23: =VLOOKUP(B23,[1]Projects!$B:$L,11,0) -> D | N23: 317377.42 | O23: 833454.79 | P23: =+G23-Y23 -> 191685.92 | Q23: =+H23-Z23 -> 144025.81 | R23: =+H23/F23 -> 0.4907341154 | S23: =+G23/E23 -> 0.4906999983 | T23: =IF(K23>G23,K23-G23,0) -> 0 | U23: =IF(G23>K23,G23-K23,0) -> 330104.59 | V23: =+R23-S23 -> 3.411708358e-05 | W23: =+I23-T23 -> 0 | X23: =+J23-U23 -> 0 | Y23: 1150858.48 | Z23: 881141.17
A24: EMGASUD001 | B24: OM08-1239 O&M-M | C24: Matheu O&M | D24: 101160 | E24: 2516697 | F24: 1798502.01 | G24: 1639380 | H24: 1171546 | I24: 392587 | J24: 0 | K24: 2031967 | L24: =+G24-H24 -> 467834 | M24: =VLOOKUP(B24,[1]Projects!$B:$L,11,0) -> I | N24: 467834 | O24: 1896408 | P24: =+G24-Z24 -> 547220 | Q24: =+H24-AA24 -> 1171546 | R24: =+H24/F24 -> 0.6514009957 | S24: =+G24/E24 -> 0.6514014202 | T24: =IF(K24>G24,K24-G24,0) -> 392587 | U24: =IF(G24>K24,G24-K24,0) -> 0 | V24: =+R24-S24 -> -4.245406474e-07 | W24: =+I24-T24 -> 0 | X24: =+J24-U24 -> 0 | Y24: 1528292 | Z24: 1092160
A25: GENATL001 | B25: OM07-0509 O&M2 | C25: TermoColon O&M | D25: 101150 | E25: 2500000 | F25: 2131659 | G25: 2500000 | H25: =2155268-23609 -> 2131659 | I25: 0 | J25: 383065 | K25: 2116935 | L25: =+G25-H25 -> 368341 | M25: =VLOOKUP(B25,[1]Projects!$B:$L,11,0) -> I | N25: 368341 | O25: 1575000 | P25: =+G25-Z25 -> 368341 | Q25: =+H25-AA25 -> 2131659 | R25: =+H25/F25 -> 1 | S25: =+G25/E25 -> 1 | T25: =IF(K25>G25,K25-G25,0) -> 0 | U25: =IF(G25>K25,G25-K25,0) -> 383065 | V25: =+R25-S25 -> 0 | W25: =+I25-T25 -> 0 | X25: =+J25-U25 -> 0 | Y25: 2500000 | Z25: =2155268-23609 -> 2131659
A26: INOTEC001 | B26: 110-3353 REV 3 | C26: Operations & Maintenance | D26: 101220 | E26: 2200782 | F26: 1955944 | G26: 0 | H26: 0 | I26: 0 | J26: 0 | K26: 0 | L26: =+G26-H26 -> 0 | M26: I | N26: 0 | O26: 0 | P26: =+G26-Y26 -> 0 | Q26: =+H26-Z26 -> 0 | R26: =+H26/F26 -> 0 | S26: =+G26/E26 -> 0 | T26: =IF(K26>G26,K26-G26,0) -> 0 | U26: =IF(G26>K26,G26-K26,0) -> 0 | V26: =+R26-S26 -> 0 | W26: =+I26-T26 -> 0 | X26: =+J26-U26 -> 0 | Y26: 0 | Z26: 0
A27: WALTONCONST001 | B27: 409-2513 REV 2 | C27: Tinker AFB - Warehouse | D27: 104013 | E27: 2074060 | F27: 1859561.84 | G27: 92917.89 | H27: 83391.8 | I27: 0 | J27: 92917.89 | K27: 0 | L27: =+G27-H27 -> 9526.09 | M27: =VLOOKUP(B27,[1]Projects!$B:$L,11,0) -> D | N27: 9526.09 | O27: 0 | P27: =+G27-Y27 -> 12236.96 | Q27: =+H27-Z27 -> 11097.13 | R27: =+H27/F27 -> 0.04484486518 | S27: =+G27/E27 -> 0.04480000096 | T27: =IF(K27>G27,K27-G27,0) -> 0 | U27: =IF(G27>K27,G27-K27,0) -> 92917.89 | V27: =+R27-S27 -> 4.486421104e-05 | W27: =+I27-T27 -> 0 | X27: =+J27-U27 -> 0 | Y27: 80680.93 | Z27: 72294.67
A28: GENATL001 | B28: OM07-0509 MOBSC2 | C28: TermoColon Mobilization | D28: 101150 | E28: 1500000 | F28: 1259219 | G28: 1117674 | H28: 938265 | I28: 382326 | J28: 0 | K28: 1500000 | L28: =+G28-H28 -> 179409 | M28: =VLOOKUP(B28,[1]Projects!$B:$L,11,0) -> I | N28: 179409 | O28: 1026013.7 | P28: =+G28-Z28 -> 187021 | Q28: =+H28-AA28 -> 938265 | R28: =+H28/F28 -> 0.7451166159 | S28: =+G28/E28 -> 0.745116 | T28: =IF(K28>G28,K28-G28,0) -> 382326 | U28: =IF(G28>K28,G28-K28,0) -> 0 | V28: =+R28-S28 -> 6.159341623e-07 | W28: =+I28-T28 -> 0 | X28: =+J28-U28 -> 0 | Y28: 1108607 | Z28: 930653
A29: VTPUBPOW001 | B29: 410-3169 REV 1 | C29: P10 Generator No 2 Repair | D29: 104002 | E29: 1420000 | F29: 1194767.63 | G29: 1420000 | H29: 1194767.63 | I29: 0 | J29: 0 | K29: 1420000 | L29: =+G29-H29 -> 225232.37 | M29: =VLOOKUP(B29,[1]Projects!$B:$L,11,0) -> D | N29: 225232.37 | O29: 1420000 | P29: =+G29-Y29 -> 0 | Q29: =+H29-Z29 -> 15784.04 | R29: =+H29/F29 -> 1 | S29: =+G29/E29 -> 1 | T29: =IF(K29>G29,K29-G29,0) -> 0 | U29: =IF(G29>K29,G29-K29,0) -> 0 | V29: =+R29-S29 -> 0 | W29: =+I29-T29 -> 0 | X29: =+J29-U29 -> 0 | Y29: 1420000 | Z29: 1178983.59
A30: EMGASUD001 | B30: OM08-1239 O&M-P | C30: Parana O&M | D30: 101170 | E30: 1232946 | F30: 1051681 | G30: 825510 | H30: 704145 | I30: 556736 | J30: 0 | K30: 1382246 | L30: =+G30-H30 -> 121365 | M30: =VLOOKUP(B30,[1]Projects!$B:$L,11,0) -> I | N30: 121365 | O30: 1211665 | P30: =+G30-Z30 -> 201759 | Q30: =+H30-AA30 -> 704145 | R30: =+H30/F30 -> 0.6695423802 | S30: =+G30/E30 -> 0.669542705 | T30: =IF(K30>G30,K30-G30,0) -> 556736 | U30: =IF(G30>K30,G30-K30,0) -> 0 | V30: =+R30-S30 -> -3.247868289e-07 | W30: =+I30-T30 -> 0 | X30: =+J30-U30 -> 0 | Y30: 731259 | Z30: 623751
A31: INOTEC001 | B31: 110-3353 INV | C31: Inventory Costs | D31: 101220 | E31: 1110121.47 | F31: 1200000 | G31: 0 | H31: 0 | I31: 0 | J31: 0 | K31: 0 | L31: =+G31-H31 -> 0 | M31: I | N31: 0 | O31: 0 | P31: =+G31-Y31 -> 0 | Q31: =+H31-Z31 -> 0 | R31: =+H31/F31 -> 0 | S31: =+G31/E31 -> 0 | T31: =IF(K31>G31,K31-G31,0) -> 0 | U31: =IF(G31>K31,G31-K31,0) -> 0 | V31: =+R31-S31 -> 0 | W31: =+I31-T31 -> 0 | X31: =+J31-U31 -> 0 | Y31: 0 | Z31: 0
A32: INOTEC001 | B32: 110-3353 MOB | C32: Angola Mobilization | D32: 105009 | E32: 1098394 | F32: 878715 | G32: 8128.12 | H32: 6526.82 | I32: 0 | J32: 8128.12 | K32: 0 | L32: =+G32-H32 -> 1601.3 | M32: I | N32: 1601.3 | O32: 0 | P32: =+G32-Y32 -> 8128.12 | Q32: =+H32-Z32 -> 6526.82 | R32: =+H32/F32 -> 0.00742768702 | S32: =+G32/E32 -> 0.007400004006 | T32: =IF(K32>G32,K32-G32,0) -> 0 | U32: =IF(G32>K32,G32-K32,0) -> 8128.12 | V32: =+R32-S32 -> 2.76830144e-05 | W32: =+I32-T32 -> 0 | X32: =+J32-U32 -> 0 | Y32: 0 | Z32: 0
A33: GENATL001 | B33: OM07-0509 RS | C33: Repair Services - TermoColon | D33: 101150 | E33: 1081063.87 | F33: 982181.16 | G33: 722583.09 | H33: 656489.89 | I33: 267935.09 | J33: 0 | K33: =1081017.68-90499.5 -> 990518.18 | L33: =+G33-H33 -> 66093.2 | M33: =VLOOKUP(B33,[1]Projects!$B:$L,11,0) -> I | N33: 66093.2 | O33: 0 | P33: =+G33-Y33 -> 26909.73 | Q33: =+H33-Z33 -> 24412.38 | R33: =+H33/F33 -> 0.6684000027 | S33: =+G33/E33 -> 0.6683999993 | T33: =IF(K33>G33,K33-G33,0) -> 267935.09 | U33: =IF(G33>K33,G33-K33,0) -> 0 | V33: =+R33-S33 -> 3.359096001e-09 | W33: =+I33-T33 -> 0 | X33: =+J33-U33 -> 0 | Y33: 695673.36 | Z33: 632077.51
A34: OMPA001 | B34: 409-2227 | C34: Steam Turbine Overhaul | D34: 104004 | E34: 1014356.5 | F34: 790142.16 | G34: 955523.82 | H34: 744290.03 | I34: 58832.68 | J34: 0 | K34: 1014356.5 | L34: =+G34-H34 -> 211233.79 | M34: =VLOOKUP(B34,[1]Projects!$B:$L,11,0) -> D | N34: 211233.79 | O34: 954066.5 | P34: =+G34-Y34 -> 4260.29 | Q34: =+H34-Z34 -> 3337.81 | R34: =+H34/F34 -> 0.9419697716 | S34: =+G34/E34 -> 0.941999997 | T34: =IF(K34>G34,K34-G34,0) -> 58832.68 | U34: =IF(G34>K34,G34-K34,0) -> 0 | V34: =+R34-S34 -> -3.022542567e-05 | W34: =+I34-T34 -> 0 | X34: =+J34-U34 -> 0 | Y34: 951263.53 | Z34: 740952.22
A35: GENATL001 | B35: OM07-0509 SP-CC | C35: Spares - Combined Cycle | D35: 101150 | E35: 1000000 | F35: 856071 | G35: 464000 | H35: 397243.72 | I35: 536000 | J35: 0 | K35: 1000000 | L35: =+G35-H35 -> 66756.28 | M35: =VLOOKUP(B35,[1]Projects!$B:$L,11,0) -> I | N35: 66756.28 | O35: 0 | P35: =+G35-Y35 -> 4200 | Q35: =+H35-Z35 -> 3613.15 | R35: =+H35/F35 -> 0.4640312778 | S35: =+G35/E35 -> 0.464 | T35: =IF(K35>G35,K35-G35,0) -> 536000 | U35: =IF(G35>K35,G35-K35,0) -> 0 | V35: =+R35-S35 -> 3.127777953e-05 | W35: =+I35-T35 -> 0 | X35: =+J35-U35 -> 0 | Y35: 459800 | Z35: 393630.57
A36: PROEPC001 | B36: 109-2317 MOB | C36: Naudero Mobilization | D36: 105009 | E36: 900000 | F36: 765000 | G36: 620190 | H36: 527155.26 | I36: 279810 | J36: 0 | K36: 900000 | L36: =+G36-H36 -> 93034.74 | M36: =VLOOKUP(B36,[1]Projects!$B:$L,11,0) -> I | N36: 93034.74 | O36: 877720.12 | P36: =+G36-Y36 -> 144630 | Q36: =+H36-Z36 -> 122898.5 | R36: =+H36/F36 -> 0.6890918431 | S36: =+G36/E36 -> 0.6891 | T36: =IF(K36>G36,K36-G36,0) -> 279810 | U36: =IF(G36>K36,G36-K36,0) -> 0 | V36: =+R36-S36 -> -8.156862745e-06 | W36: =+I36-T36 -> 0 | X36: =+J36-U36 -> 0 | Y36: 475560 | Z36: 404256.76
A37: JOHNCONTBLD001 | B37: FS08-1422 REV4 | C37: Central Heating Contrl Upgrade | D37: 105004 | E37: 862750 | F37: 614815.46 | G37: 469594.83 | H37: 334619.41 | I37: 0 | J37: 340182.33 | K37: 129412.5 | L37: =+G37-H37 -> 134975.42 | M37: =VLOOKUP(B37,[1]Projects!$B:$L,11,0) -> D | N37: 134975.42 | O37: 129412.5 | P37: =+G37-Y37 -> 271852.53 | Q37: =+H37-Z37 -> 193731.93 | R37: =+H37/F37 -> 0.544259915 | S37: =+G37/E37 -> 0.5443000058 | T37: =IF(K37>G37,K37-G37,0) -> 0 | U37: =IF(G37>K37,G37-K37,0) -> 340182.33 | V37: =+R37-S37 -> -4.009079589e-05 | W37: =+I37-T37 -> 0 | X37: =+J37-U37 -> 0 | Y37: 197742.3 | Z37: 140887.48
A38: EMGASUD001 | B38: OM08-1239 RS-M1 | C38: Emgasud Matheu Repair Ser Fee | D38: 101160 | E38: 843588.11 | F38: 707953 | G38: 0 | H38: 0 | I38: =292318.11+56250 -> 348568.11 | J38: 0 | K38: =367318.11-18750 -> 348568.11 | L38: =+G38-H38 -> 0 | M38: =VLOOKUP(B38,[1]Projects!$B:$L,11,0) -> I | N38: 0 | O38: 251250 | P38: =+G38-Y38 -> 0 | Q38: =+H38-Z38 -> 0 | R38: =+H38/F38 -> 0 | S38: =+G38/E38 -> 0 | T38: =IF(K38>G38,K38-G38,0) -> 348568.11 | U38: =IF(G38>K38,G38-K38,0) -> 0 | V38: =+R38-S38 -> 0 | W38: =+I38-T38 -> 0 | X38: =+J38-U38 -> 0 | Y38: 0 | Z38: 0
A39: GENATL001 | B39: OM07-0509 SP-SC | C39: Spares - Simple Cycle | D39: 101150 | E39: 500000 | F39: 507566.27 | G39: 498800 | H39: 506348.11 | I39: 1200 | J39: 0 | K39: 500000 | L39: =+G39-H39 -> -7548.11 | M39: =VLOOKUP(B39,[1]Projects!$B:$L,11,0) -> I | N39: -7548.11 | O39: 500000 | P39: =+G39-Y39 -> 0 | Q39: =+H39-Z39 -> 25.43 | R39: =+H39/F39 -> 0.9975999981 | S39: =+G39/E39 -> 0.9976 | T39: =IF(K39>G39,K39-G39,0) -> 1200 | U39: =IF(G39>K39,G39-K39,0) -> 0 | V39: =+R39-S39 -> -1.875617217e-09 | W39: =+I39-T39 -> 0 | X39: =+J39-U39 -> 0 | Y39: 498800 | Z39: 506322.68
A40: STRAUB001 | B40: FS08-1708 | C40: City of W'burg PDHQ | D40: 104013 | E40: 499901.66 | F40: 573107.06 | G40: 499901.66 | H40: 573107.06 | I40: 0 | J40: 0 | K40: 499901.66 | L40: =+G40-H40 -> -73205.4 | M40: =VLOOKUP(B40,[1]Projects!$B:$L,11,0) -> D | N40: -73205.4 | O40: 421755.66 | P40: =+G40-Y40 -> 0 | Q40: =+H40-Z40 -> 1868.16 | R40: =+H40/F40 -> 1 | S40: =+G40/E40 -> 1 | T40: =IF(K40>G40,K40-G40,0) -> 0 | U40: =IF(G40>K40,G40-K40,0) -> 0 | V40: =+R40-S40 -> 0 | W40: =+I40-T40 -> 0 | X40: =+J40-U40 -> 0 | Y40: 499901.66 | Z40: 571238.9
A41: PUBLICPOWER001 | B41: 609-2908 | C41: Coal Dumper Bldg Modifications | D41: 100001 | E41: 394846 | F41: 321036.44 | G41: 394846 | H41: 225128.4 | I41: 0 | J41: 0 | K41: 394846 | L41: =+G41-H41 -> 169717.6 | M41: =VLOOKUP(B41,[1]Projects!$B:$L,11,0) -> D | N41: 169717.6 | O41: 394846 | P41: =+G41-Y41 -> 0 | Q41: =+H41-Z41 -> 134.26 | R41: =+H41/F41 -> 0.7012549728 | S41: =+G41/E41 -> 1 | T41: =IF(K41>G41,K41-G41,0) -> 0 | U41: =IF(G41>K41,G41-K41,0) -> 0 | V41: =+R41-S41 -> -0.2987450272 | W41: =+I41-T41 -> 0 | X41: =+J41-U41 -> 0 | Y41: 394846 | Z41: 224994.14
A42: PROEPC001 | B42: 109-2317 ININV | C42: Naudero Initial Inventory Part | D42: 101200 | E42: 300000 | F42: 272727.27 | G42: 8340 | H42: 7581.82 | I42: =300000-8340 -> 291660 | J42: 0 | K42: =300000 -> 300000 | L42: =+G42-H42 -> 758.18 | M42: =VLOOKUP(B42,[1]Projects!$B:$L,11,0) -> I | N42: 758.18 | O42: 300000 | P42: =+G42-Y42 -> 8340 | Q42: =+H42-Z42 -> 7581.82 | R42: =+H42/F42 -> 0.02780000694 | S42: =+G42/E42 -> 0.0278 | T42: =IF(K42>G42,K42-G42,0) -> 291660 | U42: =IF(G42>K42,G42-K42,0) -> 0 | V42: =+R42-S42 -> 6.944666734e-09 | W42: =+I42-T42 -> 0 | X42: =+J42-U42 -> 0 | Y42: 0 | Z42: 0
A43: EMGASUD001 | B43: OM08-1239 RS-P1 | C43: Emgasud Parana Repair Ser Fee | D43: 101170 | E43: 238832.5 | F43: 244953.4 | G43: 0 | H43: 0 | I43: =163832.5+56250 -> 220082.5 | J43: 0 | K43: =238832.5-18750 -> 220082.5 | L43: =+G43-H43 -> 0 | M43: =VLOOKUP(B43,[1]Projects!$B:$L,11,0) -> I | N43: 0 | O43: 106250 | P43: =+G43-Y43 -> 0 | Q43: =+H43-Z43 -> 0 | R43: =+H43/F43 -> 0 | S43: =+G43/E43 -> 0 | T43: =IF(K43>G43,K43-G43,0) -> 220082.5 | U43: =IF(G43>K43,G43-K43,0) -> 0 | V43: =+R43-S43 -> 0 | W43: =+I43-T43 -> 0 | X43: =+J43-U43 -> 0 | Y43: 0 | Z43: 0
A44: CITYO000020CLEM | B44: 410-3110 | C44: GE 35 MW Steam Turbine Inspec | D44: 104002 | E44: 238626 | F44: 185432.34 | G44: 162361.13 | H44: 126173.44 | I44: 0 | J44: 43048.13 | K44: 119313 | L44: =+G44-H44 -> 36187.69 | M44: =VLOOKUP(B44,[1]Projects!$B:$L,11,0) -> D | N44: 36187.69 | O44: 0 | P44: =+G44-Y44 -> 66051.68 | Q44: =+H44-Z44 -> 51326.47 | R44: =+H44/F44 -> 0.6804284517 | S44: =+G44/E44 -> 0.6803999983 | T44: =IF(K44>G44,K44-G44,0) -> 0 | U44: =IF(G44>K44,G44-K44,0) -> 43048.13 | V44: =+R44-S44 -> 2.845336921e-05 | W44: =+I44-T44 -> 0 | X44: =+J44-U44 -> 0 | Y44: 96309.45 | Z44: 74846.97
A45: SEPTAG001 | B45: 409-2302 | C45: Sedalia Streetscapes | D45: 104013 | E45: 235226.25 | F45: 304654.42 | G45: 235226.25 | H45: 304654.42 | I45: 0 | J45: 0 | K45: 235226.25 | L45: =+G45-H45 -> -69428.17 | M45: =VLOOKUP(B45,[1]Projects!$B:$L,11,0) -> D | N45: -69428.17 | O45: 235226.25 | P45: =+G45-Y45 -> 0 | Q45: =+H45-Z45 -> 0 | R45: =+H45/F45 -> 1 | S45: =+G45/E45 -> 1 | T45: =IF(K45>G45,K45-G45,0) -> 0 | U45: =IF(G45>K45,G45-K45,0) -> 0 | V45: =+R45-S45 -> 0 | W45: =+I45-T45 -> 0 | X45: =+J45-U45 -> 0 | Y45: 235226.25 | Z45: 304654.42
A46: OG&E001 | B46: 409-2828 REV 2 | C46: HRSG Perforated Plates | D46: 104012 | E46: 211200 | F46: 187603.2 | G46: 188728.32 | H46: 167649.02 | I46: 22471.68 | J46: 0 | K46: 211200 | L46: =+G46-H46 -> 21079.3 | M46: =VLOOKUP(B46,[1]Projects!$B:$L,11,0) -> D | N46: 21079.3 | O46: 211200 | P46: =+G46-Y46 -> 21.12 | Q46: =+H46-Z46 -> 30 | R46: =+H46/F46 -> 0.8936362493 | S46: =+G46/E46 -> 0.8936 | T46: =IF(K46>G46,K46-G46,0) -> 22471.68 | U46: =IF(G46>K46,G46-K46,0) -> 0 | V46: =+R46-S46 -> 3.624927507e-05 | W46: =+I46-T46 -> 0 | X46: =+J46-U46 -> 0 | Y46: 188707.2 | Z46: 167619.02
A47: OMU001 | B47: 409-2659 | C47: Air Heater Basket Replacement | D47: 104012 | E47: 199440 | F47: 100991.05 | G47: 199440 | H47: 100991.05 | I47: 0 | J47: 0 | K47: 199440 | L47: =+G47-H47 -> 98448.95 | M47: =VLOOKUP(B47,[1]Projects!$B:$L,11,0) -> D | N47: 98448.95 | O47: 199440 | P47: =+G47-Y47 -> 0 | Q47: =+H47-Z47 -> 0 | R47: =+H47/F47 -> 1 | S47: =+G47/E47 -> 1 | T47: =IF(K47>G47,K47-G47,0) -> 0 | U47: =IF(G47>K47,G47-K47,0) -> 0 | V47: =+R47-S47 -> 0 | W47: =+I47-T47 -> 0 | X47: =+J47-U47 -> 0 | Y47: 199440 | Z47: 100991.05
A48: CITYOFSP001 | B48: 410-3163 | C48: Steam Drum Internals Repl | D48: 104012 | E48: 195575.63 | F48: 145648.17 | G48: 182902.33 | H48: 136205.95 | I48: 12673.3 | J48: 0 | K48: 195575.63 | L48: =+G48-H48 -> 46696.38 | M48: =VLOOKUP(B48,[1]Projects!$B:$L,11,0) -> D | N48: 46696.38 | O48: 195575.63 | P48: =+G48-Y48 -> 1193.01 | Q48: =+H48-Z48 -> 885.72 | R48: =+H48/F48 -> 0.9351710358 | S48: =+G48/E48 -> 0.9352000042 | T48: =IF(K48>G48,K48-G48,0) -> 12673.3 | U48: =IF(G48>K48,G48-K48,0) -> 0 | V48: =+R48-S48 -> -2.896842195e-05 | W48: =+I48-T48 -> -1.818989404e-11 | X48: =+J48-U48 -> 0 | Y48: 181709.32 | Z48: 135320.23
A49: ISOLUX001 | B49: 109-2785 BMOB | C49: Batanga Mobilization | D49: 101210 | E49: 161000 | F49: 116000 | G49: 126562.1 | H49: 90905.51 | I49: 34437.9 | J49: 0 | K49: 161000 | L49: =+G49-H49 -> 35656.59 | M49: =VLOOKUP(B49,[1]Projects!$B:$L,11,0) -> I | N49: 35656.59 | O49: 0 | P49: =+G49-Y49 -> 386.4 | Q49: =+H49-Z49 -> 0 | R49: =+H49/F49 -> 0.7836681897 | S49: =+G49/E49 -> 0.7861 | T49: =IF(K49>G49,K49-G49,0) -> 34437.9 | U49: =IF(G49>K49,G49-K49,0) -> 0 | V49: =+R49-S49 -> -0.002431810345 | W49: =+I49-T49 -> 0 | X49: =+J49-U49 -> 0 | Y49: 126175.7 | Z49: 90905.51
C50: Total Projects < $150K | E50: =E100 -> 1537793.43 | F50: =F100 -> 1342450.65 | G50: 1279315.39 | H50: 1237401.88 | I50: 70351.18 | J50: 172607.14 | K50: 1177059.43 | L50: 41913.51 | N50: 41913.51 | O50: 943172.85 | P50: 135168.97 | Q50: 115555.48 | R50: 33.62153196 | S50: 31.80157651 | T50: 70351.18 | U50: 172607.14 | V50: 1.819955452 | W50: 0 | X50: 0 | Y50: 1144146.42 | Z50: 1121846.4
C52: Total Revenue Recognition | E52: =SUM(E2:E51) -> 715435832.6 | F52: =SUM(F2:F51) -> 636666039.6 | G52: 169156547.8 | H52: 150405771.4 | I52: 140520250.9 | J52: 9569695.81 | K52: 300107102.9 | L52: =SUM(L2:L51) -> 18750776.41 | M52: =SUM(M2:M51) ->  | N52: =SUM(N2:N51) -> 18750776.41 | O52: 203187019 | P52: 29242264.45 | Q52: 30945272.15 | R52: 57.92655059 | S52: 56.60061735 | T52: 140520250.9 | U52: 9569695.81 | V52: 1.325900886 | W52: -1.818989404e-11 | X52: 6.4028427e-10 | Y52: 120349732.3 | Z52: 104355472
A57: EPS001 | B57: 510-3156 | C57: ABB Backup Generator Repair | D57: 105008 | E57: 140793.79 | F57: 116000 | G57: 88122.83 | H57: 72600.08 | I57: 52670.96 | J57: 0 | K57: 140793.79 | L57: =+G57-H57 -> 15522.75 | M57: =VLOOKUP(B57,[1]Projects!$B:$L,11,0) ->  | O57: 140793.79 | P57: =+G57-Y57 -> 14781.52 | Q57: =+H57-Z57 -> 16298.61 | R57: =+H57/F57 -> 0.6258627586 | S57: =+G57/E57 -> 0.6258999775 | T57: =IF(K57>G57,K57-G57,0) -> 52670.96 | U57: =IF(G57>K57,G57-K57,0) -> 0 | V57: =+R57-S57 -> -3.721892804e-05 | W57: =+I57-T57 -> 0 | X57: =+J57-U57 -> 0 | Y57: 73341.31 | Z57: 56301.47
A58: MWALLSTAR001 | B58: 409-2764 REV 1 | C58: HS 3030 Network Fire Alarm | D58: 104014 | E58: 140000 | F58: 107597.73 | G58: 140000 | H58: 107597.73 | I58: 0 | J58: 0 | K58: 140000 | L58: =+G58-H58 -> 32402.27 | M58: =VLOOKUP(B58,[1]Projects!$B:$L,11,0) ->  | O58: 126000 | P58: =+G58-Y58 -> 0 | Q58: =+H58-Z58 -> 0 | R58: =+H58/F58 -> 1 | S58: =+G58/E58 -> 1 | T58: =IF(K58>G58,K58-G58,0) -> 0 | U58: =IF(G58>K58,G58-K58,0) -> 0 | V58: =+R58-S58 -> 0 | W58: =+I58-T58 -> 0 | X58: =+J58-U58 -> 0 | Y58: 140000 | Z58: 107597.73
A59: COIL001 | B59: FS08-1124 REV4 | C59: PW Facility Warrensburg, MO | D59: 104005 | E59: 130782 | F59: 276284.15 | G59: 130782 | H59: 276284.15 | I59: 0 | J59: 0 | K59: 130782 | L59: =+G59-H59 -> -145502.15 | M59: =VLOOKUP(B59,[1]Projects!$B:$L,11,0) ->  | O59: 117703.8 | P59: =+G59-Y59 -> 0 | Q59: =+H59-Z59 -> 0 | R59: =+H59/F59 -> 1 | S59: =+G59/E59 -> 1 | T59: =IF(K59>G59,K59-G59,0) -> 0 | U59: =IF(G59>K59,G59-K59,0) -> 0 | V59: =+R59-S59 -> 0 | W59: =+I59-T59 -> 0 | X59: =+J59-U59 -> 0 | Y59: 130782 | Z59: 276284.15
A60: CALEN000020HWEM | B60: 409-2942 REV 1 | C60: CI & Alignment Steam Turbine | D60: 104002 | E60: 112092 | F60: 103385.64 | G60: 112092 | H60: 103385.64 | I60: 0 | J60: 0 | K60: 112092 | L60: =+G60-H60 -> 8706.36 | M60: =VLOOKUP(B60,[1]Projects!$B:$L,11,0) ->  | O60: 12692 | P60: =+G60-Y60 -> 0 | Q60: =+H60-Z60 -> 0 | R60: =+H60/F60 -> 1 | S60: =+G60/E60 -> 1 | T60: =IF(K60>G60,K60-G60,0) -> 0 | U60: =IF(G60>K60,G60-K60,0) -> 0 | V60: =+R60-S60 -> 0 | W60: =+I60-T60 -> 0 | X60: =+J60-U60 -> 0 | Y60: 112092 | Z60: 103385.64
A61: EMERS001 | B61: FS08-1251 REV 2 | C61: Mark V Engr Lead | D61: 105004 | E61: 106750 | F61: 73040 | G61: 106750 | H61: 161048.59 | I61: 0 | J61: 10675 | K61: 96075 | L61: =+G61-H61 -> -54298.59 | M61: =VLOOKUP(B61,[1]Projects!$B:$L,11,0) ->  | O61: 96075 | P61: =+G61-Y61 -> 0 | Q61: =+H61-Z61 -> 0 | R61: =+H61/F61 -> 2.204936884 | S61: =+G61/E61 -> 1 | T61: =IF(K61>G61,K61-G61,0) -> 0 | U61: =IF(G61>K61,G61-K61,0) -> 10675 | V61: =+R61-S61 -> 1.204936884 | W61: =+I61-T61 -> 0 | X61: =+J61-U61 -> 0 | Y61: 106750 | Z61: 161048.59
A62: CITYO000020CLEM | B62: 410-3110 EW01 | C62: Steam Turbine Overhaul | D62: 104002 | E62: 95940 | F62: 79950 | G62: 47970 | H62: 39975 | I62: 0 | J62: 47970 | K62: 0 | L62: =+G62-H62 -> 7995 | M62: =VLOOKUP(B62,[1]Projects!$B:$L,11,0) ->  | O62: 0 | P62: =+G62-Y62 -> 47970 | Q62: =+H62-Z62 -> 39975 | R62: =+H62/F62 -> 0.5 | S62: =+G62/E62 -> 0.5 | T62: =IF(K62>G62,K62-G62,0) -> 0 | U62: =IF(G62>K62,G62-K62,0) -> 47970 | V62: =+R62-S62 -> 0 | W62: =+I62-T62 -> 0 | X62: =+J62-U62 -> 0 | Y62: 0 | Z62: 0
A63: HASTING001 | B63: 610-3220 | C63: Steam Seal Modification | D63: 100001 | E63: 91468 | F63: 68203.07 | G63: 91468 | H63: 57816.63 | I63: 0 | J63: 0 | K63: 91468 | L63: =+G63-H63 -> 33651.37 | M63: =VLOOKUP(B63,[1]Projects!$B:$L,11,0) ->  | O63: 88723.96 | P63: =+G63-Y63 -> 0 | Q63: =+H63-Z63 -> 106.58 | R63: =+H63/F63 -> 0.8477130135 | S63: =+G63/E63 -> 1 | T63: =IF(K63>G63,K63-G63,0) -> 0 | U63: =IF(G63>K63,G63-K63,0) -> 0 | V63: =+R63-S63 -> -0.1522869865 | W63: =+I63-T63 -> 0 | X63: =+J63-U63 -> 0 | Y63: 91468 | Z63: 57710.05
A64: MWALLSTAR001 | B64: 409-2843 REV 3 | C64: WAFB T-9 | D64: 104013 | E64: 72318 | F64: 60404.65 | G64: 56914.27 | H64: 47535.33 | I64: 15403.73 | J64: 0 | K64: 72318 | L64: =+G64-H64 -> 9378.94 | M64: =VLOOKUP(B64,[1]Projects!$B:$L,11,0) ->  | O64: 0 | P64: =+G64-Y64 -> 1366.81 | Q64: =+H64-Z64 -> 1136.06 | R64: =+H64/F64 -> 0.7869481902 | S64: =+G64/E64 -> 0.7870000553 | T64: =IF(K64>G64,K64-G64,0) -> 15403.73 | U64: =IF(G64>K64,G64-K64,0) -> 0 | V64: =+R64-S64 -> -5.186506432e-05 | W64: =+I64-T64 -> 0 | X64: =+J64-U64 -> 0 | Y64: 55547.46 | Z64: 46399.27
A65: VICWLE001 | B65: 409-2958 | C65: Steam Valve Inspection | D65: 104002 | E65: 67055 | F65: 50374.97 | G65: 67055 | H65: 50374.97 | I65: 0 | J65: 0 | K65: 67055 | L65: =+G65-H65 -> 16680.03 | M65: =VLOOKUP(B65,[1]Projects!$B:$L,11,0) ->  | O65: 67055 | P65: =+G65-Y65 -> 0 | Q65: =+H65-Z65 -> 0 | R65: =+H65/F65 -> 1 | S65: =+G65/E65 -> 1 | T65: =IF(K65>G65,K65-G65,0) -> 0 | U65: =IF(G65>K65,G65-K65,0) -> 0 | V65: =+R65-S65 -> 0 | W65: =+I65-T65 -> 0 | X65: =+J65-U65 -> 0 | Y65: 67055 | Z65: 50374.97
A66: CONSTRUCTION001 | B66: 210-3148 | C66: Field Engineer | D66: 100001 | E66: 49489 | F66: 23930.46 | G66: 49489 | H66: 23930.46 | I66: 0 | J66: 0 | K66: 49489 | L66: =+G66-H66 -> 25558.54 | M66: =VLOOKUP(B66,[1]Projects!$B:$L,11,0) ->  | O66: 49489 | P66: =+G66-Y66 -> 0 | Q66: =+H66-Z66 -> 1330.34 | R66: =+H66/F66 -> 1 | S66: =+G66/E66 -> 1 | T66: =IF(K66>G66,K66-G66,0) -> 0 | U66: =IF(G66>K66,G66-K66,0) -> 0 | V66: =+R66-S66 -> 0 | W66: =+I66-T66 -> 0 | X66: =+J66-U66 -> 0 | Y66: 49489 | Z66: 22600.12
A67: SEPTAG001 | B67: 409-2847 | C67: Biosolids Composting Facility | D67: 104013 | E67: 46754 | F67: 40671.13 | G67: 45468.27 | H67: 39554.44 | I67: 0 | J67: 28007.27 | K67: 17461 | L67: =+G67-H67 -> 5913.83 | M67: =VLOOKUP(B67,[1]Projects!$B:$L,11,0) ->  | O67: 15714.9 | P67: =+G67-Y67 -> 18364.98 | Q67: =+H67-Z67 -> 15977.67 | R67: =+H67/F67 -> 0.9725434233 | S67: =+G67/E67 -> 0.9725001069 | T67: =IF(K67>G67,K67-G67,0) -> 0 | U67: =IF(G67>K67,G67-K67,0) -> 28007.27 | V67: =+R67-S67 -> 4.331636516e-05 | W67: =+I67-T67 -> 0 | X67: =+J67-U67 -> 0 | Y67: 27103.29 | Z67: 23576.77
A68: MWALLSTAR001 | B68: 409-2844 REV 1 | C68: Upgrade Dormitory Campus | D68: 104013 | E68: 45320 | F68: 39411.14 | G68: 16981.4 | H68: 14768.09 | I68: 0 | J68: 16981.4 | K68: 0 | L68: =+G68-H68 -> 2213.31 | M68: =VLOOKUP(B68,[1]Projects!$B:$L,11,0) ->  | O68: 0 | P68: =+G68-Y68 -> 58.91 | Q68: =+H68-Z68 -> 52.87 | R68: =+H68/F68 -> 0.3747186709 | S68: =+G68/E68 -> 0.3746999117 | T68: =IF(K68>G68,K68-G68,0) -> 0 | U68: =IF(G68>K68,G68-K68,0) -> 16981.4 | V68: =+R68-S68 -> 1.875917511e-05 | W68: =+I68-T68 -> 0 | X68: =+J68-U68 -> 0 | Y68: 16922.49 | Z68: 14715.22
A69: TRISTATE001 | B69: 410-3219 | C69: Exhaust Welding | D69: 104005 | E69: 42825 | F69: 17394.51 | G69: 42825 | H69: 17394.51 | I69: 0 | J69: 0 | K69: 42825 | L69: =+G69-H69 -> 25430.49 | M69: =VLOOKUP(B69,[1]Projects!$B:$L,11,0) ->  | O69: 42825 | P69: =+G69-Y69 -> 0 | Q69: =+H69-Z69 -> 66.71 | R69: =+H69/F69 -> 1 | S69: =+G69/E69 -> 1 | T69: =IF(K69>G69,K69-G69,0) -> 0 | U69: =IF(G69>K69,G69-K69,0) -> 0 | V69: =+R69-S69 -> 0 | W69: =+I69-T69 -> 0 | X69: =+J69-U69 -> 0 | Y69: 42825 | Z69: 17327.8
A70: KCPL001 | B70: 410-3223 | C70: Transformer Fire Protection | D70: 104014 | E70: 40905 | F70: 29692.21 | G70: 40905 | H70: 29692.21 | I70: 0 | J70: 0 | K70: 40905 | L70: =+G70-H70 -> 11212.79 | M70: =VLOOKUP(B70,[1]Projects!$B:$L,11,0) ->  | O70: 40905 | P70: =+G70-Y70 -> 355.87 | Q70: =+H70-Z70 -> 1491.54 | R70: =+H70/F70 -> 1 | S70: =+G70/E70 -> 1 | T70: =IF(K70>G70,K70-G70,0) -> 0 | U70: =IF(G70>K70,G70-K70,0) -> 0 | V70: =+R70-S70 -> 0 | W70: =+I70-T70 -> 0 | X70: =+J70-U70 -> 0 | Y70: 40549.13 | Z70: 28200.67
A71: TOSHAMER001 | B71: 2009-05 | C71: Technical Training - Whelan | D71: 105003 | E71: 30000 | F71: 13875 | G71: 30000 | H71: 11955.15 | I71: 0 | J71: 0 | K71: 30000 | L71: =+G71-H71 -> 18044.85 | M71: =VLOOKUP(B71,[1]Projects!$B:$L,11,0) ->  | O71: 30000 | P71: =+G71-Y71 -> 0 | Q71: =+H71-Z71 -> 0 | R71: =+H71/F71 -> 0.8616324324 | S71: =+G71/E71 -> 1 | T71: =IF(K71>G71,K71-G71,0) -> 0 | U71: =IF(G71>K71,G71-K71,0) -> 0 | V71: =+R71-S71 -> -0.1383675676 | W71: =+I71-T71 -> 0 | X71: =+J71-U71 -> 0 | Y71: 30000 | Z71: 11955.15
A72: CITYSEDALIA001 | B72: 409-3107 | C72: Liberty Park | D72: 104013 | E72: 26475 | F72: 21118.38 | G72: 22043.09 | H72: 17583.99 | I72: 0 | J72: 863.09 | K72: 21180 | L72: =+G72-H72 -> 4459.1 | M72: =VLOOKUP(B72,[1]Projects!$B:$L,11,0) ->  | O72: 19062 | P72: =+G72-Y72 -> 0 | Q72: =+H72-Z72 -> 0 | R72: =+H72/F72 -> 0.8326391513 | S72: =+G72/E72 -> 0.8326001889 | T72: =IF(K72>G72,K72-G72,0) -> 0 | U72: =IF(G72>K72,G72-K72,0) -> 863.09 | V72: =+R72-S72 -> 3.896244112e-05 | W72: =+I72-T72 -> 0 | X72: =+J72-U72 -> 0 | Y72: 22043.09 | Z72: 17583.99
A73: MCCONEX001 | B73: 409-2732 | C73: Traffic Signal Work | D73: 104013 | E73: 26419 | F73: 23625.47 | G73: 17193.49 | H73: 15375.78 | I73: 0 | J73: 17193.49 | K73: 0 | L73: =+G73-H73 -> 1817.71 | M73: =VLOOKUP(B73,[1]Projects!$B:$L,11,0) ->  | O73: 0 | P73: =+G73-Y73 -> 3241.62 | Q73: =+H73-Z73 -> 2900.37 | R73: =+H73/F73 -> 0.6508137193 | S73: =+G73/E73 -> 0.6508001817 | T73: =IF(K73>G73,K73-G73,0) -> 0 | U73: =IF(G73>K73,G73-K73,0) -> 17193.49 | V73: =+R73-S73 -> 1.353757404e-05 | W73: =+I73-T73 -> 0 | X73: =+J73-U73 -> 0 | Y73: 13951.87 | Z73: 12475.41
A74: AMERENUE001 | B74: 109-2899 MOB | C74: June'10 Ameren Mobilization | D74: 105009 | E74: 26400 | F74: 23760 | G74: 26400 | H74: 43673.4 | I74: 0 | J74: 0 | K74: 26400 | L74: =+G74-H74 -> -17273.4 | M74: =VLOOKUP(B74,[1]Projects!$B:$L,11,0) ->  | O74: 26400 | P74: =+G74-Y74 -> 4994.88 | Q74: =+H74-Z74 -> 24409.05 | R74: =+H74/F74 -> 1.838106061 | S74: =+G74/E74 -> 1 | T74: =IF(K74>G74,K74-G74,0) -> 0 | U74: =IF(G74>K74,G74-K74,0) -> 0 | V74: =+R74-S74 -> 0.8381060606 | W74: =+I74-T74 -> 0 | X74: =+J74-U74 -> 0 | Y74: 21405.12 | Z74: 19264.35
A75: LG&E001 | B75: 410-3158 | C75: Reaction Tank Rehabilitation | D75: 104012 | E75: 26015 | F75: 39586.22 | G75: 26015 | H75: 39586.22 | I75: 0 | J75: 0 | K75: 26015 | L75: =+G75-H75 -> -13571.22 | M75: =VLOOKUP(B75,[1]Projects!$B:$L,11,0) ->  | O75: 26015 | P75: =+G75-Y75 -> 0 | Q75: =+H75-Z75 -> 325 | R75: =+H75/F75 -> 1 | S75: =+G75/E75 -> 1 | T75: =IF(K75>G75,K75-G75,0) -> 0 | U75: =IF(G75>K75,G75-K75,0) -> 0 | V75: =+R75-S75 -> 0 | W75: =+I75-T75 -> 0 | X75: =+J75-U75 -> 0 | Y75: 26015 | Z75: 39261.22
A76: MIDADMERICAN | B76: 509-2549 REV 2 | C76: Replacement Spot Type Heat | D76: 104014 | E76: 22932 | F76: 15881.46 | G76: 0 | H76: 0 | I76: 0 | J76: 0 | K76: 0 | L76: =+G76-H76 -> 0 | M76: =VLOOKUP(B76,[1]Projects!$B:$L,11,0) ->  | O76: 0 | P76: =+G76-Y76 -> 0 | Q76: =+H76-Z76 -> 0 | R76: =+H76/F76 -> 0 | S76: =+G76/E76 -> 0 | T76: =IF(K76>G76,K76-G76,0) -> 0 | U76: =IF(G76>K76,G76-K76,0) -> 0 | V76: =+R76-S76 -> 0 | W76: =+I76-T76 -> 0 | X76: =+J76-U76 -> 0 | Y76: 0 | Z76: 0
A77: TRISTATE001 | B77: 410-3375 | C77: Fire Protection Audit | D77: 104014 | E77: 21731 | F77: 4545.18 | G77: 21731 | H77: 4545.18 | I77: 0 | J77: 0 | K77: 21731 | L77: =+G77-H77 -> 17185.82 | M77: =VLOOKUP(B77,[1]Projects!$B:$L,11,0) ->  | O77: 21731 | P77: =+G77-Y77 -> 17615.15 | Q77: =+H77-Z77 -> 1380.17 | R77: =+H77/F77 -> 1 | S77: =+G77/E77 -> 1 | T77: =IF(K77>G77,K77-G77,0) -> 0 | U77: =IF(G77>K77,G77-K77,0) -> 0 | V77: =+R77-S77 -> 0 | W77: =+I77-T77 -> 0 | X77: =+J77-U77 -> 0 | Y77: 4115.85 | Z77: 3165.01
A78: TOSHI000020H7EM | B78: 2010-01 | C78: Tech Training- SW Utilities | D78: 105003 | E78: 18500 | F78: 13712 | G78: 18500 | H78: 7775.29 | I78: 0 | J78: 18500 | K78: 0 | L78: =+G78-H78 -> 10724.71 | M78: =VLOOKUP(B78,[1]Projects!$B:$L,11,0) ->  | O78: 0 | P78: =+G78-Y78 -> 11024.15 | Q78: =+H78-Z78 -> 2234.59 | R78: =+H78/F78 -> 0.5670427363 | S78: =+G78/E78 -> 1 | T78: =IF(K78>G78,K78-G78,0) -> 0 | U78: =IF(G78>K78,G78-K78,0) -> 18500 | V78: =+R78-S78 -> -0.4329572637 | W78: =+I78-T78 -> 0 | X78: =+J78-U78 -> 0 | Y78: 7475.85 | Z78: 5540.7
A79: TOSHI000020H7EM | B79: 2010-02 | C79: Tech Training - Prairie States | D79: 105003 | E79: 18500 | F79: 13712 | G79: 16412.75 | H79: 7083.05 | I79: 0 | J79: 16412.75 | K79: 0 | L79: =+G79-H79 -> 9329.7 | M79: =VLOOKUP(B79,[1]Projects!$B:$L,11,0) ->  | O79: 0 | P79: =+G79-Y79 -> 6950 | Q79: =+H79-Z79 -> 69.2 | R79: =+H79/F79 -> 0.5165584889 | S79: =+G79/E79 -> 0.8871756757 | T79: =IF(K79>G79,K79-G79,0) -> 0 | U79: =IF(G79>K79,G79-K79,0) -> 16412.75 | V79: =+R79-S79 -> -0.3706171868 | W79: =+I79-T79 -> 0 | X79: =+J79-U79 -> 0 | Y79: 9462.75 | Z79: 7013.85
A80: TOSHI000020H7EM | B80: 2010-05 | C80: Tech Training Prairie States | D80: 105003 | E80: 18500 | F80: 8019.6 | G80: 4436.3 | H80: 1923.2 | I80: 0 | J80: 4436.3 | K80: 0 | L80: =+G80-H80 -> 2513.1 | M80: =VLOOKUP(B80,[1]Projects!$B:$L,11,0) ->  | O80: 0 | P80: =+G80-Y80 -> 4436.3 | Q80: =+H80-Z80 -> 1923.2 | R80: =+H80/F80 -> 0.2398124595 | S80: =+G80/E80 -> 0.2398 | T80: =IF(K80>G80,K80-G80,0) -> 0 | U80: =IF(G80>K80,G80-K80,0) -> 4436.3 | V80: =+R80-S80 -> 1.245947429e-05 | W80: =+I80-T80 -> 0 | X80: =+J80-U80 -> 0 | Y80: 0 | Z80: 0
A81: MWALLSTAR001 | B81: 410-3370 | C81: Sprinkler System Bldg 4076 | D81: 304014 | E81: 15293 | F81: 10705 | G81: 0 | H81: 0 | I81: 0 | J81: 0 | K81: 0 | L81: =+G81-H81 -> 0 | M81: =VLOOKUP(B81,[1]Projects!$B:$L,11,0) ->  | O81: 0 | P81: =+G81-Y81 -> 0 | Q81: =+H81-Z81 -> 0 | R81: =+H81/F81 -> 0 | S81: =+G81/E81 -> 0 | T81: =IF(K81>G81,K81-G81,0) -> 0 | U81: =IF(G81>K81,G81-K81,0) -> 0 | V81: =+R81-S81 -> 0 | W81: =+I81-T81 -> 0 | X81: =+J81-U81 -> 0 | Y81: 0 | Z81: 0
A82: AMERENUE001 | B82: 410-3218 GOOSE | C82: Borescope Inspections | D82: 104005 | E82: 13212 | F82: 7582.1 | G82: 0 | H82: 0 | I82: 0 | J82: 0 | K82: 0 | L82: =+G82-H82 -> 0 | M82: =VLOOKUP(B82,[1]Projects!$B:$L,11,0) ->  | O82: 0 | P82: =+G82-Y82 -> 0 | Q82: =+H82-Z82 -> 0 | R82: =+H82/F82 -> 0 | S82: =+G82/E82 -> 0 | T82: =IF(K82>G82,K82-G82,0) -> 0 | U82: =IF(G82>K82,G82-K82,0) -> 0 | V82: =+R82-S82 -> 0 | W82: =+I82-T82 -> 0 | X82: =+J82-U82 -> 0 | Y82: 0 | Z82: 0
A83: MWALLSTAR001 | B83: 410-3444 | C83: Bldg 1117 Fire Protection | D83: 304014 | E83: 12205 | F83: 9259 | G83: 1331.57 | H83: 1009.8 | I83: 0 | J83: 1331.57 | K83: 0 | L83: =+G83-H83 -> 321.77 | M83: =VLOOKUP(B83,[1]Projects!$B:$L,11,0) ->  | O83: 0 | P83: =+G83-Y83 -> 0 | Q83: =+H83-Z83 -> 0 | R83: =+H83/F83 -> 0.1090614537 | S83: =+G83/E83 -> 0.1091003687 | T83: =IF(K83>G83,K83-G83,0) -> 0 | U83: =IF(G83>K83,G83-K83,0) -> 1331.57 | V83: =+R83-S83 -> -3.891498065e-05 | W83: =+I83-T83 -> 0 | X83: =+J83-U83 -> 0 | Y83: 1331.57 | Z83: 1009.8
A84: JOHNCONTBLD001 | B84: FS08-1417 CO | C84: WAFB Boiler #2 Repairs | D84: 105004 | E84: 10391 | F84: 7000 | G84: 10391 | H84: 9056.68 | I84: 0 | J84: 0 | K84: 10391 | L84: =+G84-H84 -> 1334.32 | M84: =VLOOKUP(B84,[1]Projects!$B:$L,11,0) ->  | O84: 0 | P84: =+G84-Y84 -> 0 | Q84: =+H84-Z84 -> 198.88 | R84: =+H84/F84 -> 1.293811429 | S84: =+G84/E84 -> 1 | T84: =IF(K84>G84,K84-G84,0) -> 0 | U84: =IF(G84>K84,G84-K84,0) -> 0 | V84: =+R84-S84 -> 0.2938114286 | W84: =+I84-T84 -> 0 | X84: =+J84-U84 -> 0 | Y84: 10391 | Z84: 8857.8
A85: TOSHI000020H7EM | B85: 2010-03 | C85: Tech Training-Belledune | D85: 105003 | E85: 10100 | F85: 7496.4 | G85: 10100 | H85: 11824.74 | I85: 0 | J85: 10100 | K85: 0 | L85: =+G85-H85 -> -1724.74 | M85: =VLOOKUP(B85,[1]Projects!$B:$L,11,0) ->  | O85: 0 | P85: =+G85-Y85 -> 0 | Q85: =+H85-Z85 -> 2740.92 | R85: =+H85/F85 -> 1.577389147 | S85: =+G85/E85 -> 1 | T85: =IF(K85>G85,K85-G85,0) -> 0 | U85: =IF(G85>K85,G85-K85,0) -> 10100 | V85: =+R85-S85 -> 0.5773891468 | W85: =+I85-T85 -> 0 | X85: =+J85-U85 -> 0 | Y85: 10100 | Z85: 9083.82
A86: AMERENUE001 | B86: 410-3218 RAC CK | C86: Borescope Inspections | D86: 104005 | E86: 9600 | F86: 5087.2 | G86: 0 | H86: 0 | I86: 0 | J86: 0 | K86: 0 | L86: =+G86-H86 -> 0 | M86: =VLOOKUP(B86,[1]Projects!$B:$L,11,0) ->  | O86: 0 | P86: =+G86-Y86 -> 0 | Q86: =+H86-Z86 -> 0 | R86: =+H86/F86 -> 0 | S86: =+G86/E86 -> 0 | T86: =IF(K86>G86,K86-G86,0) -> 0 | U86: =IF(G86>K86,G86-K86,0) -> 0 | V86: =+R86-S86 -> 0 | W86: =+I86-T86 -> 0 | X86: =+J86-U86 -> 0 | Y86: 0 | Z86: 0
A87: WATERL001 | B87: 410-3461 | C87: Air Header Installation | D87: 104012 | E87: 9446 | F87: 7289.6 | G87: 7169.51 | H87: 5532.68 | I87: 2276.49 | J87: 0 | K87: 9446 | L87: =+G87-H87 -> 1636.83 | M87: =VLOOKUP(B87,[1]Projects!$B:$L,11,0) ->  | O87: 0 | P87: =+G87-Y87 -> 528.97 | Q87: =+H87-Z87 -> 408.48 | R87: =+H87/F87 -> 0.7589826602 | S87: =+G87/E87 -> 0.7589995765 | T87: =IF(K87>G87,K87-G87,0) -> 2276.49 | U87: =IF(G87>K87,G87-K87,0) -> 0 | V87: =+R87-S87 -> -1.691631206e-05 | W87: =+I87-T87 -> 0 | X87: =+J87-U87 -> 0 | Y87: 6640.54 | Z87: 5124.2
A88: HAYES001 | B88: 409-2935 | C88: Load Center Cleaning | D88: 104013 | E88: 8730 | F88: 2144.5 | G88: 8730 | H88: 2144.5 | I88: 0 | J88: 0 | K88: 8730 | L88: =+G88-H88 -> 6585.5 | M88: =VLOOKUP(B88,[1]Projects!$B:$L,11,0) ->  | O88: 8730 | P88: =+G88-Y88 -> 0 | Q88: =+H88-Z88 -> 0 | R88: =+H88/F88 -> 1 | S88: =+G88/E88 -> 1 | T88: =IF(K88>G88,K88-G88,0) -> 0 | U88: =IF(G88>K88,G88-K88,0) -> 0 | V88: =+R88-S88 -> 0 | W88: =+I88-T88 -> 0 | X88: =+J88-U88 -> 0 | Y88: 8730 | Z88: 2144.5
A89: AMERENUE001 | B89: 410-3218 KINMUN | C89: Borescope Inspections | D89: 104005 | E89: 6787 | F89: 3735.9 | G89: 0 | H89: 0 | I89: 0 | J89: 0 | K89: 0 | L89: =+G89-H89 -> 0 | M89: =VLOOKUP(B89,[1]Projects!$B:$L,11,0) ->  | O89: 0 | P89: =+G89-Y89 -> 0 | Q89: =+H89-Z89 -> 0 | R89: =+H89/F89 -> 0 | S89: =+G89/E89 -> 0 | T89: =IF(K89>G89,K89-G89,0) -> 0 | U89: =IF(G89>K89,G89-K89,0) -> 0 | V89: =+R89-S89 -> 0 | W89: =+I89-T89 -> 0 | X89: =+J89-U89 -> 0 | Y89: 0 | Z89: 0
A90: WALDINGER001 | B90: 409-2951 | C90: T9 HVAC WAFB | D90: 104013 | E90: 6212.3 | F90: 10478.69 | G90: 6212.3 | H90: 10478.69 | I90: 0 | J90: 0 | K90: 6212.3 | L90: =+G90-H90 -> -4266.39 | M90: =VLOOKUP(B90,[1]Projects!$B:$L,11,0) ->  | O90: 0 | P90: =+G90-Y90 -> 0 | Q90: =+H90-Z90 -> 2413.24 | R90: =+H90/F90 -> 1 | S90: =+G90/E90 -> 1 | T90: =IF(K90>G90,K90-G90,0) -> 0 | U90: =IF(G90>K90,G90-K90,0) -> 0 | V90: =+R90-S90 -> 0 | W90: =+I90-T90 -> 0 | X90: =+J90-U90 -> 0 | Y90: 6212.3 | Z90: 8065.45
A91: AMERENUE001 | B91: 410-3314 | C91: Gas Leak Repairs | D91: 104005 | E91: 4000 | F91: 1172.07 | G91: 4000 | H91: 1172.07 | I91: 0 | J91: 0 | K91: 4000 | L91: =+G91-H91 -> 2827.93 | M91: =VLOOKUP(B91,[1]Projects!$B:$L,11,0) ->  | O91: 4000 | P91: =+G91-Y91 -> 0 | Q91: =+H91-Z91 -> 0 | R91: =+H91/F91 -> 1 | S91: =+G91/E91 -> 1 | T91: =IF(K91>G91,K91-G91,0) -> 0 | U91: =IF(G91>K91,G91-K91,0) -> 0 | V91: =+R91-S91 -> 0 | W91: =+I91-T91 -> 0 | X91: =+J91-U91 -> 0 | Y91: 4000 | Z91: 1172.07
A92: DITZFELD001 | B92: 409-2714 | C92: Backflow Test | D92: 104014 | E92: 3767.4 | F92: 1708.6 | G92: 3767.4 | H92: 1708.6 | I92: 0 | J92: 0 | K92: 3767.4 | L92: =+G92-H92 -> 2058.8 | M92: =VLOOKUP(B92,[1]Projects!$B:$L,11,0) ->  | O92: 3767.4 | P92: =+G92-Y92 -> 0 | Q92: =+H92-Z92 -> 0 | R92: =+H92/F92 -> 1 | S92: =+G92/E92 -> 1 | T92: =IF(K92>G92,K92-G92,0) -> 0 | U92: =IF(G92>K92,G92-K92,0) -> 0 | V92: =+R92-S92 -> 0 | W92: =+I92-T92 -> 0 | X92: =+J92-U92 -> 0 | Y92: 3767.4 | Z92: 1708.6
A93: AMERENUE001 | B93: 410-3251 REV 1 | C93: Fire Inspection Raccoon Creek | D93: 104014 | E93: 2890 | F93: 1605.93 | G93: 2890 | H93: 1605.93 | I93: 0 | J93: 0 | K93: 2890 | L93: =+G93-H93 -> 1284.07 | M93: =VLOOKUP(B93,[1]Projects!$B:$L,11,0) ->  | O93: 2890 | P93: =+G93-Y93 -> 614.7 | Q93: =+H93-Z93 -> 0 | R93: =+H93/F93 -> 1 | S93: =+G93/E93 -> 1 | T93: =IF(K93>G93,K93-G93,0) -> 0 | U93: =IF(G93>K93,G93-K93,0) -> 0 | V93: =+R93-S93 -> 0 | W93: =+I93-T93 -> 0 | X93: =+J93-U93 -> 0 | Y93: 2275.3 | Z93: 1605.93
A94: AMERENUE001 | B94: 410-3250 REV 1 | C94: Fire Inspection Kinmundy | D94: 104014 | E94: 2600 | F94: 511.49 | G94: 2600 | H94: 511.49 | I94: 0 | J94: 0 | K94: 2600 | L94: =+G94-H94 -> 2088.51 | M94: =VLOOKUP(B94,[1]Projects!$B:$L,11,0) ->  | O94: 2600 | P94: =+G94-Y94 -> 1914.64 | Q94: =+H94-Z94 -> 0 | R94: =+H94/F94 -> 1 | S94: =+G94/E94 -> 1 | T94: =IF(K94>G94,K94-G94,0) -> 0 | U94: =IF(G94>K94,G94-K94,0) -> 0 | V94: =+R94-S94 -> 0 | W94: =+I94-T94 -> 0 | X94: =+J94-U94 -> 0 | Y94: 685.36 | Z94: 511.49
A95: STOVERMILL001 | B95: 409-2900 | C95: Grain Leg Repair | D95: 104005 | E95: 2163 | F95: 1709.2 | G95: 136.27 | H95: 107.61 | I95: 0 | J95: 136.27 | K95: 0 | L95: =+G95-H95 -> 28.66 | M95: =VLOOKUP(B95,[1]Projects!$B:$L,11,0) ->  | O95: 0 | P95: =+G95-Y95 -> 0 | Q95: =+H95-Z95 -> 0 | R95: =+H95/F95 -> 0.06295927919 | S95: =+G95/E95 -> 0.06300046232 | T95: =IF(K95>G95,K95-G95,0) -> 0 | U95: =IF(G95>K95,G95-K95,0) -> 136.27 | V95: =+R95-S95 -> -4.118312591e-05 | W95: =+I95-T95 -> 0 | X95: =+J95-U95 -> 0 | Y95: 136.27 | Z95: 107.61
A96: DOGEN001 | B96: 409-2284 | C96: Valve Replacement | D96: 104005 | E96: 1482.47 | F96: 673 | G96: 1482.47 | H96: 673 | I96: 0 | J96: 0 | K96: 1482.47 | L96: =+G96-H96 -> 809.47 | M96: =VLOOKUP(B96,[1]Projects!$B:$L,11,0) ->  | O96: 0 | P96: =+G96-Y96 -> 0 | Q96: =+H96-Z96 -> 0 | R96: =+H96/F96 -> 1 | S96: =+G96/E96 -> 1 | T96: =IF(K96>G96,K96-G96,0) -> 0 | U96: =IF(G96>K96,G96-K96,0) -> 0 | V96: =+R96-S96 -> 0 | W96: =+I96-T96 -> 0 | X96: =+J96-U96 -> 0 | Y96: 1482.47 | Z96: 673
A97: SUNFL001 | B97: FS08-1678-1063 | C97: Freezer Lighting | D97: 104013 | E97: 625.97 | F97: 0 | G97: 625.97 | H97: 0 | I97: 0 | J97: 0 | K97: 625.97 | L97: =+G97-H97 -> 625.97 | M97: =VLOOKUP(B97,[1]Projects!$B:$L,11,0) ->  | O97: 0 | P97: =+G97-Y97 -> 625.97 | Q97: =+H97-Z97 -> 0 | R97: 1 | S97: =+G97/E97 -> 1 | T97: =IF(K97>G97,K97-G97,0) -> 0 | U97: =IF(G97>K97,G97-K97,0) -> 0 | V97: =+R97-S97 -> 0 | W97: =+I97-T97 -> 0 | X97: =+J97-U97 -> 0 | Y97: 0 | Z97: 0
A98: BELGER001 | B98: CS10-0212 | C98: Load Stator | D98: 104005 | E98: 324.5 | F98: 117 | G98: 324.5 | H98: 117 | I98: 0 | J98: 0 | K98: 324.5 | L98: =+G98-H98 -> 207.5 | M98: =VLOOKUP(B98,[1]Projects!$B:$L,11,0) ->  | O98: 0 | P98: =+G98-Y98 -> 324.5 | Q98: =+H98-Z98 -> 117 | R98: =+H98/F98 -> 1 | S98: =+G98/E98 -> 1 | T98: =IF(K98>G98,K98-G98,0) -> 0 | U98: =IF(G98>K98,G98-K98,0) -> 0 | V98: =+R98-S98 -> 0 | W98: =+I98-T98 -> 0 | X98: =+J98-U98 -> 0 | Y98: 0 | Z98: 0
A99: DERWICK001 | B99: 409-2956 | C99: 7EA Liquid Fuel Conversion | D99: 104002 | E99: 0 | F99: 0 | G99: 0 | H99: 0 | I99: 0 | J99: 0 | K99: 0 | L99: =+G99-H99 -> 0 | M99: =VLOOKUP(B99,[1]Projects!$B:$L,11,0) ->  | O99: 0 | P99: =+G99-Y99 -> 0 | Q99: =+H99-Z99 -> 0 | R99: 0 | S99: 0 | T99: =IF(K99>G99,K99-G99,0) -> 0 | U99: =IF(G99>K99,G99-K99,0) -> 0 | V99: =+R99-S99 -> 0 | W99: =+I99-T99 -> 0 | X99: =+J99-U99 -> 0 | Y99: 0 | Z99: 0
E100: =SUM(E57:E99) -> 1537793.43 | F100: =SUM(F57:F99) -> 1342450.65 | G100: 1279315.39 | H100: 1237401.88 | I100: 70351.18 | J100: 172607.14 | K100: 1177059.43 | L100: 41913.51 | O100: 943172.85 | P100: 135168.97 | Q100: 115555.48 | R100: 33.62153196 | S100: 31.80157651 | T100: 70351.18 | U100: 172607.14 | V100: 1.819955452 | W100: 0 | X100: 0 | Y100: 1144146.42 | Z100: 1121846.4

Sheet EPS
A1: Customer Number | B1: Project Number | C1: Project Name | D1: Department | E1: Project Amount | F1: Forecast Total Cost | G1: Net Recognized Revenue | H1: Actual Total Cost | I1: Actual BIEE Amount 2455 | J1: Actual EIEB Amount 1205 | K1: Actual Billings | L1: Net Margin | M1: Cash Received to Date | N1: Current Month Revenue | O1: Current Month Cost | P1: Cost % Completed | Q1: Rev % Recognized | R1: Calc BIEE | S1: Calc EIEB | T1: Difference Rev Recog | U1: Difference BIEE | V1: Difference EIEB | W1: Prior Month Net Recognized Revenue | X1: Prior Month Total Cost
A2: CORPO001 | B2: 10-T9002 | C2: Termozulia IV | D2: 107002 | E2: 51800000 | F2: 46620000 | G2: 16565640 | H2: 14910369.39 | I2: =K2-G2 -> 22284360 | J2: 0 | K2: 38850000 | L2: =G2-H2 -> 1655270.61 | M2: 35172000 | N2: 3227140 | O2: 2905017.73 | P2: =H2/F2 -> 0.3198277432 | Q2: =G2/E2 -> 0.3198 | R2: =K2-G2 -> 22284360 | S2: 0 | T2: 0 | U2: 0 | V2: 0 | W2: 2030560 | X2: 1826884.67
A3: DERWICK001 | B3: 710-3347 | C3: CVG 2 Shipping | D3: 107002 | E3: 6693000 | F3: 6084545.46 | G3: 2182587.3 | H3: 1984217.18 | I3: 0 | J3: 2182587.3 | K3: 0 | L3: =G3-H3 -> 198370.12 | M3: 0 | N3: 16742.5 | O3: 15397.35 | P3: =H3/F3 -> 0.326107709 | Q3: =G3/E3 -> 0.3261 | R3: 0 | S3: 2182587.3 | T3: 0 | U3: 0 | V3: 0 | W3: 2165854.8 | X3: 1968819.83
A4: DERWICK001 | B4: 710-3150 | C4: CVG Shipping | D4: 107002 | E4: 5724950 | F4: 5204500.52 | G4: 4806668.02 | H4: 4369682.52 | I4: =K4-G4 -> 918281.98 | J4: 0 | K4: 5724950 | L4: =G4-H4 -> 436985.5 | M4: 5724950 | N4: 572.49 | O4: 520.44 | P4: =H4/F4 -> 0.8395969033 | Q4: =G4/E4 -> 0.8396 | R4: =K4-G4 -> 918281.98 | S4: 0 | T4: 0 | U4: 0 | V4: 0 | W4: 59539.48 | X4: 54103.35
A5: CORPO001 | B5: 10-T9002-Bs | C5: Termozulia IV-In Country | D5: 107002 | E5: 4600000 | F5: 4883422.78 | G5: 4600000 | H5: 7540413.13 | I5: 0 | J5: 0 | K5: 4600000 | L5: =G5-H5 -> -2940413.13 | M5: 2300000 | N5: 0 | O5: 579553.91 | P5: 1 | Q5: =G5/E5 -> 1 | R5: =K5-G5 -> 0 | S5: 0 | T5: 0 | U5: 0 | V5: 0 | W5: 0 | X5: 1571134.67
C7: Total Revenue Recognition | E7: =SUM(E2:E6) -> 68817950 | F7: 62792468.76 | G7: 28154895.32 | H7: 28804682.22 | I7: 23202641.98 | J7: 2182587.3 | K7: 49174950 | L7: -649786.9 | M7: 43196950 | N7: 3244454.99 | O7: 3500489.43

Sheet Corp OH
A1: Customer Number | B1: Project Number | C1: Project Name | D1: Department | E1: Project Amount | F1: Forecast Total Cost | G1: Net Recognized Revenue | H1: Actual Total Cost | I1: Actual BIEE Amount 2455 | J1: Actual EIEB Amount 1205 | K1: Actual Billings | L1: Net Margin | M1: Cash Received to Date | N1: Current Month Revenue | O1: Current Month Cost | P1: Cost % Completed | Q1: Rev % Recognized | R1: Calc BIEE | S1: Calc EIEB | T1: Difference Rev Recog | U1: Difference BIEE | V1: Difference EIEB | W1: Prior Month Net Recognized Revenue | X1: Prior Month Total Cost
A2: DERWICK001 | B2: 410-3280 | C2: Curupao (2 7F 2 LM6000) (CVG-C | D2: 100001 | E2: 180000000 | F2: 162000000 | G2: 2880000 | H2: 2590972.83 | I2: 0 | J2: 2880000 | K2: 0 | L2: =G2-H2 -> 289027.17 | M2: 0 | N2: =+G2-W2 -> 1512000 | O2: =+H2-X2 -> 1363557.65 | P2: =H2/F2 -> 0.01599365944 | Q2: =G2/E2 -> 0.016 | R2: =IF(K2>G2,K2-G2,0) -> 0 | S2: =IF(G2>K2,G2-K2,0) -> 2880000 | T2: =+P2-Q2 -> -6.340555556e-06 | U2: =I2-R2 -> 0 | V2: =J2-S2 -> 0 | W2: 1368000 | X2: 1227415.18
A3: DERWICK001 | B3: 410-3203 | C3: CVG Sidor Facility Plant B | D3: 100001 | E3: 79400000 | F3: 71460000 | G3: 12362580 | H3: 11122935.1 | I3: 27337420 | J3: 0 | K3: 39700000 | L3: =G3-H3 -> 1239644.9 | M3: 23820000 | N3: =+G3-W3 -> 5327740 | O3: =+H3-X3 -> 4793940.36 | P3: =H3/F3 -> 0.1556526043 | Q3: =G3/E3 -> 0.1557 | R3: =IF(K3>G3,K3-G3,0) -> 27337420 | S3: =IF(G3>K3,G3-K3,0) -> 0 | T3: =+P3-Q3 -> -4.739574587e-05 | U3: =I3-R3 -> 0 | V3: =J3-S3 -> 0 | W3: 7034840 | X3: 6328994.74
A4: DERWICK001 | B4: 410-3202 | C4: CVG Sidor Facility Plant A | D4: 100001 | E4: 60177913 | F4: 53923500 | G4: 17385399.07 | H4: 15580072.43 | I4: 33805263.93 | J4: 0 | K4: 51190663 | L4: =G4-H4 -> 1805326.64 | M4: 17974500 | N4: =+G4-W4 -> 5000968.57 | O4: =+H4-X4 -> 4433886.75 | P4: =H4/F4 -> 0.2889291761 | Q4: =G4/E4 -> 0.2889000001 | R4: =IF(K4>G4,K4-G4,0) -> 33805263.93 | S4: =IF(G4>K4,G4-K4,0) -> 0 | T4: =+P4-Q4 -> 2.917607624e-05 | U4: =I4-R4 -> 0 | V4: =J4-S4 -> 0 | W4: 12384430.5 | X4: 11146185.68
A5: DERWICK001 | B5: 10-T1004 | C5: Jusepin-EPC (4) RR Trent 60 | D5: 100001 | E5: 44347000 | F5: 39912300 | G5: 1223977.2 | H5: 1100006.62 | I5: 0 | J5: 1223977.2 | K5: =22173500-22173500 -> 0 | L5: =G5-H5 -> 123970.58 | M5: 0 | N5: =+G5-W5 -> 368803.23 | O5: =+H5-X5 -> 330783.25 | P5: =H5/F5 -> 0.0275605921 | Q5: =G5/E5 -> 0.0276 | R5: =IF(K5>G5,K5-G5,0) -> 0 | S5: =IF(G5>K5,G5-K5,0) -> 1223977.2 | T5: =+P5-Q5 -> -3.940790182e-05 | U5: =I5-R5 -> 0 | V5: =J5-S5 -> 0 | W5: 855173.97 | X5: 769223.37
A6: EDC001 | B6: 10-T1009 | C6: Guarenas I | D6: 100001 | E6: 36340516.65 | F6: 32706465 | G6: 6065232.23 | H6: 5459128.85 | I6: 8470974.42 | J6: 0 | K6: 14536206.65 | L6: =G6-H6 -> 606103.38 | M6: 0 | N6: =+G6-W6 -> 3274280.55 | O6: =+H6-X6 -> 2948215.38 | P6: =H6/F6 -> 0.1669128367 | Q6: =G6/E6 -> 0.1669 | R6: =IF(K6>G6,K6-G6,0) -> 8470974.42 | S6: =IF(G6>K6,G6-K6,0) -> 0 | T6: =+P6-Q6 -> 1.283662103e-05 | U6: =I6-R6 -> 0 | V6: =J6-S6 -> 0 | W6: 2790951.68 | X6: 2510913.47
A7: DERWICK001 | B7: 10-T9036 | C7: LaRaisa II (2 LM6000) | D7: 100001 | E7: 33609000 | F7: 27000000 | G7: 414000 | H7: 373585.49 | I7: 0 | J7: 414000 | K7: =16804500-16804500 -> 0 | L7: =G7-H7 -> 40414.51 | M7: 0 | N7: =+G7-W7 -> 225000 | O7: =+H7-X7 -> 203076.23 | P7: =H7/F7 -> 0.01383649963 | Q7: =G7/E7 -> 0.01231812907 | R7: =IF(K7>G7,K7-G7,0) -> 0 | S7: =IF(G7>K7,G7-K7,0) -> 414000 | T7: =+P7-Q7 -> 0.001518370557 | U7: =I7-R7 -> 0 | V7: =J7-S7 -> 0 | W7: 189000 | X7: 170509.26
A8: DERWICK001 | B8: 10-T1003 | C8: Barinas (La Fria) (2FT-4TP) | D8: 100001 | E8: 30000000 | F8: 27000000 | G8: 1254.1 | H8: 1140.09 | I8: 0 | J8: 1254.1 | K8: 0 | L8: =+G8-H8 -> 114.01 | M8: 0 | N8: =+G8-W8 -> 1254.1 | O8: =+H8-X8 -> 1140.09 | P8: =H8/F8 -> 4.222555556e-05 | Q8: =G8/E8 -> 4.180333333e-05 | R8: =IF(K8>G8,K8-G8,0) -> 0 | S8: =IF(G8>K8,G8-K8,0) -> 1254.1 | T8: =+P8-Q8 -> 4.222222222e-07 | U8: =I8-R8 -> 0 | V8: =J8-S8 -> 0 | W8: 0 | X8: 0
A9: DERWICK001 | B9: 10-T1006 | C9: Las Morochas (1) GE LM2500 | D9: 100001 | E9: 7975000 | F9: 7177500 | G9: 855717.5 | H9: 770389.54 | I9: 0 | J9: 855717.5 | K9: =4785000-3987500-797500 -> 0 | L9: =G9-H9 -> 85327.96 | M9: 0 | N9: =+G9-W9 -> 540705 | O9: =+H9-X9 -> 486941.63 | P9: =H9/F9 -> 0.1073339659 | Q9: =G9/E9 -> 0.1073 | R9: =IF(K9>G9,K9-G9,0) -> 0 | S9: =IF(G9>K9,G9-K9,0) -> 855717.5 | T9: =+P9-Q9 -> 3.396586555e-05 | U9: =I9-R9 -> 0 | V9: =J9-S9 -> 0 | W9: 315012.5 | X9: 283447.91
C11: Total Revenue Recognition | E11: =SUM(E2:E10) -> 471849429.6 | F11: 421179765 | G11: 41188160.1 | H11: 36998230.95 | I11: 69613658.35 | J11: 5374948.8 | K11: 105426869.7 | L11: 4189929.15 | M11: 41794500 | N11: 16250751.45 | O11: 14561541.34

Sheet EPC Rev Recog
A1: Customer Number | B1: Project Number | C1: Project Name | D1: Signed | E1: Department | F1: Project Amount | G1: Forecast Total Cost | H1: Net Recognized Revenue | I1: Actual Total Cost | J1: Actual BIEE Amount 2455 | K1: Actual EIEB Amount 1205 | L1: Actual Billings | M1: Net Margin | N1: Cash Received to Date | O1: Current Month Revenue | P1: Current Month Cost | Q1: Cost % Completed | R1: Rev % Recognized | S1: Calc BIEE | T1: Calc EIEB | U1: Difference Rev Recog | V1: Difference BIEE | W1: Difference EIEB | X1: Prior Month Net Recognized Revenue | Y1: Prior Month Total Cost
A2: EDC001 | B2: 10-T9018 | C2: La Raisa (3) FT8 | D2: Yes | E2: 100001 | F2: 33491875 | G2: 30142687.5 | H2: 12358501.88 | I2: 11123846.37 | J2: 21133373.12 | K2: 0 | L2: 33491875 | M2: =+H2-I2 -> 1234655.51 | N2: 18781824.6 | O2: =+H2-X2 -> 2836761.82 | P2: =+I2-Y2 -> 2555483.59 | Q2: =+I2/G2 -> 0.3690396342 | R2: =+H2/F2 -> 0.3690000001 | S2: =IF(L2>H2,L2-H2,0) -> 21133373.12 | T2: =IF(H2>L2,H2-L2,0) -> 0 | U2: =+Q2-R2 -> 3.963409036e-05 | V2: =+J2-S2 -> 0 | W2: =+K2-T2 -> 0 | X2: 9521740.06 | Y2: 8568362.78
A3: EDC001 | B3: 10-T9003B | C3: Planta Picure/Tacoa B (2) LM6000s | D3: Yes | E3: 100001 | F3: 20774500 | G3: 18697050 | H3: 10586685.2 | I3: 9527993.13 | J3: 10187814.8 | K3: 0 | L3: 20774500 | M3: =+H3-I3 -> 1058692.07 | N3: 19949000 | O3: =+H3-X3 -> 1988119.65 | P3: =+I3-Y3 -> 1788914.14 | Q3: =+I3/G3 -> 0.5095987404 | R3: =+H3/F3 -> 0.5096 | S3: =IF(L3>H3,L3-H3,0) -> 10187814.8 | T3: =IF(H3>L3,H3-L3,0) -> 0 | U3: =+Q3-R3 -> -1.259556989e-06 | V3: =+J3-S3 -> 0 | W3: =+K3-T3 -> 0 | X3: 8598565.55 | Y3: 7739078.99
A4: EDC001 | B4: 10-T9003A | C4: Planta Picure/Tacoa A (2) LM2500s | D4: No | E4: 100001 | F4: 14914408.5 | G4: 13422967.65 | H4: 10801014.64 | I4: 9720835.84 | J4: 4113393.86 | K4: 0 | L4: 14914408.5 | M4: =+H4-I4 -> 1080178.8 | N4: 12536000 | O4: =+H4-X4 -> 2392271.13 | P4: =+I4-Y4 -> 2153265.41 | Q4: =+I4/G4 -> 0.7241942388 | R4: =+H4/F4 -> 0.7242000003 | S4: =IF(L4>H4,L4-H4,0) -> 4113393.86 | T4: =IF(H4>L4,H4-L4,0) -> 0 | U4: =+Q4-R4 -> -5.761468106e-06 | V4: =+J4-S4 -> 0 | W4: =+K4-T4 -> 0 | X4: 8408743.51 | Y4: 7567570.43
C6: EPC Revenue Recognition | F6: =SUM(F2:F5) -> 69180783.5 | G6: 62262705.15 | H6: 33746201.72 | I6: 30372675.34 | J6: 35434581.78 | K6: 0 | L6: 69180783.5 | M6: 3373526.38 | N6: 51266824.6 | O6: 7217152.6 | P6: 6497663.14

Sheet FS
A1: Customer Number | B1: Project Number | C1: Project Name | D1: Department | E1: Project Amount | F1: Forecast Total Cost | G1: Net Recognized Revenue | H1: Actual Total Cost | I1: Actual BIEE Amount 2455 | J1: Actual EIEB Amount 1205 | K1: Actual Billings | L1: Net Margin | M1: Cash Received To-Date | N1: Current Month Revenue | O1: Current Month Cost | P1: Cost % Completed | Q1: Rev % Recognized | R1: Calc BIEE | S1: Calc EIEB | T1: Difference Rev Recog | U1: Difference BIEE | V1: Difference EIEB | W1: Prior Month Net Recognized Revenue | X1: Prior Month Total Cost
A2: GENATL001 | B2: EQU08-1222 | C2: Equip Sales Agreement - CC | D2: 104002 | E2: 37200000 | F2: 30000000 | G2: 37200000 | H2: 30000000 | I2: 0 | J2: 0 | K2: 37200000 | L2: =+G2-H2 -> 7200000 | M2: 37107637.91 | N2: =+G2-W2 -> 0 | O2: =+H2-X2 -> 0 | P2: =+H2/F2 -> 1 | Q2: =+G2/E2 -> 1 | R2: =IF(K2>G2,K2-G2,0) -> 0 | S2: =IF(G2>K2,G2-K2,0) -> 0 | T2: =+P2-Q2 -> 0 | U2: =+I2-R2 -> 0 | V2: =+J2-S2 -> 0 | W2: 37200000 | X2: 30000000
A3: PACIFICRIM002 | B3: FS07-0344CABR-1 | C3: Cabrutica Installation | D3: 804002 | E3: 17000000 | F3: 15300000 | G3: 2834802.62 | H3: 1981774.53 | I3: 7340197.38 | J3: 0 | K3: 10175000 | L3: =+G3-H3 -> 853028.09 | M3: 6475000 | N3: =+G3-W3 -> -100000 | O3: =+H3-X3 -> 197690.12 | P3: =+H3/F3 -> 0.1295277471 | Q3: =+G3/E3 -> 0.1667530953 | R3: =IF(K3>G3,K3-G3,0) -> 7340197.38 | S3: =IF(G3>K3,G3-K3,0) -> 0 | T3: =+P3-Q3 -> -0.03722534824 | U3: =+I3-R3 -> 0 | V3: =+J3-S3 -> 0 | W3: 2934802.62 | X3: 1784084.41
A4: DERWICK001 | B4: 409-2956-1 | C4: Margarita Island Dual Fuel | D4: 104002 | E4: 11263966 | F4: 10137569.4 | G4: 251186.44 | H4: 225738.73 | I4: 0 | J4: 251186.44 | K4: 0 | L4: =+G4-H4 -> 25447.71 | M4: 0 | N4: =+G4-W4 -> 157695.52 | O4: =+H4-X4 -> 141374.1 | P4: =+H4/F4 -> 0.02226753979 | Q4: =+G4/E4 -> 0.02229999984 | R4: =IF(K4>G4,K4-G4,0) -> 0 | S4: =IF(G4>K4,G4-K4,0) -> 251186.44 | T4: =+P4-Q4 -> -3.246004905e-05 | U4: =+I4-R4 -> 0 | V4: =+J4-S4 -> 0 | W4: 93490.92 | X4: 84364.63
A5: NATCONTR001 | B5: FS08-1678 REV 1 | C5: Nat Ctr Aviation - Wichita | D5: 104013 | E5: 5220525 | F5: 4926101.08 | G5: 5180332.26 | H5: 4926101.08 | I5: 0 | J5: 390920.07 | K5: 4789412.19 | L5: =+G5-H5 -> 254231.18 | M5: 3718649.48 | N5: =+G5-W5 -> 392804.16 | O5: =+H5-X5 -> 392804.16 | P5: =+H5/F5 -> 1 | Q5: =+G5/E5 -> 0.9923010157 | R5: =IF(K5>G5,K5-G5,0) -> 0 | S5: =IF(G5>K5,G5-K5,0) -> 390920.07 | T5: =+P5-Q5 -> 0.007698984298 | U5: =+I5-R5 -> 0 | V5: =+J5-S5 -> 6.4028427e-10 | W5: 4787528.1 | X5: 4533296.92
A6: GENATL001 | B6: ENG08-1127 REV1 | C6: Engineering Services | D6: 104002 | E6: 3100000 | F6: 2630000 | G6: 2945000 | H6: 2498500 | I6: 155000 | J6: 0 | K6: 3100000 | L6: =+G6-H6 -> 446500 | M6: 2945000 | N6: =+G6-W6 -> 0 | O6: =+H6-X6 -> 0 | P6: =+H6/F6 -> 0.95 | Q6: =+G6/E6 -> 0.95 | R6: =IF(K6>G6,K6-G6,0) -> 155000 | S6: =IF(G6>K6,G6-K6,0) -> 0 | T6: =+P6-Q6 -> 0 | U6: =+I6-R6 -> 0 | V6: =+J6-S6 -> 0 | W6: 2945000 | X6: 2498500
A7: PACIFICRIM001 | B7: FS07-0344JOS-1 | C7: Josefa Extra Costs | D7: 104002 | E7: 3000000 | F7: 3000000 | G7: 1701500 | H7: 1206655.33 | I7: 1298500 | J7: 0 | K7: 3000000 | L7: =+G7-H7 -> 494844.67 | M7: 3000000 | N7: =+G7-W7 -> -100000 | O7: =+H7-X7 -> 5259.95 | P7: =+H7/F7 -> 0.4022184433 | Q7: =+G7/E7 -> 0.5671666667 | R7: =IF(K7>G7,K7-G7,0) -> 1298500 | S7: =IF(G7>K7,G7-K7,0) -> 0 | T7: =+P7-Q7 -> -0.1649482233 | U7: =+I7-R7 -> 0 | V7: =+J7-S7 -> 0 | W7: 1801500 | X7: 1201395.38
A8: NPPD001 | B8: 409-2885 | C8: Fire Protection Upgrade | D8: 104014 | E8: 2735978 | F8: 2089047.71 | G8: 1342544.4 | H8: 1025166.98 | I8: 0 | J8: 330104.59 | K8: 1012439.81 | L8: =+G8-H8 -> 317377.42 | M8: 833454.79 | N8: =+G8-W8 -> 191685.92 | O8: =+H8-X8 -> 144025.81 | P8: =+H8/F8 -> 0.4907341154 | Q8: =+G8/E8 -> 0.4906999983 | R8: =IF(K8>G8,K8-G8,0) -> 0 | S8: =IF(G8>K8,G8-K8,0) -> 330104.59 | T8: =+P8-Q8 -> 3.411708358e-05 | U8: =+I8-R8 -> 0 | V8: =+J8-S8 -> 0 | W8: 1150858.48 | X8: 881141.17
A9: WALTONCONST001 | B9: 409-2513 REV 2 | C9: Tinker AFB - Warehouse | D9: 104013 | E9: 2074060 | F9: 1859561.84 | G9: 92917.89 | H9: 83391.8 | I9: 0 | J9: 92917.89 | K9: 0 | L9: =+G9-H9 -> 9526.09 | M9: 0 | N9: =+G9-W9 -> 12236.96 | O9: =+H9-X9 -> 11097.13 | P9: =+H9/F9 -> 0.04484486518 | Q9: =+G9/E9 -> 0.04480000096 | R9: =IF(K9>G9,K9-G9,0) -> 0 | S9: =IF(G9>K9,G9-K9,0) -> 92917.89 | T9: =+P9-Q9 -> 4.486421104e-05 | U9: =+I9-R9 -> 0 | V9: =+J9-S9 -> 0 | W9: 80680.93 | X9: 72294.67
A10: VTPUBPOW001 | B10: 410-3169 REV 1 | C10: P10 Generator No 2 Repair | D10: 104002 | E10: 1420000 | F10: 1194767.63 | G10: 1420000 | H10: 1194767.63 | I10: 0 | J10: 0 | K10: 1420000 | L10: =+G10-H10 -> 225232.37 | M10: 1420000 | N10: =+G10-W10 -> 0 | O10: =+H10-X10 -> 15784.04 | P10: =+H10/F10 -> 1 | Q10: =+G10/E10 -> 1 | R10: =IF(K10>G10,K10-G10,0) -> 0 | S10: =IF(G10>K10,G10-K10,0) -> 0 | T10: =+P10-Q10 -> 0 | U10: =+I10-R10 -> 0 | V10: =+J10-S10 -> 0 | W10: 1420000 | X10: 1178983.59
A11: OMPA001 | B11: 409-2227 | C11: Steam Turbine Overhaul | D11: 104004 | E11: 1014356.5 | F11: 790142.16 | G11: 955523.82 | H11: 744290.03 | I11: 58832.68 | J11: 0 | K11: 1014356.5 | L11: =+G11-H11 -> 211233.79 | M11: 954066.5 | N11: =+G11-W11 -> 4260.29 | O11: =+H11-X11 -> 3337.81 | P11: =+H11/F11 -> 0.9419697716 | Q11: =+G11/E11 -> 0.941999997 | R11: =IF(K11>G11,K11-G11,0) -> 58832.68 | S11: =IF(G11>K11,G11-K11,0) -> 0 | T11: =+P11-Q11 -> -3.022542567e-05 | U11: =+I11-R11 -> 0 | V11: =+J11-S11 -> 0 | W11: 951263.53 | X11: 740952.22
A12: STRAUB001 | B12: FS08-1708 | C12: City of W'burg PDHQ | D12: 104013 | E12: 499901.66 | F12: 573107.06 | G12: 499901.66 | H12: 573107.06 | I12: 0 | J12: 0 | K12: 499901.66 | L12: =+G12-H12 -> -73205.4 | M12: 421755.66 | N12: =+G12-W12 -> 0 | O12: =+H12-X12 -> 1868.16 | P12: =+H12/F12 -> 1 | Q12: =+G12/E12 -> 1 | R12: =IF(K12>G12,K12-G12,0) -> 0 | S12: =IF(G12>K12,G12-K12,0) -> 0 | T12: =+P12-Q12 -> 0 | U12: =+I12-R12 -> 0 | V12: =+J12-S12 -> 0 | W12: 499901.66 | X12: 571238.9
A13: CITYO000020CLEM | B13: 410-3110 | C13: GE 35 MW Steam Turbine Inspec | D13: 104002 | E13: 238626 | F13: 185432.34 | G13: 162361.13 | H13: 126173.44 | I13: 0 | J13: 43048.13 | K13: 119313 | L13: =+G13-H13 -> 36187.69 | M13: 0 | N13: =+G13-W13 -> 66051.68 | O13: =+H13-X13 -> 51326.47 | P13: =+H13/F13 -> 0.6804284517 | Q13: =+G13/E13 -> 0.6803999983 | R13: =IF(K13>G13,K13-G13,0) -> 0 | S13: =IF(G13>K13,G13-K13,0) -> 43048.13 | T13: =+P13-Q13 -> 2.845336921e-05 | U13: =+I13-R13 -> 0 | V13: =+J13-S13 -> 0 | W13: 96309.45 | X13: 74846.97
A14: SEPTAG001 | B14: 409-2302 | C14: Sedalia Streetscapes | D14: 104013 | E14: 235226.25 | F14: 304654.42 | G14: 235226.25 | H14: 304654.42 | I14: 0 | J14: 0 | K14: 235226.25 | L14: =+G14-H14 -> -69428.17 | M14: 235226.25 | N14: =+G14-W14 -> 0 | O14: =+H14-X14 -> 0 | P14: =+H14/F14 -> 1 | Q14: =+G14/E14 -> 1 | R14: =IF(K14>G14,K14-G14,0) -> 0 | S14: =IF(G14>K14,G14-K14,0) -> 0 | T14: =+P14-Q14 -> 0 | U14: =+I14-R14 -> 0 | V14: =+J14-S14 -> 0 | W14: 235226.25 | X14: 304654.42
A15: OG&E001 | B15: 409-2828 REV 2 | C15: HRSG Perforated Plates | D15: 104012 | E15: 211200 | F15: 187603.2 | G15: 188728.32 | H15: 167649.02 | I15: 22471.68 | J15: 0 | K15: 211200 | L15: =+G15-H15 -> 21079.3 | M15: 211200 | N15: =+G15-W15 -> 21.12 | O15: =+H15-X15 -> 30 | P15: =+H15/F15 -> 0.8936362493 | Q15: =+G15/E15 -> 0.8936 | R15: =IF(K15>G15,K15-G15,0) -> 22471.68 | S15: =IF(G15>K15,G15-K15,0) -> 0 | T15: =+P15-Q15 -> 3.624927507e-05 | U15: =+I15-R15 -> 0 | V15: =+J15-S15 -> 0 | W15: 188707.2 | X15: 167619.02
A16: OMU001 | B16: 409-2659 | C16: Air Heater Basket Replacement | D16: 104012 | E16: 199440 | F16: 100991.05 | G16: 199440 | H16: 100991.05 | I16: 0 | J16: 0 | K16: 199440 | L16: =+G16-H16 -> 98448.95 | M16: 199440 | N16: =+G16-W16 -> 0 | O16: =+H16-X16 -> 0 | P16: =+H16/F16 -> 1 | Q16: =+G16/E16 -> 1 | R16: =IF(K16>G16,K16-G16,0) -> 0 | S16: =IF(G16>K16,G16-K16,0) -> 0 | T16: =+P16-Q16 -> 0 | U16: =+I16-R16 -> 0 | V16: =+J16-S16 -> 0 | W16: 199440 | X16: 100991.05
A17: CITYOFSP001 | B17: 410-3163 | C17: Steam Drum Internals Repl | D17: 104012 | E17: 195575.63 | F17: 145648.17 | G17: 182902.33 | H17: 136205.95 | I17: 12673.3 | J17: 0 | K17: 195575.63 | L17: =+G17-H17 -> 46696.38 | M17: 195575.63 | N17: =+G17-W17 -> 1193.01 | O17: =+H17-X17 -> 885.72 | P17: =+H17/F17 -> 0.9351710358 | Q17: =+G17/E17 -> 0.9352000042 | R17: =IF(K17>G17,K17-G17,0) -> 12673.3 | S17: =IF(G17>K17,G17-K17,0) -> 0 | T17: =+P17-Q17 -> -2.896842195e-05 | U17: =+I17-R17 -> -1.818989404e-11 | V17: =+J17-S17 -> 0 | W17: 181709.32 | X17: 135320.23
A18: MWALLSTAR001 | B18: 409-2764 REV 1 | C18: HS 3030 Network Fire Alarm | D18: 104014 | E18: 140000 | F18: 107597.73 | G18: 140000 | H18: 107597.73 | I18: 0 | J18: 0 | K18: 140000 | L18: =+G18-H18 -> 32402.27 | M18: 126000 | N18: =+G18-W18 -> 0 | O18: =+H18-X18 -> 0 | P18: =+H18/F18 -> 1 | Q18: =+G18/E18 -> 1 | R18: =IF(K18>G18,K18-G18,0) -> 0 | S18: =IF(G18>K18,G18-K18,0) -> 0 | T18: =+P18-Q18 -> 0 | U18: =+I18-R18 -> 0 | V18: =+J18-S18 -> 0 | W18: 140000 | X18: 107597.73
A19: COIL001 | B19: FS08-1124 REV4 | C19: PW Facility Warrensburg, MO | D19: 104005 | E19: 130782 | F19: 276284.15 | G19: 130782 | H19: 276284.15 | I19: 0 | J19: 0 | K19: 130782 | L19: =+G19-H19 -> -145502.15 | M19: 117703.8 | N19: =+G19-W19 -> 0 | O19: =+H19-X19 -> 0 | P19: =+H19/F19 -> 1 | Q19: =+G19/E19 -> 1 | R19: =IF(K19>G19,K19-G19,0) -> 0 | S19: =IF(G19>K19,G19-K19,0) -> 0 | T19: =+P19-Q19 -> 0 | U19: =+I19-R19 -> 0 | V19: =+J19-S19 -> 0 | W19: 130782 | X19: 276284.15
A20: CALEN000020HWEM | B20: 409-2942 REV 1 | C20: CI & Alignment Steam Turbine | D20: 104002 | E20: 112092 | F20: 103385.64 | G20: 112092 | H20: 103385.64 | I20: 0 | J20: 0 | K20: 112092 | L20: =+G20-H20 -> 8706.36 | M20: 12692 | N20: =+G20-W20 -> 0 | O20: =+H20-X20 -> 0 | P20: =+H20/F20 -> 1 | Q20: =+G20/E20 -> 1 | R20: =IF(K20>G20,K20-G20,0) -> 0 | S20: =IF(G20>K20,G20-K20,0) -> 0 | T20: =+P20-Q20 -> 0 | U20: =+I20-R20 -> 0 | V20: =+J20-S20 -> 0 | W20: 112092 | X20: 103385.64
A21: CITYO000020CLEM | B21: 410-3110 EW01 | C21: Steam Turbine Overhaul | D21: 104002 | E21: 95940 | F21: 79950 | G21: 47970 | H21: 39975 | I21: 0 | J21: 47970 | K21: 0 | L21: =+G21-H21 -> 7995 | M21: 0 | N21: =+G21-W21 -> 47970 | O21: =+H21-X21 -> 39975 | P21: =+H21/F21 -> 0.5 | Q21: =+G21/E21 -> 0.5 | R21: =IF(K21>G21,K21-G21,0) -> 0 | S21: =IF(G21>K21,G21-K21,0) -> 47970 | T21: =+P21-Q21 -> 0 | U21: =+I21-R21 -> 0 | V21: =+J21-S21 -> 0 | W21: 0 | X21: 0
A22: MWALLSTAR001 | B22: 409-2843 REV 3 | C22: WAFB T-9 | D22: 104013 | E22: 72318 | F22: 60404.65 | G22: 56914.27 | H22: 47535.33 | I22: 15403.73 | J22: 0 | K22: 72318 | L22: =+G22-H22 -> 9378.94 | M22: 0 | N22: =+G22-W22 -> 1366.81 | O22: =+H22-X22 -> 1136.06 | P22: =+H22/F22 -> 0.7869481902 | Q22: =+G22/E22 -> 0.7870000553 | R22: =IF(K22>G22,K22-G22,0) -> 15403.73 | S22: =IF(G22>K22,G22-K22,0) -> 0 | T22: =+P22-Q22 -> -5.186506432e-05 | U22: =+I22-R22 -> 0 | V22: =+J22-S22 -> 0 | W22: 55547.46 | X22: 46399.27
A23: VICWLE001 | B23: 409-2958 | C23: Steam Valve Inspection | D23: 104002 | E23: 67055 | F23: 50374.97 | G23: 67055 | H23: 50374.97 | I23: 0 | J23: 0 | K23: 67055 | L23: =+G23-H23 -> 16680.03 | M23: 67055 | N23: =+G23-W23 -> 0 | O23: =+H23-X23 -> 0 | P23: =+H23/F23 -> 1 | Q23: =+G23/E23 -> 1 | R23: =IF(K23>G23,K23-G23,0) -> 0 | S23: =IF(G23>K23,G23-K23,0) -> 0 | T23: =+P23-Q23 -> 0 | U23: =+I23-R23 -> 0 | V23: =+J23-S23 -> 0 | W23: 67055 | X23: 50374.97
A24: SEPTAG001 | B24: 409-2847 | C24: Biosolids Composting Facility | D24: 104013 | E24: 46754 | F24: 40671.13 | G24: 45468.27 | H24: 39554.44 | I24: 0 | J24: 28007.27 | K24: 17461 | L24: =+G24-H24 -> 5913.83 | M24: 15714.9 | N24: =+G24-W24 -> 18364.98 | O24: =+H24-X24 -> 15977.67 | P24: =+H24/F24 -> 0.9725434233 | Q24: =+G24/E24 -> 0.9725001069 | R24: =IF(K24>G24,K24-G24,0) -> 0 | S24: =IF(G24>K24,G24-K24,0) -> 28007.27 | T24: =+P24-Q24 -> 4.331636516e-05 | U24: =+I24-R24 -> 0 | V24: =+J24-S24 -> 0 | W24: 27103.29 | X24: 23576.77
A25: MWALLSTAR001 | B25: 409-2844 REV 1 | C25: Upgrade Dormitory Campus | D25: 104013 | E25: 45320 | F25: 39411.14 | G25: 16981.4 | H25: 14768.09 | I25: 0 | J25: 16981.4 | K25: 0 | L25: =+G25-H25 -> 2213.31 | M25: 0 | N25: =+G25-W25 -> 58.91 | O25: =+H25-X25 -> 52.87 | P25: =+H25/F25 -> 0.3747186709 | Q25: =+G25/E25 -> 0.3746999117 | R25: =IF(K25>G25,K25-G25,0) -> 0 | S25: =IF(G25>K25,G25-K25,0) -> 16981.4 | T25: =+P25-Q25 -> 1.875917511e-05 | U25: =+I25-R25 -> 0 | V25: =+J25-S25 -> 0 | W25: 16922.49 | X25: 14715.22
A26: TRISTATE001 | B26: 410-3219 | C26: Exhaust Welding | D26: 104005 | E26: 42825 | F26: 17394.51 | G26: 42825 | H26: 17394.51 | I26: 0 | J26: 0 | K26: 42825 | L26: =+G26-H26 -> 25430.49 | M26: 42825 | N26: =+G26-W26 -> 0 | O26: =+H26-X26 -> 66.71 | P26: =+H26/F26 -> 1 | Q26: =+G26/E26 -> 1 | R26: =IF(K26>G26,K26-G26,0) -> 0 | S26: =IF(G26>K26,G26-K26,0) -> 0 | T26: =+P26-Q26 -> 0 | U26: =+I26-R26 -> 0 | V26: =+J26-S26 -> 0 | W26: 42825 | X26: 17327.8
A27: KCPL001 | B27: 410-3223 | C27: Transformer Fire Protection | D27: 104014 | E27: 40905 | F27: 29692.21 | G27: 40905 | H27: 29692.21 | I27: 0 | J27: 0 | K27: 40905 | L27: =+G27-H27 -> 11212.79 | M27: 40905 | N27: =+G27-W27 -> 355.87 | O27: =+H27-X27 -> 1491.54 | P27: =+H27/F27 -> 1 | Q27: =+G27/E27 -> 1 | R27: =IF(K27>G27,K27-G27,0) -> 0 | S27: =IF(G27>K27,G27-K27,0) -> 0 | T27: =+P27-Q27 -> 0 | U27: =+I27-R27 -> 0 | V27: =+J27-S27 -> 0 | W27: 40549.13 | X27: 28200.67
A28: CITYSEDALIA001 | B28: 409-3107 | C28: Liberty Park | D28: 104013 | E28: 26475 | F28: 21118.38 | G28: 22043.09 | H28: 17583.99 | I28: 0 | J28: 863.09 | K28: 21180 | L28: =+G28-H28 -> 4459.1 | M28: 19062 | N28: =+G28-W28 -> 0 | O28: =+H28-X28 -> 0 | P28: =+H28/F28 -> 0.8326391513 | Q28: =+G28/E28 -> 0.8326001889 | R28: =IF(K28>G28,K28-G28,0) -> 0 | S28: =IF(G28>K28,G28-K28,0) -> 863.09 | T28: =+P28-Q28 -> 3.896244112e-05 | U28: =+I28-R28 -> 0 | V28: =+J28-S28 -> 0 | W28: 22043.09 | X28: 17583.99
A29: MCCONEX001 | B29: 409-2732 | C29: Traffic Signal Work | D29: 104013 | E29: 26419 | F29: 23625.47 | G29: 17193.49 | H29: 15375.78 | I29: 0 | J29: 17193.49 | K29: 0 | L29: =+G29-H29 -> 1817.71 | M29: 0 | N29: =+G29-W29 -> 3241.62 | O29: =+H29-X29 -> 2900.37 | P29: =+H29/F29 -> 0.6508137193 | Q29: =+G29/E29 -> 0.6508001817 | R29: =IF(K29>G29,K29-G29,0) -> 0 | S29: =IF(G29>K29,G29-K29,0) -> 17193.49 | T29: =+P29-Q29 -> 1.353757404e-05 | U29: =+I29-R29 -> 0 | V29: =+J29-S29 -> 0 | W29: 13951.87 | X29: 12475.41
A30: LG&E001 | B30: 410-3158 | C30: Reaction Tank Rehabilitation | D30: 104012 | E30: 26015 | F30: 39586.22 | G30: 26015 | H30: 39586.22 | I30: 0 | J30: 0 | K30: 26015 | L30: =+G30-H30 -> -13571.22 | M30: 26015 | N30: =+G30-W30 -> 0 | O30: =+H30-X30 -> 325 | P30: =+H30/F30 -> 1 | Q30: =+G30/E30 -> 1 | R30: =IF(K30>G30,K30-G30,0) -> 0 | S30: =IF(G30>K30,G30-K30,0) -> 0 | T30: =+P30-Q30 -> 0 | U30: =+I30-R30 -> 0 | V30: =+J30-S30 -> 0 | W30: 26015 | X30: 39261.22
A31: MIDADMERICAN | B31: 509-2549 REV 2 | C31: Replacement Spot Type Heat | D31: 104014 | E31: 22932 | F31: 15881.46 | G31: 0 | H31: 0 | I31: 0 | J31: 0 | K31: 0 | L31: =+G31-H31 -> 0 | M31: 0 | N31: =+G31-W31 -> 0 | O31: =+H31-X31 -> 0 | P31: =+H31/F31 -> 0 | Q31: =+G31/E31 -> 0 | R31: =IF(K31>G31,K31-G31,0) -> 0 | S31: =IF(G31>K31,G31-K31,0) -> 0 | T31: =+P31-Q31 -> 0 | U31: =+I31-R31 -> 0 | V31: =+J31-S31 -> 0 | W31: 0 | X31: 0
A32: TRISTATE001 | B32: 410-3375 | C32: Fire Protection Audit | D32: 104014 | E32: 21731 | F32: 4545.18 | G32: 21731 | H32: 4545.18 | I32: 0 | J32: 0 | K32: 21731 | L32: =+G32-H32 -> 17185.82 | M32: 21731 | N32: =+G32-W32 -> 17615.15 | O32: =+H32-X32 -> 1380.17 | P32: =+H32/F32 -> 1 | Q32: =+G32/E32 -> 1 | R32: =IF(K32>G32,K32-G32,0) -> 0 | S32: =IF(G32>K32,G32-K32,0) -> 0 | T32: =+P32-Q32 -> 0 | U32: =+I32-R32 -> 0 | V32: =+J32-S32 -> 0 | W32: 4115.85 | X32: 3165.01
A33: MWALLSTAR001 | B33: 410-3370 | C33: Sprinkler System Bldg 4076 | D33: 304014 | E33: 15293 | F33: 10705 | G33: 0 | H33: 0 | I33: 0 | J33: 0 | K33: 0 | L33: =+G33-H33 -> 0 | M33: 0 | N33: =+G33-W33 -> 0 | O33: =+H33-X33 -> 0 | P33: =+H33/F33 -> 0 | Q33: =+G33/E33 -> 0 | R33: =IF(K33>G33,K33-G33,0) -> 0 | S33: =IF(G33>K33,G33-K33,0) -> 0 | T33: =+P33-Q33 -> 0 | U33: =+I33-R33 -> 0 | V33: =+J33-S33 -> 0 | W33: 0 | X33: 0
A34: AMERENUE001 | B34: 410-3218 GOOSE | C34: Borescope Inspections | D34: 104005 | E34: 13212 | F34: 7582.1 | G34: 0 | H34: 0 | I34: 0 | J34: 0 | K34: 0 | L34: =+G34-H34 -> 0 | M34: 0 | N34: =+G34-W34 -> 0 | O34: =+H34-X34 -> 0 | P34: =+H34/F34 -> 0 | Q34: =+G34/E34 -> 0 | R34: =IF(K34>G34,K34-G34,0) -> 0 | S34: =IF(G34>K34,G34-K34,0) -> 0 | T34: =+P34-Q34 -> 0 | U34: =+I34-R34 -> 0 | V34: =+J34-S34 -> 0 | W34: 0 | X34: 0
A35: MWALLSTAR001 | B35: 410-3444 | C35: Bldg 1117 Fire Protection | D35: 304014 | E35: 12205 | F35: 9259 | G35: 1331.57 | H35: 1009.8 | I35: 0 | J35: 1331.57 | K35: 0 | L35: =+G35-H35 -> 321.77 | M35: 0 | N35: =+G35-W35 -> 0 | O35: =+H35-X35 -> 0 | P35: =+H35/F35 -> 0.1090614537 | Q35: =+G35/E35 -> 0.1091003687 | R35: =IF(K35>G35,K35-G35,0) -> 0 | S35: =IF(G35>K35,G35-K35,0) -> 1331.57 | T35: =+P35-Q35 -> -3.891498065e-05 | U35: =+I35-R35 -> 0 | V35: =+J35-S35 -> 0 | W35: 1331.57 | X35: 1009.8
A36: AMERENUE001 | B36: 410-3218 RAC CK | C36: Borescope Inspections | D36: 104005 | E36: 9600 | F36: 5087.2 | G36: 0 | H36: 0 | I36: 0 | J36: 0 | K36: 0 | L36: =+G36-H36 -> 0 | M36: 0 | N36: =+G36-W36 -> 0 | O36: =+H36-X36 -> 0 | P36: =+H36/F36 -> 0 | Q36: =+G36/E36 -> 0 | R36: =IF(K36>G36,K36-G36,0) -> 0 | S36: =IF(G36>K36,G36-K36,0) -> 0 | T36: =+P36-Q36 -> 0 | U36: =+I36-R36 -> 0 | V36: =+J36-S36 -> 0 | W36: 0 | X36: 0
A37: WATERL001 | B37: 410-3461 | C37: Air Header Installation | D37: 104012 | E37: 9446 | F37: 7289.6 | G37: 7169.51 | H37: 5532.68 | I37: 2276.49 | J37: 0 | K37: 9446 | L37: =+G37-H37 -> 1636.83 | M37: 0 | N37: =+G37-W37 -> 528.97 | O37: =+H37-X37 -> 408.48 | P37: =+H37/F37 -> 0.7589826602 | Q37: =+G37/E37 -> 0.7589995765 | R37: =IF(K37>G37,K37-G37,0) -> 2276.49 | S37: =IF(G37>K37,G37-K37,0) -> 0 | T37: =+P37-Q37 -> -1.691631206e-05 | U37: =+I37-R37 -> 0 | V37: =+J37-S37 -> 0 | W37: 6640.54 | X37: 5124.2
A38: HAYES001 | B38: 409-2935 | C38: Load Center Cleaning | D38: 104013 | E38: 8730 | F38: 2144.5 | G38: 8730 | H38: 2144.5 | I38: 0 | J38: 0 | K38: 8730 | L38: =+G38-H38 -> 6585.5 | M38: 8730 | N38: =+G38-W38 -> 0 | O38: =+H38-X38 -> 0 | P38: =+H38/F38 -> 1 | Q38: =+G38/E38 -> 1 | R38: =IF(K38>G38,K38-G38,0) -> 0 | S38: =IF(G38>K38,G38-K38,0) -> 0 | T38: =+P38-Q38 -> 0 | U38: =+I38-R38 -> 0 | V38: =+J38-S38 -> 0 | W38: 8730 | X38: 2144.5
A39: AMERENUE001 | B39: 410-3218 KINMUN | C39: Borescope Inspections | D39: 104005 | E39: 6787 | F39: 3735.9 | G39: 0 | H39: 0 | I39: 0 | J39: 0 | K39: 0 | L39: =+G39-H39 -> 0 | M39: 0 | N39: =+G39-W39 -> 0 | O39: =+H39-X39 -> 0 | P39: =+H39/F39 -> 0 | Q39: =+G39/E39 -> 0 | R39: =IF(K39>G39,K39-G39,0) -> 0 | S39: =IF(G39>K39,G39-K39,0) -> 0 | T39: =+P39-Q39 -> 0 | U39: =+I39-R39 -> 0 | V39: =+J39-S39 -> 0 | W39: 0 | X39: 0
A40: WALDINGER001 | B40: 409-2951 | C40: T9 HVAC WAFB | D40: 104013 | E40: 6212.3 | F40: 10478.69 | G40: 6212.3 | H40: 10478.69 | I40: 0 | J40: 0 | K40: 6212.3 | L40: =+G40-H40 -> -4266.39 | M40: 0 | N40: =+G40-W40 -> 0 | O40: =+H40-X40 -> 2413.24 | P40: =+H40/F40 -> 1 | Q40: =+G40/E40 -> 1 | R40: =IF(K40>G40,K40-G40,0) -> 0 | S40: =IF(G40>K40,G40-K40,0) -> 0 | T40: =+P40-Q40 -> 0 | U40: =+I40-R40 -> 0 | V40: =+J40-S40 -> 0 | W40: 6212.3 | X40: 8065.45
A41: AMERENUE001 | B41: 410-3314 | C41: Gas Leak Repairs | D41: 104005 | E41: 4000 | F41: 1172.07 | G41: 4000 | H41: 1172.07 | I41: 0 | J41: 0 | K41: 4000 | L41: =+G41-H41 -> 2827.93 | M41: 4000 | N41: =+G41-W41 -> 0 | O41: =+H41-X41 -> 0 | P41: =+H41/F41 -> 1 | Q41: =+G41/E41 -> 1 | R41: =IF(K41>G41,K41-G41,0) -> 0 | S41: =IF(G41>K41,G41-K41,0) -> 0 | T41: =+P41-Q41 -> 0 | U41: =+I41-R41 -> 0 | V41: =+J41-S41 -> 0 | W41: 4000 | X41: 1172.07
A42: DITZFELD001 | B42: 409-2714 | C42: Backflow Test | D42: 104014 | E42: 3767.4 | F42: 1708.6 | G42: 3767.4 | H42: 1708.6 | I42: 0 | J42: 0 | K42: 3767.4 | L42: =+G42-H42 -> 2058.8 | M42: 3767.4 | N42: =+G42-W42 -> 0 | O42: =+H42-X42 -> 0 | P42: =+H42/F42 -> 1 | Q42: =+G42/E42 -> 1 | R42: =IF(K42>G42,K42-G42,0) -> 0 | S42: =IF(G42>K42,G42-K42,0) -> 0 | T42: =+P42-Q42 -> 0 | U42: =+I42-R42 -> 0 | V42: =+J42-S42 -> 0 | W42: 3767.4 | X42: 1708.6
A43: AMERENUE001 | B43: 410-3251 REV 1 | C43: Fire Inspection Raccoon Creek | D43: 104014 | E43: 2890 | F43: 1605.93 | G43: 2890 | H43: 1605.93 | I43: 0 | J43: 0 | K43: 2890 | L43: =+G43-H43 -> 1284.07 | M43: 2890 | N43: =+G43-W43 -> 614.7 | O43: =+H43-X43 -> 0 | P43: =+H43/F43 -> 1 | Q43: =+G43/E43 -> 1 | R43: =IF(K43>G43,K43-G43,0) -> 0 | S43: =IF(G43>K43,G43-K43,0) -> 0 | T43: =+P43-Q43 -> 0 | U43: =+I43-R43 -> 0 | V43: =+J43-S43 -> 0 | W43: 2275.3 | X43: 1605.93
A44: AMERENUE001 | B44: 410-3250 REV 1 | C44: Fire Inspection Kinmundy | D44: 104014 | E44: 2600 | F44: 511.49 | G44: 2600 | H44: 511.49 | I44: 0 | J44: 0 | K44: 2600 | L44: =+G44-H44 -> 2088.51 | M44: 2600 | N44: =+G44-W44 -> 1914.64 | O44: =+H44-X44 -> 0 | P44: =+H44/F44 -> 1 | Q44: =+G44/E44 -> 1 | R44: =IF(K44>G44,K44-G44,0) -> 0 | S44: =IF(G44>K44,G44-K44,0) -> 0 | T44: =+P44-Q44 -> 0 | U44: =+I44-R44 -> 0 | V44: =+J44-S44 -> 0 | W44: 685.36 | X44: 511.49
A45: STOVERMILL001 | B45: 409-2900 | C45: Grain Leg Repair | D45: 104005 | E45: 2163 | F45: 1709.2 | G45: 136.27 | H45: 107.61 | I45: 0 | J45: 136.27 | K45: 0 | L45: =+G45-H45 -> 28.66 | M45: 0 | N45: =+G45-W45 -> 0 | O45: =+H45-X45 -> 0 | P45: =+H45/F45 -> 0.06295927919 | Q45: =+G45/E45 -> 0.06300046232 | R45: =IF(K45>G45,K45-G45,0) -> 0 | S45: =IF(G45>K45,G45-K45,0) -> 136.27 | T45: =+P45-Q45 -> -4.118312591e-05 | U45: =+I45-R45 -> 0 | V45: =+J45-S45 -> 0 | W45: 136.27 | X45: 107.61
A46: DOGEN001 | B46: 409-2284 | C46: Valve Replacement | D46: 104005 | E46: 1482.47 | F46: 673 | G46: 1482.47 | H46: 673 | I46: 0 | J46: 0 | K46: 1482.47 | L46: =+G46-H46 -> 809.47 | M46: 0 | N46: =+G46-W46 -> 0 | O46: =+H46-X46 -> 0 | P46: =+H46/F46 -> 1 | Q46: =+G46/E46 -> 1 | R46: =IF(K46>G46,K46-G46,0) -> 0 | S46: =IF(G46>K46,G46-K46,0) -> 0 | T46: =+P46-Q46 -> 0 | U46: =+I46-R46 -> 0 | V46: =+J46-S46 -> 0 | W46: 1482.47 | X46: 673
A47: SUNFL001 | B47: FS08-1678-1063 | C47: Freezer Lighting | D47: 104013 | E47: 625.97 | F47: 0 | G47: 625.97 | H47: 0 | I47: 0 | J47: 0 | K47: 625.97 | L47: =+G47-H47 -> 625.97 | M47: 0 | N47: =+G47-W47 -> 625.97 | O47: =+H47-X47 -> 0 | P47: 1 | Q47: =+G47/E47 -> 1 | R47: =IF(K47>G47,K47-G47,0) -> 0 | S47: =IF(G47>K47,G47-K47,0) -> 0 | T47: =+P47-Q47 -> 0 | U47: =+I47-R47 -> 0 | V47: =+J47-S47 -> 0 | W47: 0 | X47: 0
A48: BELGER001 | B48: CS10-0212 | C48: Load Stator | D48: 104005 | E48: 324.5 | F48: 117 | G48: 324.5 | H48: 117 | I48: 0 | J48: 0 | K48: 324.5 | L48: =+G48-H48 -> 207.5 | M48: 0 | N48: =+G48-W48 -> 324.5 | O48: =+H48-X48 -> 117 | P48: =+H48/F48 -> 1 | Q48: =+G48/E48 -> 1 | R48: =IF(K48>G48,K48-G48,0) -> 0 | S48: =IF(G48>K48,G48-K48,0) -> 0 | T48: =+P48-Q48 -> 0 | U48: =+I48-R48 -> 0 | V48: =+J48-S48 -> 0 | W48: 0 | X48: 0
A49: DERWICK001 | B49: 409-2956 | C49: 7EA Liquid Fuel Conversion | D49: 104002 | E49: 0 | F49: 0 | G49: 0 | H49: 0 | I49: 0 | J49: 0 | K49: 0 | L49: =+G49-H49 -> 0 | M49: 0 | N49: =+G49-W49 -> 0 | O49: =+H49-X49 -> 0 | P49: 0 | Q49: 0 | R49: =IF(K49>G49,K49-G49,0) -> 0 | S49: =IF(G49>K49,G49-K49,0) -> 0 | T49: =+P49-Q49 -> 0 | U49: =+I49-R49 -> 0 | V49: =+J49-S49 -> 0 | W49: 0 | X49: 0
C51: Total Revenue Recognition | E51: =SUM(E2:E50) -> 86625756.68 | F51: =SUM(F2:F50) -> 74398328.18 | G51: 56219612.63 | H51: 46123881.66 | I51: 8905355.26 | J51: 1220660.21 | K51: 63904307.68 | L51: 10095730.97 | M51: 58228697.32 | N51: 718930.78 | O51: 1031727.58 | P51: 33.53946477 | Q51: 33.73392163

Sheet TS
A1: Customer Number | B1: Project Number | C1: Project Name | D1: Department | E1: Project Amount | F1: Forecast Total Cost | G1: Net Recognized Revenue | H1: Actual Total Cost | I1: Actual BIEE Amount 2455 | J1: Actual EIEB Amount 1205 | K1: Actual Billings | L1: Net Margin | M1: Cash Received To-Date | N1: Current Month Revenue | O1: Current Month Cost | P1: Cost % Completed | Q1: Rev % Recognized | R1: Calc BIEE | S1: Calc EIEB | T1: Difference Rev Recog | U1: Difference BIEE | V1: Difference EIEB | W1: Prior Month Net Recognized Revenue | X1: Prior Month Total Cost
A2: INOTEC001 | B2: 110-3353 MOB | C2: Angola Mobilization | D2: 105009 | E2: 1098394 | F2: 878715 | G2: 8128.12 | H2: 6526.82 | I2: 0 | J2: 8128.12 | K2: 0 | L2: =+G2-H2 -> 1601.3 | M2: 0 | N2: =+G2-W2 -> 8128.12 | O2: =+H2-X2 -> 6526.82 | P2: =+H2/F2 -> 0.00742768702 | Q2: =+G2/E2 -> 0.007400004006 | R2: =IF(K2>G2,K2-G2,0) -> 0 | S2: =IF(G2>K2,G2-K2,0) -> 8128.12 | T2: =+P2-Q2 -> 2.76830144e-05 | U2: =+I2-R2 -> 0 | V2: =+J2-S2 -> 0 | W2: 0 | X2: 0
A3: PROEPC001 | B3: 109-2317 MOB | C3: Naudero Mobilization | D3: 105009 | E3: 900000 | F3: 765000 | G3: 620190 | H3: 527155.26 | I3: 279810 | J3: 0 | K3: 900000 | L3: =+G3-H3 -> 93034.74 | M3: 877720.12 | N3: =+G3-W3 -> 144630 | O3: =+H3-X3 -> 122898.5 | P3: =+H3/F3 -> 0.6890918431 | Q3: =+G3/E3 -> 0.6891 | R3: =IF(K3>G3,K3-G3,0) -> 279810 | S3: =IF(G3>K3,G3-K3,0) -> 0 | T3: =+P3-Q3 -> -8.156862745e-06 | U3: =+I3-R3 -> 0 | V3: =+J3-S3 -> 0 | W3: 475560 | X3: 404256.76
A4: JOHNCONTBLD001 | B4: FS08-1422 REV4 | C4: Central Heating Contrl Upgrade | D4: 105004 | E4: 862750 | F4: 614815.46 | G4: 469594.83 | H4: 334619.41 | I4: 0 | J4: 340182.33 | K4: 129412.5 | L4: =+G4-H4 -> 134975.42 | M4: 129412.5 | N4: =+G4-W4 -> 271852.53 | O4: =+H4-X4 -> 193731.93 | P4: =+H4/F4 -> 0.544259915 | Q4: =+G4/E4 -> 0.5443000058 | R4: =IF(K4>G4,K4-G4,0) -> 0 | S4: =IF(G4>K4,G4-K4,0) -> 340182.33 | T4: =+P4-Q4 -> -4.009079589e-05 | U4: =+I4-R4 -> 0 | V4: =+J4-S4 -> 0 | W4: 197742.3 | X4: 140887.48
A5: EPS001 | B5: 510-3156 | C5: ABB Backup Generator Repair | D5: 105008 | E5: 140793.79 | F5: 116000 | G5: 88122.83 | H5: 72600.08 | I5: 52670.96 | J5: 0 | K5: 140793.79 | L5: =+G5-H5 -> 15522.75 | M5: 140793.79 | N5: =+G5-W5 -> 14781.52 | O5: =+H5-X5 -> 16298.61 | P5: =+H5/F5 -> 0.6258627586 | Q5: =+G5/E5 -> 0.6258999775 | R5: =IF(K5>G5,K5-G5,0) -> 52670.96 | S5: =IF(G5>K5,G5-K5,0) -> 0 | T5: =+P5-Q5 -> -3.721892804e-05 | U5: =+I5-R5 -> 0 | V5: =+J5-S5 -> 0 | W5: 73341.31 | X5: 56301.47
A6: EMERS001 | B6: FS08-1251 REV 2 | C6: Mark V Engr Lead | D6: 105004 | E6: 106750 | F6: 73040 | G6: 106750 | H6: 161048.59 | I6: 0 | J6: 10675 | K6: 96075 | L6: =+G6-H6 -> -54298.59 | M6: 96075 | N6: =+G6-W6 -> 0 | O6: =+H6-X6 -> 0 | P6: =+H6/F6 -> 2.204936884 | Q6: =+G6/E6 -> 1 | R6: =IF(K6>G6,K6-G6,0) -> 0 | S6: =IF(G6>K6,G6-K6,0) -> 10675 | T6: =+P6-Q6 -> 1.204936884 | U6: =+I6-R6 -> 0 | V6: =+J6-S6 -> 0 | W6: 106750 | X6: 161048.59
A7: TOSHAMER001 | B7: 2009-05 | C7: Technical Training - Whelan | D7: 105003 | E7: 30000 | F7: 13875 | G7: 30000 | H7: 11955.15 | I7: 0 | J7: 0 | K7: 30000 | L7: =+G7-H7 -> 18044.85 | M7: 30000 | N7: =+G7-W7 -> 0 | O7: =+H7-X7 -> 0 | P7: =+H7/F7 -> 0.8616324324 | Q7: =+G7/E7 -> 1 | R7: =IF(K7>G7,K7-G7,0) -> 0 | S7: =IF(G7>K7,G7-K7,0) -> 0 | T7: =+P7-Q7 -> -0.1383675676 | U7: =+I7-R7 -> 0 | V7: =+J7-S7 -> 0 | W7: 30000 | X7: 11955.15
A8: AMERENUE001 | B8: 109-2899 MOB | C8: June'10 Ameren Mobilization | D8: 105009 | E8: 26400 | F8: 23760 | G8: 26400 | H8: 43673.4 | I8: 0 | J8: 0 | K8: 26400 | L8: =+G8-H8 -> -17273.4 | M8: 26400 | N8: =+G8-W8 -> 4994.88 | O8: =+H8-X8 -> 24409.05 | P8: =+H8/F8 -> 1.838106061 | Q8: =+G8/E8 -> 1 | R8: =IF(K8>G8,K8-G8,0) -> 0 | S8: =IF(G8>K8,G8-K8,0) -> 0 | T8: =+P8-Q8 -> 0.8381060606 | U8: =+I8-R8 -> 0 | V8: =+J8-S8 -> 0 | W8: 21405.12 | X8: 19264.35
A9: TOSHI000020H7EM | B9: 2010-01 | C9: Tech Training- SW Utilities | D9: 105003 | E9: 18500 | F9: 13712 | G9: 18500 | H9: 7775.29 | I9: 0 | J9: 18500 | K9: 0 | L9: =+G9-H9 -> 10724.71 | M9: 0 | N9: =+G9-W9 -> 11024.15 | O9: =+H9-X9 -> 2234.59 | P9: =+H9/F9 -> 0.5670427363 | Q9: =+G9/E9 -> 1 | R9: =IF(K9>G9,K9-G9,0) -> 0 | S9: =IF(G9>K9,G9-K9,0) -> 18500 | T9: =+P9-Q9 -> -0.4329572637 | U9: =+I9-R9 -> 0 | V9: =+J9-S9 -> 0 | W9: 7475.85 | X9: 5540.7
A10: TOSHI000020H7EM | B10: 2010-02 | C10: Tech Training - Prairie States | D10: 105003 | E10: 18500 | F10: 13712 | G10: 16412.75 | H10: 7083.05 | I10: 0 | J10: 16412.75 | K10: 0 | L10: =+G10-H10 -> 9329.7 | M10: 0 | N10: =+G10-W10 -> 6950 | O10: =+H10-X10 -> 69.2 | P10: =+H10/F10 -> 0.5165584889 | Q10: =+G10/E10 -> 0.8871756757 | R10: =IF(K10>G10,K10-G10,0) -> 0 | S10: =IF(G10>K10,G10-K10,0) -> 16412.75 | T10: =+P10-Q10 -> -0.3706171868 | U10: =+I10-R10 -> 0 | V10: =+J10-S10 -> 0 | W10: 9462.75 | X10: 7013.85
A11: TOSHI000020H7EM | B11: 2010-05 | C11: Tech Training Prairie States | D11: 105003 | E11: 18500 | F11: 8019.6 | G11: 4436.3 | H11: 1923.2 | I11: 0 | J11: 4436.3 | K11: 0 | L11: =+G11-H11 -> 2513.1 | M11: 0 | N11: =+G11-W11 -> 4436.3 | O11: =+H11-X11 -> 1923.2 | P11: =+H11/F11 -> 0.2398124595 | Q11: =+G11/E11 -> 0.2398 | R11: =IF(K11>G11,K11-G11,0) -> 0 | S11: =IF(G11>K11,G11-K11,0) -> 4436.3 | T11: =+P11-Q11 -> 1.245947429e-05 | U11: =+I11-R11 -> 0 | V11: =+J11-S11 -> 0 | W11: 0 | X11: 0
A12: JOHNCONTBLD001 | B12: FS08-1417 CO | C12: WAFB Boiler #2 Repairs | D12: 105004 | E12: 10391 | F12: 7000 | G12: 10391 | H12: 9056.68 | I12: 0 | J12: 0 | K12: 10391 | L12: =+G12-H12 -> 1334.32 | M12: 0 | N12: =+G12-W12 -> 0 | O12: =+H12-X12 -> 198.88 | P12: =+H12/F12 -> 1.293811429 | Q12: =+G12/E12 -> 1 | R12: =IF(K12>G12,K12-G12,0) -> 0 | S12: =IF(G12>K12,G12-K12,0) -> 0 | T12: =+P12-Q12 -> 0.2938114286 | U12: =+I12-R12 -> 0 | V12: =+J12-S12 -> 0 | W12: 10391 | X12: 8857.8
A13: TOSHI000020H7EM | B13: 2010-03 | C13: Tech Training-Belledune | D13: 105003 | E13: 10100 | F13: 7496.4 | G13: 10100 | H13: 11824.74 | I13: 0 | J13: 10100 | K13: 0 | L13: =+G13-H13 -> -1724.74 | M13: 0 | N13: =+G13-W13 -> 0 | O13: =+H13-X13 -> 2740.92 | P13: =+H13/F13 -> 1.577389147 | Q13: =+G13/E13 -> 1 | R13: =IF(K13>G13,K13-G13,0) -> 0 | S13: =IF(G13>K13,G13-K13,0) -> 10100 | T13: =+P13-Q13 -> 0.5773891468 | U13: =+I13-R13 -> 0 | V13: =+J13-S13 -> 0 | W13: 10100 | X13: 9083.82
C15: Total Revenue Recognition | E15: =SUM(E2:E14) -> 3241078.79 | F15: =SUM(F2:F14) -> 2535145.46 | G15: 1409025.83 | H15: 1195241.67 | I15: 332480.96 | J15: 408434.5 | K15: 1333072.29 | L15: 213784.16 | M15: 1300401.41 | N15: 466797.5 | O15: 371031.7 | P15: 10.96593184

Sheet O&M Rev Recg
A1: Customer Number | B1: Project Number | C1: Project Name | D1: Department | E1: Project Amount | F1: Forecast Total Cost | G1: Net Recognized Revenue | H1: Actual Total Cost | I1: Actual BIEE Amount 2455 | J1: Actual EIEB Amount 1205 | K1: Actual Billings | L1: Net Margin | M1: Cash Received To-Date | N1: Current Month Revenue | O1: Current Month Cost | P1: Cost % Completed | Q1: Rev % Recognized | R1: Calc BIEE | S1: Calc EIEB | T1: Difference Rev Recog | U1: Difference BIEE | V1: Difference EIEB | W1: Prior Month Net Recognized Revenue | X1: Prior Month Total Cost
A2: EMGASUD001 | B2: OM08-1239 O&M-M | C2: Matheu O&M | D2: 101160 | E2: 2516697 | F2: 1798502.01 | G2: 1639380 | H2: 1171546 | I2: 392587 | J2: 0 | K2: 2031967 | L2: =+G2-H2 -> 467834 | M2: 1896408 | N2: =+G2-X2 -> 547220 | O2: =+H2-Y2 -> 1171546 | P2: =+H2/F2 -> 0.6514009957 | Q2: =+G2/E2 -> 0.6514014202 | R2: =IF(K2>G2,K2-G2,0) -> 392587 | S2: =IF(G2>K2,G2-K2,0) -> 0 | T2: =+P2-Q2 -> -4.245406474e-07 | U2: =+I2-R2 -> 0 | V2: =+J2-S2 -> 0 | W2: 1528292 | X2: 1092160
A3: GENATL001 | B3: OM07-0509 O&M2 | C3: TermoColon O&M | D3: 101150 | E3: 2500000 | F3: 2131659 | G3: 2500000 | H3: =2155268-23609 -> 2131659 | I3: 0 | J3: 383065 | K3: 2116935 | L3: =+G3-H3 -> 368341 | M3: 1575000 | N3: =+G3-X3 -> 368341 | O3: =+H3-Y3 -> 2131659 | P3: =+H3/F3 -> 1 | Q3: =+G3/E3 -> 1 | R3: =IF(K3>G3,K3-G3,0) -> 0 | S3: =IF(G3>K3,G3-K3,0) -> 383065 | T3: =+P3-Q3 -> 0 | U3: =+I3-R3 -> 0 | V3: =+J3-S3 -> 0 | W3: 2500000 | X3: =2155268-23609 -> 2131659
A4: INOTEC001 | B4: 110-3353 REV 3 | C4: Operations & Maintenance | D4: 101220 | E4: 2200782 | F4: 1955944 | G4: 0 | H4: 0 | I4: 0 | J4: 0 | K4: 0 | L4: =+G4-H4 -> 0 | M4: 0 | N4: =+G4-W4 -> 0 | O4: =+H4-X4 -> 0 | P4: =+H4/F4 -> 0 | Q4: =+G4/E4 -> 0 | R4: =IF(K4>G4,K4-G4,0) -> 0 | S4: =IF(G4>K4,G4-K4,0) -> 0 | T4: =+P4-Q4 -> 0 | U4: =+I4-R4 -> 0 | V4: =+J4-S4 -> 0 | W4: 0 | X4: 0
A5: GENATL001 | B5: OM07-0509 MOBSC2 | C5: TermoColon Mobilization | D5: 101150 | E5: 1500000 | F5: 1259219 | G5: 1117674 | H5: 938265 | I5: 382326 | J5: 0 | K5: 1500000 | L5: =+G5-H5 -> 179409 | M5: 1026013.7 | N5: =+G5-X5 -> 187021 | O5: =+H5-Y5 -> 938265 | P5: =+H5/F5 -> 0.7451166159 | Q5: =+G5/E5 -> 0.745116 | R5: =IF(K5>G5,K5-G5,0) -> 382326 | S5: =IF(G5>K5,G5-K5,0) -> 0 | T5: =+P5-Q5 -> 6.159341623e-07 | U5: =+I5-R5 -> 0 | V5: =+J5-S5 -> 0 | W5: 1108607 | X5: 930653
A6: EMGASUD001 | B6: OM08-1239 O&M-P | C6: Parana O&M | D6: 101170 | E6: 1232946 | F6: 1051681 | G6: 825510 | H6: 704145 | I6: 556736 | J6: 0 | K6: 1382246 | L6: =+G6-H6 -> 121365 | M6: 1211665 | N6: =+G6-X6 -> 201759 | O6: =+H6-Y6 -> 704145 | P6: =+H6/F6 -> 0.6695423802 | Q6: =+G6/E6 -> 0.669542705 | R6: =IF(K6>G6,K6-G6,0) -> 556736 | S6: =IF(G6>K6,G6-K6,0) -> 0 | T6: =+P6-Q6 -> -3.247868289e-07 | U6: =+I6-R6 -> 0 | V6: =+J6-S6 -> 0 | W6: 731259 | X6: 623751
A7: INOTEC001 | B7: 110-3353 INV | C7: Inventory Costs | D7: 101220 | E7: 1110121.47 | F7: 1200000 | G7: 0 | H7: 0 | I7: 0 | J7: 0 | K7: 0 | L7: =+G7-H7 -> 0 | M7: 0 | N7: =+G7-W7 -> 0 | O7: =+H7-X7 -> 0 | P7: =+H7/F7 -> 0 | Q7: =+G7/E7 -> 0 | R7: =IF(K7>G7,K7-G7,0) -> 0 | S7: =IF(G7>K7,G7-K7,0) -> 0 | T7: =+P7-Q7 -> 0 | U7: =+I7-R7 -> 0 | V7: =+J7-S7 -> 0 | W7: 0 | X7: 0
A8: GENATL001 | B8: OM07-0509 RS | C8: Repair Services - TermoColon | D8: 101150 | E8: 1081063.87 | F8: 982181.16 | G8: 722583.09 | H8: 656489.89 | I8: 267935.09 | J8: 0 | K8: =1081017.68-90499.5 -> 990518.18 | L8: =+G8-H8 -> 66093.2 | M8: 0 | N8: =+G8-W8 -> 26909.73 | O8: =+H8-X8 -> 24412.38 | P8: =+H8/F8 -> 0.6684000027 | Q8: =+G8/E8 -> 0.6683999993 | R8: =IF(K8>G8,K8-G8,0) -> 267935.09 | S8: =IF(G8>K8,G8-K8,0) -> 0 | T8: =+P8-Q8 -> 3.359096001e-09 | U8: =+I8-R8 -> 0 | V8: =+J8-S8 -> 0 | W8: 695673.36 | X8: 632077.51
A9: GENATL001 | B9: OM07-0509 SP-CC | C9: Spares - Combined Cycle | D9: 101150 | E9: 1000000 | F9: 856071 | G9: 464000 | H9: 397243.72 | I9: 536000 | J9: 0 | K9: 1000000 | L9: =+G9-H9 -> 66756.28 | M9: 0 | N9: =+G9-W9 -> 4200 | O9: =+H9-X9 -> 3613.15 | P9: =+H9/F9 -> 0.4640312778 | Q9: =+G9/E9 -> 0.464 | R9: =IF(K9>G9,K9-G9,0) -> 536000 | S9: =IF(G9>K9,G9-K9,0) -> 0 | T9: =+P9-Q9 -> 3.127777953e-05 | U9: =+I9-R9 -> 0 | V9: =+J9-S9 -> 0 | W9: 459800 | X9: 393630.57
A10: EMGASUD001 | B10: OM08-1239 RS-M1 | C10: Emgasud Matheu Repair Ser Fee | D10: 101160 | E10: 843588.11 | F10: 707953 | G10: 0 | H10: 0 | I10: =292318.11+56250 -> 348568.11 | J10: 0 | K10: =367318.11-18750 -> 348568.11 | L10: =+G10-H10 -> 0 | M10: 251250 | N10: =+G10-W10 -> 0 | O10: =+H10-X10 -> 0 | P10: =+H10/F10 -> 0 | Q10: =+G10/E10 -> 0 | R10: =IF(K10>G10,K10-G10,0) -> 348568.11 | S10: =IF(G10>K10,G10-K10,0) -> 0 | T10: =+P10-Q10 -> 0 | U10: =+I10-R10 -> 0 | V10: =+J10-S10 -> 0 | W10: 0 | X10: 0
A11: GENATL001 | B11: OM07-0509 SP-SC | C11: Spares - Simple Cycle | D11: 101150 | E11: 500000 | F11: 507566.27 | G11: 498800 | H11: 506348.11 | I11: 1200 | J11: 0 | K11: 500000 | L11: =+G11-H11 -> -7548.11 | M11: 500000 | N11: =+G11-W11 -> 0 | O11: =+H11-X11 -> 25.43 | P11: =+H11/F11 -> 0.9975999981 | Q11: =+G11/E11 -> 0.9976 | R11: =IF(K11>G11,K11-G11,0) -> 1200 | S11: =IF(G11>K11,G11-K11,0) -> 0 | T11: =+P11-Q11 -> -1.875617217e-09 | U11: =+I11-R11 -> 0 | V11: =+J11-S11 -> 0 | W11: 498800 | X11: 506322.68
A12: PROEPC001 | B12: 109-2317 ININV | C12: Naudero Initial Inventory Part | D12: 101200 | E12: 300000 | F12: 272727.27 | G12: 8340 | H12: 7581.82 | I12: =300000-8340 -> 291660 | J12: 0 | K12: =300000 -> 300000 | L12: =+G12-H12 -> 758.18 | M12: 300000 | N12: =+G12-W12 -> 8340 | O12: =+H12-X12 -> 7581.82 | P12: =+H12/F12 -> 0.02780000694 | Q12: =+G12/E12 -> 0.0278 | R12: =IF(K12>G12,K12-G12,0) -> 291660 | S12: =IF(G12>K12,G12-K12,0) -> 0 | T12: =+P12-Q12 -> 6.944666734e-09 | U12: =+I12-R12 -> 0 | V12: =+J12-S12 -> 0 | W12: 0 | X12: 0
A13: EMGASUD001 | B13: OM08-1239 RS-P1 | C13: Emgasud Parana Repair Ser Fee | D13: 101170 | E13: 238832.5 | F13: 244953.4 | G13: 0 | H13: 0 | I13: =163832.5+56250 -> 220082.5 | J13: 0 | K13: =238832.5-18750 -> 220082.5 | L13: =+G13-H13 -> 0 | M13: 106250 | N13: =+G13-W13 -> 0 | O13: =+H13-X13 -> 0 | P13: =+H13/F13 -> 0 | Q13: =+G13/E13 -> 0 | R13: =IF(K13>G13,K13-G13,0) -> 220082.5 | S13: =IF(G13>K13,G13-K13,0) -> 0 | T13: =+P13-Q13 -> 0 | U13: =+I13-R13 -> 0 | V13: =+J13-S13 -> 0 | W13: 0 | X13: 0
A14: ISOLUX001 | B14: 109-2785 BMOB | C14: Batanga Mobilization | D14: 101210 | E14: 161000 | F14: 116000 | G14: 126562.1 | H14: 90905.51 | I14: 34437.9 | J14: 0 | K14: 161000 | L14: =+G14-H14 -> 35656.59 | M14: 0 | N14: =+G14-W14 -> 386.4 | O14: =+H14-X14 -> 0 | P14: =+H14/F14 -> 0.7836681897 | Q14: =+G14/E14 -> 0.7861 | R14: =IF(K14>G14,K14-G14,0) -> 34437.9 | S14: =IF(G14>K14,G14-K14,0) -> 0 | T14: =+P14-Q14 -> -0.002431810345 | U14: =+I14-R14 -> 0 | V14: =+J14-S14 -> 0 | W14: 126175.7 | X14: 90905.51
C16: Total Revenue Recognition | E16: =SUM(E2:E15) -> 15185030.95 | F16: =SUM(F2:F15) -> 13084457.11 | G16: 7902849.19 | H16: 6604184.05 | I16: 3031532.6 | J16: 383065 | K16: 10551316.79 | L16: 1298665.14 | M16: 6866586.7 | N16: 1344177.13 | O16: 4981247.78

Sheet PS PES
A1: Customer Number | B1: Project Number | C1: Project Name | D1: Signed | E1: Department | F1: Project Amount | G1: Forecast Total Cost | H1: Net Recognized Revenue | I1: Actual Total Cost | J1: Actual BIEE Amount 2455 | K1: Actual EIEB Amount 1205 | L1: Actual Billings | M1: Net Margin | N1: Cash Received To-Date | O1: Current Month Revenue | P1: Current Month Cost | Q1: Cost % Completed | R1: Rev % Recognized | S1: Calc BIEE | T1: Calc EIEB | U1: Difference Rev Recog | V1: Difference BIEE | W1: Difference EIEB | X1: Prior Month Net Recognized Revenue | Y1: Prior Month Total Cost
A2: CONSTRUCTION001 | B2: 210-3148 | C2: Field Engineer | D2: No | E2: 100001 | F2: 49489 | G2: 23930.46 | H2: 49489 | I2: 23930.46 | J2: 0 | K2: 0 | L2: 49489 | M2: =+H2-I2 -> 25558.54 | N2: 49489 | O2: =+H2-X2 -> 0 | P2: =+I2-Y2 -> 1330.34 | Q2: =+I2/G2 -> 1 | R2: =+H2/F2 -> 1 | S2: =IF(L2>H2,L2-H2,0) -> 0 | T2: =IF(H2>L2,H2-L2,0) -> 0 | U2: =+Q2-R2 -> 0 | V2: =+J2-S2 -> 0 | W2: =+K2-T2 -> 0 | X2: 49489 | Y2: 22600.12
C4: Professional Services Revenue Recognition | F4: =SUM(F2:F3) -> 49489 | G4: 23930.46 | H4: 49489 | I4: 23930.46 | J4: 0 | K4: 0 | L4: 49489 | M4: 25558.54 | N4: 49489 | O4: 0 | P4: 1330.34

Sheet PRS
A1: Customer Number | B1: Project Number | C1: Project Name | D1: Signed | E1: Department | F1: Project Amount | G1: Forecast Total Cost | H1: Net Recognized Revenue | I1: Actual Total Cost | J1: Actual BIEE Amount 2455 | K1: Actual EIEB Amount 1205 | L1: Actual Billings | M1: Net Margin | N1: Cash Received To-Date | O1: Current Month Revenue | P1: Current Month Cost | Q1: Cost % Completed | R1: Rev % Recognized | S1: Calc BIEE | T1: Calc EIEB | U1: Difference Rev Recog | V1: Difference BIEE | W1: Difference EIEB | X1: Prior Month Net Recognized Revenue | Y1: Prior Month Total Cost
A2: PUBLICPOWER001 | B2: 609-2908 | C2: Coal Dumper Bldg Modifications | D2: Yes | E2: 100001 | F2: 394846 | G2: 321036.44 | H2: 394846 | I2: 225128.4 | J2: 0 | K2: 0 | L2: 394846 | M2: =+H2-I2 -> 169717.6 | N2: 394846 | O2: =+H2-X2 -> 0 | P2: =+I2-Y2 -> 134.26 | Q2: =+I2/G2 -> 0.7012549728 | R2: =+H2/F2 -> 1 | S2: =IF(L2>H2,L2-H2,0) -> 0 | T2: =IF(H2>L2,H2-L2,0) -> 0 | U2: =+Q2-R2 -> -0.2987450272 | V2: =+J2-S2 -> 0 | W2: =+K2-T2 -> 0 | X2: 394846 | Y2: 224994.14
A3: HASTING001 | B3: 610-3220 | C3: Steam Seal Modification | D3: No | E3: 100001 | F3: 91468 | G3: 68203.07 | H3: 91468 | I3: 57816.63 | J3: 0 | K3: 0 | L3: 91468 | M3: =+H3-I3 -> 33651.37 | N3: 88723.96 | O3: =+H3-X3 -> 0 | P3: =+I3-Y3 -> 106.58 | Q3: =+I3/G3 -> 0.8477130135 | R3: =+H3/F3 -> 1 | S3: =IF(L3>H3,L3-H3,0) -> 0 | T3: =IF(H3>L3,H3-L3,0) -> 0 | U3: =+Q3-R3 -> -0.1522869865 | V3: =+J3-S3 -> 0 | W3: =+K3-T3 -> 0 | X3: 91468 | Y3: 57710.05
C5: Process Services Revenue Recognition | F5: =SUM(F2:F4) -> 486314 | G5: 389239.51 | H5: 486314 | I5: 282945.03 | J5: 0 | K5: 0 | L5: 486314 | M5: 203368.97 | N5: 483569.96 | O5: 0 | P5: 240.84

Sheet FS CON Rev Rec
A1: Customer Number | B1: Project Number | C1: Project Name | D1: Department | E1: Project Amount | F1: Forecast Total Cost | G1: Net Recognized Revenue | H1: Actual Total Cost | I1: Actual BIEE Amount 2455 | J1: Actual EIEB Amount 1205 | K1: Actual Billings | L1: Net Margin | M1: Cash Received To-Date | N1: Current Month Revenue | O1: Current Month Cost | P1: Cost % Completed | Q1: Rev % Recognized | R1: Calc BIEE | S1: Calc EIEB | T1: Difference Rev Recog | U1: Difference BIEE | V1: Difference EIEB | W1: Prior Month Net Recognized Revenue | X1: Prior Month Total Cost
A2: MWALLSTAR001 | B2: 410-3370 | C2: Sprinkler System Bldg 4076 | D2: 304014 | E2: 15293 | F2: 10705 | G2: 0 | H2: 0 | I2: 0 | J2: 0 | K2: 0 | L2: =+G2-H2 -> 0 | M2: 0 | N2: =+G2-W2 -> 0 | O2: =+H2-X2 -> 0 | P2: =+H2/F2 -> 0 | Q2: =+G2/E2 -> 0 | R2: =IF(K2>G2,K2-G2,0) -> 0 | S2: =IF(G2>K2,G2-K2,0) -> 0 | T2: =+P2-Q2 -> 0 | U2: =+I2-R2 -> 0 | V2: =+J2-S2 -> 0 | W2: 0 | X2: 0
A3: MWALLSTAR001 | B3: 410-3444 | C3: Bldg 1117 Fire Protection | D3: 304014 | E3: 12205 | F3: 9259 | G3: 1331.57 | H3: 1009.8 | I3: 0 | J3: 1331.57 | K3: 0 | L3: =+G3-H3 -> 321.77 | M3: 0 | N3: =+G3-W3 -> 0 | O3: =+H3-X3 -> 0 | P3: =+H3/F3 -> 0.1090614537 | Q3: =+G3/E3 -> 0.1091003687 | R3: =IF(K3>G3,K3-G3,0) -> 0 | S3: =IF(G3>K3,G3-K3,0) -> 1331.57 | T3: =+P3-Q3 -> -3.891498065e-05 | U3: =+I3-R3 -> 0 | V3: =+J3-S3 -> 0 | W3: 1331.57 | X3: 1009.8
B5: Field Services Revenue Recognition | E5: =SUM(E2:E4) -> 27498 | F5: 19964 | G5: 1331.57 | H5: 1009.8 | I5: 0 | J5: 1331.57 | K5: 0 | L5: 321.77 | M5: 0 | N5: 0 | O5: 0 | R5: =SUM(R2:R4) -> 0 | S5: =SUM(S2:S4) -> 1331.57 | U5: =SUM(U2:U4) -> 0 | V5: =SUM(V2:V4) -> 0 | W5: =SUM(W2:W4) -> 1331.57 | X5: =SUM(X2:X4) -> 1009.8

Sheet FS PES
A1: Customer Number | B1: Project Number | C1: Project Name | D1: Department | E1: Project Amount | F1: Forecast Total Cost | G1: Net Recognized Revenue | H1: Actual Total Cost | I1: Actual BIEE Amount 2455 | J1: Actual EIEB Amount 1205 | K1: Actual Billings | L1: Net Margin | M1: Cash Received To-Date | N1: Current Month Revenue | O1: Current Month Cost | P1: Cost % Completed | Q1: Rev % Recognized | R1: Calc BIEE | S1: Calc EIEB | T1: Difference Rev Recog | U1: Difference BIEE | V1: Difference EIEB | W1: Prior Month Net Recognized Revenue | X1: Prior Month Total Cost
A2: CALEN000020HWEM | B2: 409-2942 REV 1 | C2: CI & Alignment Steam Turbine | D2: 104002 | E2: 112092 | F2: 103385.64 | G2: 112092 | H2: 103385.64 | I2: 0 | J2: 0 | K2: 112092 | L2: =+G2-H2 -> 8706.36 | M2: 12692 | N2: =+G2-W2 -> 0 | O2: =+H2-X2 -> 0 | P2: =+H2/F2 -> 1 | Q2: =+G2/E2 -> 1 | R2: =IF(K2>G2,K2-G2,0) -> 0 | S2: =IF(G2>K2,G2-K2,0) -> 0 | T2: =+P2-Q2 -> 0 | U2: =+I2-R2 -> 0 | V2: =+J2-S2 -> 0 | W2: 112092 | X2: 103385.64
A3: CITYO000020CLEM | B3: 410-3110 | C3: GE 35 MW Steam Turbine Inspec | D3: 104002 | E3: 238626 | F3: 185432.34 | G3: 162361.13 | H3: 126173.44 | I3: 0 | J3: 43048.13 | K3: 119313 | L3: 36187.69 | M3: 0 | N3: 66051.68 | O3: 51326.47 | P3: 0.6804284517 | Q3: 0.6803999983 | R3: 0 | S3: 43048.13 | T3: 2.845336921e-05 | U3: 0 | V3: 0 | W3: 96309.45 | X3: 74846.97
A4: CITYO000020CLEM | B4: 410-3110 EW01 | C4: Steam Turbine Overhaul | D4: 104002 | E4: 95940 | F4: 79950 | G4: 47970 | H4: 39975 | I4: 0 | J4: 47970 | K4: 0 | L4: 7995 | M4: 0 | N4: 47970 | O4: 39975 | P4: 0.5 | Q4: 0.5 | R4: 0 | S4: 47970 | T4: 0 | U4: 0 | V4: 0 | W4: 0 | X4: 0
A5: PACIFICRIM001 | B5: FS07-0344JOS-1 | C5: Josefa Extra Costs | D5: 104002 | E5: 3000000 | F5: 3000000 | G5: 1701500 | H5: 1206655.33 | I5: 1298500 | J5: 0 | K5: 3000000 | L5: 494844.67 | M5: 3000000 | N5: -100000 | O5: 5259.95 | P5: 0.4022184433 | Q5: 0.5671666667 | R5: 1298500 | S5: 0 | T5: -0.1649482233 | U5: 0 | V5: 0 | W5: 1801500 | X5: 1201395.38
A6: VICWLE001 | B6: 409-2958 | C6: Steam Valve Inspection | D6: 104002 | E6: 67055 | F6: 50374.97 | G6: 67055 | H6: 50374.97 | I6: 0 | J6: 0 | K6: 67055 | L6: 16680.03 | M6: 67055 | N6: 0 | O6: 0 | P6: 1 | Q6: 1 | R6: 0 | S6: 0 | T6: 0 | U6: 0 | V6: 0 | W6: 67055 | X6: 50374.97
A7: VTPUBPOW001 | B7: 410-3169 REV 1 | C7: P10 Generator No 2 Repair | D7: 104002 | E7: 1420000 | F7: 1194767.63 | G7: 1420000 | H7: 1194767.63 | I7: 0 | J7: 0 | K7: 1420000 | L7: 225232.37 | M7: 1420000 | N7: 0 | O7: 15784.04 | P7: 1 | Q7: 1 | R7: 0 | S7: 0 | T7: 0 | U7: 0 | V7: 0 | W7: 1420000 | X7: 1178983.59
A8: OMPA001 | B8: 409-2227 | C8: Steam Turbine Overhaul | D8: 104004 | E8: 1014356.5 | F8: 790142.16 | G8: 955523.82 | H8: 744290.03 | I8: 58832.68 | J8: 0 | K8: 1014356.5 | L8: 211233.79 | M8: 954066.5 | N8: 4260.29 | O8: 3337.81 | P8: 0.9419697716 | Q8: 0.941999997 | R8: 58832.68 | S8: 0 | T8: -3.022542567e-05 | U8: 0 | V8: 0 | W8: 951263.53 | X8: 740952.22
A9: AMERENUE001 | B9: 410-3218 GOOSE | C9: Borescope Inspections | D9: 104005 | E9: 13212 | F9: 7582.1 | G9: 0 | H9: 0 | I9: 0 | J9: 0 | K9: 0 | L9: 0 | M9: 0 | N9: 0 | O9: 0 | P9: 0 | Q9: 0 | R9: 0 | S9: 0 | T9: 0 | U9: 0 | V9: 0 | W9: 0 | X9: 0
A10: AMERENUE001 | B10: 410-3218 KINMUN | C10: Borescope Inspections | D10: 104005 | E10: 6787 | F10: 3735.9 | G10: 0 | H10: 0 | I10: 0 | J10: 0 | K10: 0 | L10: 0 | M10: 0 | N10: 0 | O10: 0 | P10: 0 | Q10: 0 | R10: 0 | S10: 0 | T10: 0 | U10: 0 | V10: 0 | W10: 0 | X10: 0
A11: AMERENUE001 | B11: 410-3218 RAC CK | C11: Borescope Inspections | D11: 104005 | E11: 9600 | F11: 5087.2 | G11: 0 | H11: 0 | I11: 0 | J11: 0 | K11: 0 | L11: 0 | M11: 0 | N11: 0 | O11: 0 | P11: 0 | Q11: 0 | R11: 0 | S11: 0 | T11: 0 | U11: 0 | V11: 0 | W11: 0 | X11: 0
A12: AMERENUE001 | B12: 410-3314 | C12: Gas Leak Repairs | D12: 104005 | E12: 4000 | F12: 1172.07 | G12: 4000 | H12: 1172.07 | I12: 0 | J12: 0 | K12: 4000 | L12: 2827.93 | M12: 4000 | N12: 0 | O12: 0 | P12: 1 | Q12: 1 | R12: 0 | S12: 0 | T12: 0 | U12: 0 | V12: 0 | W12: 4000 | X12: 1172.07
A13: BELGER001 | B13: CS10-0212 | C13: Load Stator | D13: 104005 | E13: 324.5 | F13: 117 | G13: 324.5 | H13: 117 | I13: 0 | J13: 0 | K13: 324.5 | L13: 207.5 | M13: 0 | N13: 324.5 | O13: 117 | P13: 1 | Q13: 1 | R13: 0 | S13: 0 | T13: 0 | U13: 0 | V13: 0 | W13: 0 | X13: 0
A14: COIL001 | B14: FS08-1124 REV4 | C14: PW Facility Warrensburg, MO | D14: 104005 | E14: 130782 | F14: 276284.15 | G14: 130782 | H14: 276284.15 | I14: 0 | J14: 0 | K14: 130782 | L14: -145502.15 | M14: 117703.8 | N14: 0 | O14: 0 | P14: 1 | Q14: 1 | R14: 0 | S14: 0 | T14: 0 | U14: 0 | V14: 0 | W14: 130782 | X14: 276284.15
A15: DOGEN001 | B15: 409-2284 | C15: Valve Replacement | D15: 104005 | E15: 1482.47 | F15: 673 | G15: 1482.47 | H15: 673 | I15: 0 | J15: 0 | K15: 1482.47 | L15: 809.47 | M15: 0 | N15: 0 | O15: 0 | P15: 1 | Q15: 1 | R15: 0 | S15: 0 | T15: 0 | U15: 0 | V15: 0 | W15: 1482.47 | X15: 673
A16: STOVERMILL001 | B16: 409-2900 | C16: Grain Leg Repair | D16: 104005 | E16: 2163 | F16: 1709.2 | G16: 136.27 | H16: 107.61 | I16: 0 | J16: 136.27 | K16: 0 | L16: 28.66 | M16: 0 | N16: 0 | O16: 0 | P16: 0.06295927919 | Q16: 0.06300046232 | R16: 0 | S16: 136.27 | T16: -4.118312591e-05 | U16: 0 | V16: 0 | W16: 136.27 | X16: 107.61
A17: TRISTATE001 | B17: 410-3219 | C17: Exhaust Welding | D17: 104005 | E17: 42825 | F17: 17394.51 | G17: 42825 | H17: 17394.51 | I17: 0 | J17: 0 | K17: 42825 | L17: 25430.49 | M17: 42825 | N17: 0 | O17: 66.71 | P17: 1 | Q17: 1 | R17: 0 | S17: 0 | T17: 0 | U17: 0 | V17: 0 | W17: 42825 | X17: 17327.8
A18: CITYOFSP001 | B18: 410-3163 | C18: Steam Drum Internals Repl | D18: 104012 | E18: 195575.63 | F18: 145648.17 | G18: 182902.33 | H18: 136205.95 | I18: 12673.3 | J18: 0 | K18: 195575.63 | L18: 46696.38 | M18: 195575.63 | N18: 1193.01 | O18: 885.72 | P18: 0.9351710358 | Q18: 0.9352000042 | R18: 12673.3 | S18: 0 | T18: -2.896842195e-05 | U18: -1.818989404e-11 | V18: 0 | W18: 181709.32 | X18: 135320.23
A19: LG&E001 | B19: 410-3158 | C19: Reaction Tank Rehabilitation | D19: 104012 | E19: 26015 | F19: 39586.22 | G19: 26015 | H19: 39586.22 | I19: 0 | J19: 0 | K19: 26015 | L19: -13571.22 | M19: 26015 | N19: 0 | O19: 325 | P19: 1 | Q19: 1 | R19: 0 | S19: 0 | T19: 0 | U19: 0 | V19: 0 | W19: 26015 | X19: 39261.22
A20: OG&E001 | B20: 409-2828 REV 2 | C20: HRSG Perforated Plates | D20: 104012 | E20: 211200 | F20: 187603.2 | G20: 188728.32 | H20: 167649.02 | I20: 22471.68 | J20: 0 | K20: 211200 | L20: 21079.3 | M20: 211200 | N20: 21.12 | O20: 30 | P20: 0.8936362493 | Q20: 0.8936 | R20: 22471.68 | S20: 0 | T20: 3.624927507e-05 | U20: 0 | V20: 0 | W20: 188707.2 | X20: 167619.02
A21: OMU001 | B21: 409-2659 | C21: Air Heater Basket Replacement | D21: 104012 | E21: 199440 | F21: 100991.05 | G21: 199440 | H21: 100991.05 | I21: 0 | J21: 0 | K21: 199440 | L21: 98448.95 | M21: 199440 | N21: 0 | O21: 0 | P21: 1 | Q21: 1 | R21: 0 | S21: 0 | T21: 0 | U21: 0 | V21: 0 | W21: 199440 | X21: 100991.05
A22: WATERL001 | B22: 410-3461 | C22: Air Header Installation | D22: 104012 | E22: 9446 | F22: 7289.6 | G22: 7169.51 | H22: 5532.68 | I22: 2276.49 | J22: 0 | K22: 9446 | L22: 1636.83 | M22: 0 | N22: 528.97 | O22: 408.48 | P22: 0.7589826602 | Q22: 0.7589995765 | R22: 2276.49 | S22: 0 | T22: -1.691631206e-05 | U22: 0 | V22: 0 | W22: 6640.54 | X22: 5124.2
A23: CITYSEDALIA001 | B23: 409-3107 | C23: Liberty Park | D23: 104013 | E23: 26475 | F23: 21118.38 | G23: 22043.09 | H23: 17583.99 | I23: 0 | J23: 863.09 | K23: 21180 | L23: 4459.1 | M23: 19062 | N23: 0 | O23: 0 | P23: 0.8326391513 | Q23: 0.8326001889 | R23: 0 | S23: 863.09 | T23: 3.896244112e-05 | U23: 0 | V23: 0 | W23: 22043.09 | X23: 17583.99
A24: HAYES001 | B24: 409-2935 | C24: Load Center Cleaning | D24: 104013 | E24: 8730 | F24: 2144.5 | G24: 8730 | H24: 2144.5 | I24: 0 | J24: 0 | K24: 8730 | L24: 6585.5 | M24: 8730 | N24: 0 | O24: 0 | P24: 1 | Q24: 1 | R24: 0 | S24: 0 | T24: 0 | U24: 0 | V24: 0 | W24: 8730 | X24: 2144.5
A25: MCCONEX001 | B25: 409-2732 | C25: Traffic Signal Work | D25: 104013 | E25: 26419 | F25: 23625.47 | G25: 17193.49 | H25: 15375.78 | I25: 0 | J25: 17193.49 | K25: 0 | L25: 1817.71 | M25: 0 | N25: 3241.62 | O25: 2900.37 | P25: 0.6508137193 | Q25: 0.6508001817 | R25: 0 | S25: 17193.49 | T25: 1.353757404e-05 | U25: 0 | V25: 0 | W25: 13951.87 | X25: 12475.41
A26: MWALLSTAR001 | B26: 409-2843 REV 3 | C26: WAFB T-9 | D26: 104013 | E26: 72318 | F26: 60404.65 | G26: 56914.27 | H26: 47535.33 | I26: 15403.73 | J26: 0 | K26: 72318 | L26: 9378.94 | M26: 0 | N26: 1366.81 | O26: 1136.06 | P26: 0.7869481902 | Q26: 0.7870000553 | R26: 15403.73 | S26: 0 | T26: -5.186506432e-05 | U26: 0 | V26: 0 | W26: 55547.46 | X26: 46399.27
A27: MWALLSTAR001 | B27: 409-2844 REV 1 | C27: Upgrade Dormitory Campus | D27: 104013 | E27: 45320 | F27: 39411.14 | G27: 16981.4 | H27: 14768.09 | I27: 0 | J27: 16981.4 | K27: 0 | L27: 2213.31 | M27: 0 | N27: 58.91 | O27: 52.87 | P27: 0.3747186709 | Q27: 0.3746999117 | R27: 0 | S27: 16981.4 | T27: 1.875917511e-05 | U27: 0 | V27: 0 | W27: 16922.49 | X27: 14715.22
A28: NATCONTR001 | B28: FS08-1678 REV 1 | C28: Nat Ctr Aviation - Wichita | D28: 104013 | E28: 5220525 | F28: 4926101.08 | G28: 5180332.26 | H28: 4926101.08 | I28: 0 | J28: 390920.07 | K28: 4789412.19 | L28: 254231.18 | M28: 3718649.48 | N28: 392804.16 | O28: 392804.16 | P28: 1 | Q28: 0.9923010157 | R28: 0 | S28: 390920.07 | T28: 0.007698984298 | U28: 0 | V28: 6.4028427e-10 | W28: 4787528.1 | X28: 4533296.92
A29: SEPTAG001 | B29: 409-2302 | C29: Sedalia Streetscapes | D29: 104013 | E29: 235226.25 | F29: 304654.42 | G29: 235226.25 | H29: 304654.42 | I29: 0 | J29: 0 | K29: 235226.25 | L29: -69428.17 | M29: 235226.25 | N29: 0 | O29: 0 | P29: 1 | Q29: 1 | R29: 0 | S29: 0 | T29: 0 | U29: 0 | V29: 0 | W29: 235226.25 | X29: 304654.42
A30: SEPTAG001 | B30: 409-2847 | C30: Biosolids Composting Facility | D30: 104013 | E30: 46754 | F30: 40671.13 | G30: 45468.27 | H30: 39554.44 | I30: 0 | J30: 28007.27 | K30: 17461 | L30: 5913.83 | M30: 15714.9 | N30: 18364.98 | O30: 15977.67 | P30: 0.9725434233 | Q30: 0.9725001069 | R30: 0 | S30: 28007.27 | T30: 4.331636516e-05 | U30: 0 | V30: 0 | W30: 27103.29 | X30: 23576.77
A31: STRAUB001 | B31: FS08-1708 | C31: City of W'burg PDHQ | D31: 104013 | E31: 499901.66 | F31: 573107.06 | G31: 499901.66 | H31: 573107.06 | I31: 0 | J31: 0 | K31: 499901.66 | L31: -73205.4 | M31: 421755.66 | N31: 0 | O31: 1868.16 | P31: 1 | Q31: 1 | R31: 0 | S31: 0 | T31: 0 | U31: 0 | V31: 0 | W31: 499901.66 | X31: 571238.9
A32: SUNFL001 | B32: FS08-1678-1063 | C32: Freezer Lighting | D32: 104013 | E32: 625.97 | F32: 0 | G32: 625.97 | H32: 0 | I32: 0 | J32: 0 | K32: 625.97 | L32: 625.97 | M32: 0 | N32: 625.97 | O32: 0 | P32: 1 | Q32: 1 | R32: 0 | S32: 0 | T32: 0 | U32: 0 | V32: 0 | W32: 0 | X32: 0
A33: WALDINGER001 | B33: 409-2951 | C33: T9 HVAC WAFB | D33: 104013 | E33: 6212.3 | F33: 10478.69 | G33: 6212.3 | H33: 10478.69 | I33: 0 | J33: 0 | K33: 6212.3 | L33: -4266.39 | M33: 0 | N33: 0 | O33: 2413.24 | P33: =+H33/F33 -> 1 | Q33: 1 | R33: 0 | S33: 0 | T33: 0 | U33: 0 | V33: 0 | W33: 6212.3 | X33: 8065.45
A34: WALTONCONST001 | B34: 409-2513 REV 2 | C34: Tinker AFB - Warehouse | D34: 104013 | E34: 2074060 | F34: 1859561.84 | G34: 92917.89 | H34: 83391.8 | I34: 0 | J34: 92917.89 | K34: 0 | L34: 9526.09 | M34: 0 | N34: 12236.96 | O34: 11097.13 | P34: 0.04484486518 | Q34: 0.04480000096 | R34: 0 | S34: 92917.89 | T34: 4.486421104e-05 | U34: 0 | V34: 0 | W34: 80680.93 | X34: 72294.67
A35: AMERENUE001 | B35: 410-3250 REV 1 | C35: Fire Inspection Kinmundy | D35: 104014 | E35: 2600 | F35: 511.49 | G35: 2600 | H35: 511.49 | I35: 0 | J35: 0 | K35: 2600 | L35: 2088.51 | M35: 2600 | N35: 1914.64 | O35: 0 | P35: 1 | Q35: 1 | R35: 0 | S35: 0 | T35: 0 | U35: 0 | V35: 0 | W35: 685.36 | X35: 511.49
A36: AMERENUE001 | B36: 410-3251 REV 1 | C36: Fire Inspection Raccoon Creek | D36: 104014 | E36: 2890 | F36: 1605.93 | G36: 2890 | H36: 1605.93 | I36: 0 | J36: 0 | K36: 2890 | L36: 1284.07 | M36: 2890 | N36: 614.7 | O36: 0 | P36: 1 | Q36: 1 | R36: 0 | S36: 0 | T36: 0 | U36: 0 | V36: 0 | W36: 2275.3 | X36: 1605.93
A37: DITZFELD001 | B37: 409-2714 | C37: Backflow Test | D37: 104014 | E37: 3767.4 | F37: 1708.6 | G37: 3767.4 | H37: 1708.6 | I37: 0 | J37: 0 | K37: 3767.4 | L37: 2058.8 | M37: 3767.4 | N37: 0 | O37: 0 | P37: 1 | Q37: 1 | R37: 0 | S37: 0 | T37: 0 | U37: 0 | V37: 0 | W37: 3767.4 | X37: 1708.6
A38: KCPL001 | B38: 410-3223 | C38: Transformer Fire Protection | D38: 104014 | E38: 40905 | F38: 29692.21 | G38: 40905 | H38: 29692.21 | I38: 0 | J38: 0 | K38: 40905 | L38: 11212.79 | M38: 40905 | N38: 355.87 | O38: 1491.54 | P38: 1 | Q38: 1 | R38: 0 | S38: 0 | T38: 0 | U38: 0 | V38: 0 | W38: 40549.13 | X38: 28200.67
A39: MIDADMERICAN | B39: 509-2549 REV 2 | C39: Replacement Spot Type Heat | D39: 104014 | E39: 22932 | F39: 15881.46 | G39: 0 | H39: 0 | I39: 0 | J39: 0 | K39: 0 | L39: 0 | M39: 0 | N39: 0 | O39: 0 | P39: 0 | Q39: 0 | R39: 0 | S39: 0 | T39: 0 | U39: 0 | V39: 0 | W39: 0 | X39: 0
A40: MWALLSTAR001 | B40: 409-2764 REV 1 | C40: HS 3030 Network Fire Alarm | D40: 104014 | E40: 140000 | F40: 107597.73 | G40: 140000 | H40: 107597.73 | I40: 0 | J40: 0 | K40: 140000 | L40: 32402.27 | M40: 126000 | N40: 0 | O40: 0 | P40: 1 | Q40: 1 | R40: 0 | S40: 0 | T40: 0 | U40: 0 | V40: 0 | W40: 140000 | X40: 107597.73
A41: NPPD001 | B41: 409-2885 | C41: Fire Protection Upgrade | D41: 104014 | E41: 2735978 | F41: 2089047.71 | G41: 1342544.4 | H41: 1025166.98 | I41: 0 | J41: 330104.59 | K41: 1012439.81 | L41: 317377.42 | M41: 833454.79 | N41: 191685.92 | O41: 144025.81 | P41: 0.4907341154 | Q41: 0.4906999983 | R41: 0 | S41: 330104.59 | T41: 3.411708358e-05 | U41: 0 | V41: 0 | W41: 1150858.48 | X41: 881141.17
A42: TRISTATE001 | B42: 410-3375 | C42: Fire Protection Audit | D42: 104014 | E42: 21731 | F42: 4545.18 | G42: 21731 | H42: 4545.18 | I42: 0 | J42: 0 | K42: 21731 | L42: 17185.82 | M42: 21731 | N42: 17615.15 | O42: 1380.17 | P42: 1 | Q42: 1 | R42: 0 | S42: 0 | T42: 0 | U42: 0 | V42: 0 | W42: 4115.85 | X42: 3165.01
A43: PACIFICRIM002 | B43: FS07-0344CABR-1 | C43: Cabrutica Installation | D43: 804002 | E43: 17000000 | F43: 15300000 | G43: 2834802.62 | H43: 1981774.53 | I43: 7340197.38 | J43: 0 | K43: 10175000 | L43: 853028.09 | M43: 6475000 | N43: -100000 | O43: 197690.12 | P43: 0.1295277471 | Q43: 0.1667530953 | R43: 7340197.38 | S43: 0 | T43: -0.03722534824 | U43: 0 | V43: 0 | W43: 2934802.62 | X43: 1784084.41
C45: Field Services Revenue Recognition | E45: =SUM(E2:E44) -> 35034292.68 | F45: 31610794.78 | G45: 15822094.62 | H45: 13398633.13 | I45: 8750355.26 | J45: 968142.2 | K45: 23604307.68 | L45: 2423461.49 | M45: 18176059.41 | N45: 561235.26 | O45: 890353.48 | R45: =SUM(R2:R44) -> 8750355.26 | S45: =SUM(S2:S44) -> 968142.2 | U45: =SUM(U2:U44) -> -1.818989404e-11 | V45: =SUM(V2:V44) -> 6.4028427e-10 | W45: =SUM(W2:W44) -> 15260859.36 | X45: =SUM(X2:X44) -> 12508279.65

Sheet FS PESI Rev Rec
A1: Customer Number | B1: Project Number | C1: Project Name | E1: Department | F1: Project Amount | G1: Forecast Total Cost | H1: Net Recognized Revenue | I1: Actual Total Cost | J1: Actual BIEE Amount 2455 | K1: Actual EIEB Amount 1205 | L1: Actual Billings | M1: Net Margin | N1: Cash Received To-Date | O1: Current Month Revenue | P1: Current Month Cost | Q1: Cost % Completed | R1: Rev % Recognized | S1: Calc BIEE | T1: Calc EIEB | U1: Difference Rev Recog | V1: Difference BIEE | W1: Difference EIEB | X1: Prior Month Net Recognized Revenue | Y1: Prior Month Total Cost
A2: DERWICK001 | B2: 409-2956 | C2: 7EA Liquid Fuel Conversion | E2: 104002 | F2: 0 | G2: 0 | H2: 0 | I2: 0 | J2: 0 | K2: 0 | L2: 0 | M2: =+H2-I2 -> 0 | N2: 0 | O2: =+H2-X2 -> 0 | P2: 0 | Q2: 0 | R2: 0 | S2: =IF(L2>H2,L2-H2,0) -> 0 | T2: =IF(H2>L2,H2-L2,0) -> 0 | U2: =+Q2-R2 -> 0 | V2: =+J2-S2 -> 0 | W2: 0 | X2: 0 | Y2: 0
A3: DERWICK001 | B3: 409-2956-1 | C3: Margarita Island Dual Fuel | E3: 104002 | F3: 11263966 | G3: 10137569.4 | H3: 251186.44 | I3: 225738.73 | J3: 0 | K3: 251186.44 | L3: 0 | M3: =+H3-I3 -> 25447.71 | N3: 0 | O3: 157695.52 | P3: 141374.1 | Q3: =+I3/G3 -> 0.02226753979 | R3: =+H3/F3 -> 0.02229999984 | S3: =IF(L3>H3,L3-H3,0) -> 0 | T3: =IF(H3>L3,H3-L3,0) -> 251186.44 | U3: =+Q3-R3 -> -3.246004905e-05 | V3: 0 | W3: 0 | X3: 93490.92 | Y3: 84364.63
A4: GENATL001 | B4: ENG08-1127 REV1 | C4: Engineering Services | E4: 104002 | F4: 3100000 | G4: 2630000 | H4: 2945000 | I4: 2498500 | J4: 155000 | K4: 0 | L4: 3100000 | M4: =+H4-I4 -> 446500 | N4: 2945000 | O4: 0 | P4: 0 | Q4: =+I4/G4 -> 0.95 | R4: =+H4/F4 -> 0.95 | S4: =IF(L4>H4,L4-H4,0) -> 155000 | T4: =IF(H4>L4,H4-L4,0) -> 0 | U4: =+Q4-R4 -> 0 | V4: 0 | W4: 0 | X4: 2945000 | Y4: 2498500
A5: GENATL001 | B5: EQU08-1222 | C5: Equip Sales Agreement - CC | E5: 104002 | F5: 37200000 | G5: 30000000 | H5: 37200000 | I5: 30000000 | J5: 0 | K5: 0 | L5: 37200000 | M5: =+H5-I5 -> 7200000 | N5: 37107637.91 | O5: 0 | P5: 0 | Q5: =+I5/G5 -> 1 | R5: =+H5/F5 -> 1 | S5: =IF(L5>H5,L5-H5,0) -> 0 | T5: =IF(H5>L5,H5-L5,0) -> 0 | U5: =+Q5-R5 -> 0 | V5: 0 | W5: 0 | X5: 37200000 | Y5: 30000000
B7: Field Services Revenue Recognition | F7: =SUM(F2:F6) -> 51563966 | G7: 42767569.4 | H7: 40396186.44 | I7: 32724238.73 | J7: 155000 | K7: 251186.44 | L7: 40300000 | M7: 7671947.71 | N7: 40052637.91 | O7: 157695.52 | P7: 141374.1 | S7: =SUM(S2:S6) -> 155000 | T7: =SUM(T2:T6) -> 251186.44 | V7: =SUM(V2:V6) -> 0 | W7: =SUM(W2:W6) -> 0 | X7: =SUM(X2:X6) -> 40238490.92 | Y7: =SUM(Y2:Y6) -> 32582864.63

Sheet PES TS Rev Rec
A1: Customer Number | B1: Project Number | C1: Project Name | D1: Department | E1: Project Amount | F1: Forecast Total Cost | G1: Net Recognized Revenue | H1: Actual Total Cost | I1: Actual BIEE Amount 2455 | J1: Actual EIEB Amount 1205 | K1: Actual Billings | L1: Net Margin | M1: Cash Received To-Date | N1: Current Month Revenue | O1: Current Month Cost | P1: Cost % Completed | Q1: Rev % Recognized | R1: Calc BIEE | S1: Calc EIEB | T1: Difference Rev Recog | U1: Difference BIEE | V1: Difference EIEB | W1: Prior Month Net Recognized Revenue | X1: Prior Month Total Cost
A2: TOSHAMER001 | B2: 2009-05 | C2: Technical Training - Whelan | D2: 105003 | E2: 30000 | F2: 13875 | G2: 30000 | H2: 11955.15 | I2: 0 | J2: 0 | K2: 30000 | L2: =+G2-H2 -> 18044.85 | M2: 30000 | N2: =+G2-W2 -> 0 | O2: =+H2-X2 -> 0 | P2: =+H2/F2 -> 0.8616324324 | Q2: =+G2/E2 -> 1 | R2: =IF(K2>G2,K2-G2,0) -> 0 | S2: =IF(G2>K2,G2-K2,0) -> 0 | T2: =+P2-Q2 -> -0.1383675676 | U2: =+I2-R2 -> 0 | V2: =+J2-S2 -> 0 | W2: 30000 | X2: 11955.15
A3: TOSHI000020H7EM | B3: 2010-01 | C3: Tech Training- SW Utilities | D3: 105003 | E3: 18500 | F3: 13712 | G3: 18500 | H3: 7775.29 | I3: 0 | J3: 18500 | K3: 0 | L3: 10724.71 | M3: 0 | N3: 11024.15 | O3: 2234.59 | P3: 0.5670427363 | Q3: 1 | R3: 0 | S3: 18500 | T3: -0.4329572637 | U3: 0 | V3: 0 | W3: 7475.85 | X3: 5540.7
A4: TOSHI000020H7EM | B4: 2010-02 | C4: Tech Training - Prairie States | D4: 105003 | E4: 18500 | F4: 13712 | G4: 16412.75 | H4: 7083.05 | I4: 0 | J4: 16412.75 | K4: 0 | L4: 9329.7 | M4: 0 | N4: 6950 | O4: 69.2 | P4: 0.5165584889 | Q4: 0.8871756757 | R4: 0 | S4: 16412.75 | T4: -0.3706171868 | U4: 0 | V4: 0 | W4: 9462.75 | X4: 7013.85
A5: TOSHI000020H7EM | B5: 2010-03 | C5: Tech Training-Belledune | D5: 105003 | E5: 10100 | F5: 7496.4 | G5: 10100 | H5: 11824.74 | I5: 0 | J5: 10100 | K5: 0 | L5: -1724.74 | M5: 0 | N5: 0 | O5: 2740.92 | P5: 1.577389147 | Q5: 1 | R5: 0 | S5: 10100 | T5: 0.5773891468 | U5: 0 | V5: 0 | W5: 10100 | X5: 9083.82
A6: TOSHI000020H7EM | B6: 2010-05 | C6: Tech Training Prairie States | D6: 105003 | E6: 18500 | F6: 8019.6 | G6: 4436.3 | H6: 1923.2 | I6: 0 | J6: 4436.3 | K6: 0 | L6: 2513.1 | M6: 0 | N6: 4436.3 | O6: 1923.2 | P6: 0.2398124595 | Q6: 0.2398 | R6: 0 | S6: 4436.3 | T6: 1.245947429e-05 | U6: 0 | V6: 0 | W6: 0 | X6: 0
A7: EMERS001 | B7: FS08-1251 REV 2 | C7: Mark V Engr Lead | D7: 105004 | E7: 106750 | F7: 73040 | G7: 106750 | H7: 161048.59 | I7: 0 | J7: 10675 | K7: 96075 | L7: -54298.59 | M7: 96075 | N7: 0 | O7: 0 | P7: 2.204936884 | Q7: 1 | R7: 0 | S7: 10675 | T7: 1.204936884 | U7: 0 | V7: 0 | W7: 106750 | X7: 161048.59
A8: JOHNCONTBLD001 | B8: FS08-1417 CO | C8: WAFB Boiler #2 Repairs | D8: 105004 | E8: 10391 | F8: 7000 | G8: 10391 | H8: 9056.68 | I8: 0 | J8: 0 | K8: 10391 | L8: 1334.32 | M8: 0 | N8: 0 | O8: 198.88 | P8: 1.293811429 | Q8: 1 | R8: 0 | S8: 0 | T8: 0.2938114286 | U8: 0 | V8: 0 | W8: 10391 | X8: 8857.8
A9: JOHNCONTBLD001 | B9: FS08-1422 REV4 | C9: Central Heating Contrl Upgrade | D9: 105004 | E9: 862750 | F9: 614815.46 | G9: 469594.83 | H9: 334619.41 | I9: 0 | J9: 340182.33 | K9: 129412.5 | L9: 134975.42 | M9: 129412.5 | N9: 271852.53 | O9: 193731.93 | P9: 0.544259915 | Q9: 0.5443000058 | R9: 0 | S9: 340182.33 | T9: -4.009079589e-05 | U9: 0 | V9: 0 | W9: 197742.3 | X9: 140887.48
A10: EPS001 | B10: 510-3156 | C10: ABB Backup Generator Repair | D10: 105008 | E10: 140793.79 | F10: 116000 | G10: 88122.83 | H10: 72600.08 | I10: 52670.96 | J10: 0 | K10: 140793.79 | L10: 15522.75 | M10: 140793.79 | N10: 14781.52 | O10: 16298.61 | P10: 0.6258627586 | Q10: 0.6258999775 | R10: 52670.96 | S10: 0 | T10: -3.721892804e-05 | U10: 0 | V10: 0 | W10: 73341.31 | X10: 56301.47
A11: AMERENUE001 | B11: 109-2899 MOB | C11: June'10 Ameren Mobilization | D11: 105009 | E11: 26400 | F11: 23760 | G11: 26400 | H11: 43673.4 | I11: 0 | J11: 0 | K11: 26400 | L11: -17273.4 | M11: 26400 | N11: 4994.88 | O11: 24409.05 | P11: 1.838106061 | Q11: 1 | R11: 0 | S11: 0 | T11: 0.8381060606 | U11: 0 | V11: 0 | W11: 21405.12 | X11: 19264.35
C13: Tech Services Revenue Recognition | E13: =SUM(E2:E12) -> 1242684.79 | F13: =SUM(F2:F12) -> 891430.46 | G13: =SUM(G2:G12) -> 780707.71 | H13: =SUM(H2:H12) -> 661559.59 | I13: =SUM(I10:I12) -> 52670.96 | J13: =SUM(J2:J12) -> 400306.38 | K13: 433072.29 | L13: 119148.12 | M13: 422681.29 | N13: 314039.38 | O13: 241606.38

Sheet PESI TS Rev Rec
A1: Customer Number | B1: Project Number | C1: Project Name | D1: Status | E1: Department | F1: Project Amount | G1: Forecast Total Cost | H1: Net Recognized Revenue | I1: Actual Total Cost | J1: Actual BIEE Amount 2455 | K1: Actual EIEB Amount 1205 | L1: Actual Billings | M1: Net Margin | N1: Cash Received To-Date | O1: Current Month Revenue | P1: Current Month Cost | Q1: Cost % Completed | R1: Rev % Recognized | S1: Calc BIEE | T1: Calc EIEB | U1: Difference Rev Recog | V1: Difference BIEE | W1: Difference EIEB | X1: Prior Month Net Recognized Revenue | Y1: Prior Month Total Cost
A2: INOTEC001 | B2: 110-3353 MOB | C2: Angola Mobilization | D2: No | E2: 105009 | F2: 1098394 | G2: 878715 | H2: 8128.12 | I2: 6526.82 | J2: 0 | K2: 8128.12 | L2: 0 | M2: =+H2-I2 -> 1601.3 | N2: 0 | O2: =+H2-X2 -> 8128.12 | P2: =+I2-Y2 -> 6526.82 | Q2: =+I2/G2 -> 0.00742768702 | R2: =+H2/F2 -> 0.007400004006 | S2: =IF(L2>H2,L2-H2,0) -> 0 | T2: =IF(H2>L2,H2-L2,0) -> 8128.12 | U2: =+Q2-R2 -> 2.76830144e-05 | V2: =+J2-S2 -> 0 | W2: =+K2-T2 -> 0 | X2: 0 | Y2: 0
A3: PROEPC001 | B3: 109-2317 MOB | C3: Naudero Mobilization | D3: No | E3: 105009 | F3: 900000 | G3: 765000 | H3: 620190 | I3: 527155.26 | J3: 279810 | K3: 0 | L3: 900000 | M3: =+H3-I3 -> 93034.74 | N3: 877720.12 | O3: =+H3-X3 -> 144630 | P3: =+I3-Y3 -> 122898.5 | Q3: =+I3/G3 -> 0.6890918431 | R3: =+H3/F3 -> 0.6891 | S3: =IF(L3>H3,L3-H3,0) -> 279810 | T3: =IF(H3>L3,H3-L3,0) -> 0 | U3: =+Q3-R3 -> -8.156862745e-06 | V3: =+J3-S3 -> 0 | W3: =+K3-T3 -> 0 | X3: 475560 | Y3: 404256.76
C5: Tech Services Revenue Recognition | F5: =SUM(F2:F4) -> 1998394 | G5: 1643715 | H5: 628318.12 | I5: 533682.08 | J5: 279810 | K5: 8128.12 | L5: 900000 | M5: 94636.04 | N5: 877720.12 | O5: 152758.12 | P5: 129425.32

Sheet PESI O&M Rev Recog
A1: Customer Number | B1: Project Number | C1: Project Name | D1: Signed | E1: Department | F1: Project Amount | G1: Forecast Total Cost | H1: Net Recognized Revenue | I1: Actual Total Cost | J1: Actual BIEE Amount 2455 | K1: Actual EIEB Amount 1205 | L1: Actual Billings | M1: Net Margin | N1: Cash Received To-Date | O1: Current Month Revenue | P1: Current Month Cost | Q1: Cost % Completed | R1: Rev % Recognized | S1: Calc BIEE | T1: Calc EIEB | U1: Difference Rev Recog | V1: Difference BIEE | W1: Difference EIEB | X1: Prior Month Net Recognized Revenue | Y1: Prior Month Total Cost
A2: GENATL001 | B2: OM07-0509 RS | C2: Repair Services - TermoColon | E2: 101150 | F2: 1081063.87 | G2: 982181.16 | H2: 722583.09 | I2: 656489.89 | J2: 267935.09 | K2: 0 | L2: =1081017.68-90499.5 -> 990518.18 | M2: =+H2-I2 -> 66093.2 | N2: 0 | O2: =+H2-X2 -> 26909.73 | P2: =+I2-Y2 -> 24412.38 | Q2: =+I2/G2 -> 0.6684000027 | R2: =+H2/F2 -> 0.6683999993 | S2: =IF(L2>H2,L2-H2,0) -> 267935.09 | T2: =IF(H2>L2,H2-L2,0) -> 0 | U2: =+Q2-R2 -> 3.359096001e-09 | V2: =+J2-S2 -> 0 | W2: =+K2-T2 -> 0 | X2: 695673.36 | Y2: 632077.51
A3: GENATL001 | B3: OM07-0509 SP-CC | C3: Spares - Combined Cycle | E3: 101150 | F3: 1000000 | G3: 856071 | H3: 464000 | I3: 397243.72 | J3: 536000 | K3: 0 | L3: 1000000 | M3: 66756.28 | N3: 0 | O3: 4200 | P3: 3613.15 | Q3: 0.4640312778 | R3: 0.464 | S3: 536000 | T3: 0 | U3: 3.127777953e-05 | V3: 0 | W3: 0 | X3: 459800 | Y3: 393630.57
A4: GENATL001 | B4: OM07-0509 SP-SC | C4: Spares - Simple Cycle | E4: 101150 | F4: 500000 | G4: 507566.27 | H4: 498800 | I4: 506348.11 | J4: 1200 | K4: 0 | L4: 500000 | M4: -7548.11 | N4: 500000 | O4: 0 | P4: 25.43 | Q4: 0.9975999981 | R4: 0.9976 | S4: 1200 | T4: 0 | U4: -1.875617217e-09 | V4: 0 | W4: 0 | X4: 498800 | Y4: 506322.68
A5: EMGASUD001 | B5: OM08-1239 RS-M1 | C5: Emgasud Matheu Repair Ser Fee | E5: 101160 | F5: 843588.11 | G5: 707953 | H5: 0 | I5: 0 | J5: =292318.11+56250 -> 348568.11 | K5: 0 | L5: =367318.11-18750 -> 348568.11 | M5: 0 | N5: 251250 | O5: 0 | P5: 0 | Q5: 0 | R5: 0 | S5: 348568.11 | T5: 0 | U5: 0 | V5: 0 | W5: 0 | X5: 0 | Y5: 0
A6: EMGASUD001 | B6: OM08-1239 RS-P1 | C6: Emgasud Parana Repair Ser Fee | E6: 101170 | F6: 238832.5 | G6: 244953.4 | H6: 0 | I6: 0 | J6: =163832.5+56250 -> 220082.5 | K6: 0 | L6: =238832.5-18750 -> 220082.5 | M6: 0 | N6: 106250 | O6: 0 | P6: 0 | Q6: 0 | R6: 0 | S6: 220082.5 | T6: 0 | U6: 0 | V6: 0 | W6: 0 | X6: 0 | Y6: 0
A7: PROEPC001 | B7: 109-2317 ININV | C7: Naudero Initial Inventory Part | E7: 101200 | F7: 300000 | G7: 272727.27 | H7: 8340 | I7: 7581.82 | J7: =300000-8340 -> 291660 | K7: 0 | L7: =300000 -> 300000 | M7: 758.18 | N7: 300000 | O7: 8340 | P7: 7581.82 | Q7: 0.02780000694 | R7: 0.0278 | S7: 291660 | T7: 0 | U7: 6.944666734e-09 | V7: 0 | W7: 0 | X7: 0 | Y7: 0
A8: ISOLUX001 | B8: 109-2785 BMOB | C8: Batanga Mobilization | E8: 101210 | F8: 161000 | G8: 116000 | H8: 126562.1 | I8: 90905.51 | J8: 34437.9 | K8: 0 | L8: 161000 | M8: 35656.59 | N8: 0 | O8: 386.4 | P8: 0 | Q8: 0.7836681897 | R8: 0.7861 | S8: 34437.9 | T8: 0 | U8: -0.002431810345 | V8: 0 | W8: 0 | X8: 126175.7 | Y8: 90905.51
A9: INOTEC001 | B9: 110-3353 INV | C9: Inventory Costs | E9: 101220 | F9: 1110121.47 | G9: 1200000 | H9: 0 | I9: 0 | J9: 0 | K9: 0 | L9: 0 | M9: 0 | N9: 0 | O9: 0 | P9: 0 | Q9: 0 | R9: 0 | S9: 0 | T9: 0 | U9: 0 | V9: 0 | W9: 0 | X9: 0 | Y9: 0
A10: INOTEC001 | B10: 110-3353 REV 3 | C10: Operations & Maintenance | E10: 101220 | F10: 2200782 | G10: 1955944 | H10: 0 | I10: 0 | J10: 0 | K10: 0 | L10: 0 | M10: 0 | N10: 0 | O10: 0 | P10: 0 | Q10: 0 | R10: 0 | S10: 0 | T10: 0 | U10: 0 | V10: 0 | W10: 0 | X10: 0 | Y10: 0
C12: Total O&M Rev Recognition | F12: =SUM(F2:F11) -> 7435387.95 | G12: 6843396.1 | H12: 1820285.19 | I12: 1658569.05 | J12: 1699883.6 | K12: 0 | L12: 3520168.79 | M12: 161716.14 | N12: 1157500 | O12: 39836.13 | P12: 35632.78 | S12: =SUM(S2:S11) -> 1699883.6 | T12: =SUM(T2:T11) -> 0 | V12: =SUM(V2:V11) -> 0 | W12: =SUM(W2:W11) -> 0 | X12: =SUM(X2:X11) -> 1780449.06 | Y12: =SUM(Y2:Y11) -> 1622936.27

Sheet International O&M Rev Recog
A1: Customer Number | B1: Project Number | C1: Project Name | D1: Signed | E1: Department | F1: Project Amount | G1: Forecast Total Cost | H1: Net Recognized Revenue | I1: Actual Total Cost | J1: Actual BIEE Amount 2455 | K1: Actual EIEB Amount 1205 | L1: Actual Billings | M1: Net Margin | N1: Cash Received To-Date | O1: Current Month Revenue | P1: Current Month Cost | Q1: Cost % Completed | R1: Rev % Recognized | S1: Calc BIEE | T1: Calc EIEB | U1: Difference Rev Recog | V1: Difference BIEE | W1: Difference EIEB | X1: Prior Month Net Recognized Revenue | Y1: Prior Month Total Cost
A2: GENATL001 | B2: OM07-0509 O&M2 | C2: TermoColon O&M | E2: 101150 | F2: 2500000 | G2: 2131659 | H2: 2500000 | I2: =2155268-23609 -> 2131659 | J2: 0 | K2: 383065 | L2: 2116935 | M2: =+H2-I2 -> 368341 | N2: 1575000 | O2: =+H2-Y2 -> 368341 | P2: 2131659 | Q2: =+I2/G2 -> 1 | R2: =+H2/F2 -> 1 | S2: =IF(L2>H2,L2-H2,0) -> 0 | T2: =IF(H2>L2,H2-L2,0) -> 383065 | U2: =+Q2-R2 -> 0 | V2: =+J2-S2 -> 0 | W2: 0 | X2: 2500000 | Y2: =2155268-23609 -> 2131659
A3: GENATL001 | B3: OM07-0509 MOBSC2 | C3: TermoColon Mobilization | E3: 101150 | F3: 1500000 | G3: 1259219 | H3: 1117674 | I3: 938265 | J3: 382326 | K3: 0 | L3: 1500000 | M3: =+H3-I3 -> 179409 | N3: 1026013.7 | O3: 187021 | P3: 938265 | Q3: =+I3/G3 -> 0.7451166159 | R3: =+H3/F3 -> 0.745116 | S3: =IF(L3>H3,L3-H3,0) -> 382326 | T3: =IF(H3>L3,H3-L3,0) -> 0 | U3: =+Q3-R3 -> 6.159341623e-07 | V3: 0 | W3: 0 | X3: 1108607 | Y3: 930653
A4: EMGASUD001 | B4: OM08-1239 O&M-M | C4: Matheu O&M | E4: 101160 | F4: 2516697 | G4: 1798502.01 | H4: 1639380 | I4: 1171546 | J4: 392587 | K4: 0 | L4: 2031967 | M4: =+H4-I4 -> 467834 | N4: 1896408 | O4: 547220 | P4: 1171546 | Q4: =+I4/G4 -> 0.6514009957 | R4: =+H4/F4 -> 0.6514014202 | S4: =IF(L4>H4,L4-H4,0) -> 392587 | T4: =IF(H4>L4,H4-L4,0) -> 0 | U4: =+Q4-R4 -> -4.245406474e-07 | V4: 0 | W4: 0 | X4: 1528292 | Y4: 1092160
A5: EMGASUD001 | B5: OM08-1239 O&M-P | C5: Parana O&M | E5: 101170 | F5: 1232946 | G5: 1051681 | H5: 825510 | I5: 704145 | J5: 556736 | K5: 0 | L5: 1382246 | M5: =+H5-I5 -> 121365 | N5: 1211665 | O5: 201759 | P5: 704145 | Q5: =+I5/G5 -> 0.6695423802 | R5: =+H5/F5 -> 0.669542705 | S5: =IF(L5>H5,L5-H5,0) -> 556736 | T5: =IF(H5>L5,H5-L5,0) -> 0 | U5: =+Q5-R5 -> -3.247868289e-07 | V5: 0 | W5: 0 | X5: 731259 | Y5: 623751
C7: Total International O&M Rev Recognition | F7: 7749643 | G7: =SUM(G2:G6) -> 6241061.01 | H7: 6082564 | I7: 4945615 | J7: 1331649 | K7: 383065 | L7: 7031148 | M7: 1136949 | N7: 5709086.7 | O7: 1304341 | P7: 4945615 | S7: =SUM(S2:S6) -> 1331649 | T7: =SUM(T2:T6) -> 383065 | V7: =SUM(V2:V6) -> 0 | W7: =SUM(W2:W6) -> 0 | X7: =SUM(X2:X6) -> 5868158 | Y7: =SUM(Y2:Y6) -> 4778223
